{"text_format":"1","workbook":"xlsx","n_sheets":12,"sheets":["Cascader","Ahmad","Brian","BF201","BF203","Charlie","BG401","Dahlan","KPICreate","ProjBM","RankBM","CListBM"],"not_rendered":{"charts":0,"images":2,"macros":1,"external_links":0,"defined_names":0,"comments":0,"pivot_tables":0},"unopened":[],"bounds":{"document_bytes":16777216,"sheet_cells":100000,"rows_first":2000,"rows_last":500,"rows_between":2000,"halvings":0,"cell_chars":16384,"cell_head_chars":4096},"cells_cut":0,"cells_raw":0,"read":"whole","date_system":"1900"}

{"sheet":"Cascader","index":0,"n_rows":65,"n_cols":143,"rows_kept":65,"cut":false,"hidden":false,"merged":[[0,3,0,4],[2,3,2,4],[1,3,1,4]]}
[null,null,null,"CASCADER TOOL",null,null,null,null,null,null,null,null,null,null,null,null,null,null,null,null,null,null,null,null,null,null,null,4]
[null,"Organisasi:",null,"SAMPEL CORPORATION BERHAD"]
[2021,"Grup:",":","INFORMATION COMMUNICATIONS & TECHNOLOGY"]
[null,"3-digit\nUser ID",null,"Staff Full Name/Nama Penuh Anggota","Staff Position/ Jawatan Anggota","ShortName\n(Max 10 char)",null,"Lengkap","Status\nCascade","Pilih",null,null,null,null,null,null,null,null,null,null,null,null,null,null,null,null,null,null,null,1,"Casc1","Casc2","Casc3","Casc4","Casc5",2,"Casc1","Casc2","Casc3","Casc4","Casc5",3,"Casc1","Casc2","Casc3","Casc4","Casc5",4,"Casc1","Casc2","Casc3","Casc4","Casc5",5,"Casc1","Casc2","Casc3","Casc4","Casc5",6,"Casc1","Casc2","Casc3","Casc4","Casc5",7,"Casc1","Casc2","Casc3","Casc4","Casc5",8,"Casc1","Casc2","Casc3","Casc4","Casc5",9,"Casc1","Casc2","Casc3","Casc4","Casc5",10,"Casc1","Casc2","Casc3","Casc4","Casc5",11,"Casc1","Casc2","Casc3","Casc4","Casc5",12,"Casc1","Casc2","Casc3","Casc4","Casc5",13,"Casc1","Casc2","Casc3","Casc4","Casc5",14,"Casc1","Casc2","Casc3","Casc4","Casc5",15,"Casc1","Casc2","Casc3","Casc4","Casc5",16,"Casc1","Casc2","Casc3","Casc4","Casc5",null,null,1,2,3,4,5,6,7,8,9,10,11,12,13,14,15,16]
[1,"AD3",{"$f":"COUNTIF($B$5:$B$54,$B5)","v":1},"Ahmad bin Mohd Nor","Ketua Jabatan ICT","Ahmad",{"$f":"COUNTIF($F$5:$F$54,F5)","v":1},{"$f":"IF(OR($C5<>1,$D5=\"\",$E5=\"\",$G5<>1),\"X\",\"Ok\")","v":"Ok"},"Done",null,null,null,null,null,null,null,null,null,null,null,null,null,null,null,null,null,null,null,{"$f":"TEXT(1,\"00\")","v":"01"},null,null,null,null,null,null,null,null,null,null,null,null,null,null,null,null,null,null,null,null,null,null,null,null,null,null,null,null,null,null,null,null,null,null,null,null,null,null,null,null,null,null,null,null,null,null,null,null,null,null,null,null,null,null,null,null,null,null,null,null,null,null,null,null,null,null,null,null,null,null,null,null,null,null,null,null,null,null,null,null,null,null,null,null,null,null,null,null,null,null,null,null,null,null,null,null,null,null,{"$f":"CONCATENATE($B5,TEXT(DX$4,\"00\"))","v":"AD301"},{"$f":"CONCATENATE($B5,TEXT(DY$4,\"00\"))","v":"AD302"},"AD303","AD304","AD305","AD306","AD307","AD308","AD309","AD310","AD311","AD312","AD313","AD314","AD315","AD316"]
[2,"BF2",{"$f":"COUNTIF($B$5:$B$54,$B6)","v":1},"Brian Khaw","Ketua Unit Pembangunan Software","Brian",{"$f":"COUNTIF($F$5:$F$54,F6)","v":1},{"$f":"IF(OR($C6<>1,$D6=\"\",$E6=\"\",$G6<>1),\"X\",\"Ok\")","v":"Ok"},"Done",null,null,null,null,null,null,null,null,null,null,null,null,null,null,null,null,null,null,null,null,null,null,null,null,null,null,null,null,null,null,null,null,null,null,null,null,null,null,null,null,null,null,null,null,null,null,null,null,null,null,null,null,null,null,null,null,null,null,null,null,null,null,null,null,null,null,null,null,null,null,null,null,null,null,null,null,null,null,null,null,null,null,null,null,null,null,null,null,null,null,null,null,null,null,null,null,null,null,null,null,null,null,null,null,null,null,null,null,null,null,null,null,null,null,null,null,null,null,{"$f":"CONCATENATE($B6,TEXT(DX$4,\"00\"))","v":"BF201"},"BF202","BF203","BF204","BF205","BF206","BF207","BF208","BF209","BF210","BF211","BF212","BF213","BF214","BF215","BF216"]
[3,"BG4",1,"Charlie Tan","Eksekutif Teknologi Maklumat","Charlie",1,"Ok","Done",null,null,null,null,null,null,null,null,null,null,null,null,null,null,null,null,null,null,null,{"$f":"TEXT(2,\"00\")","v":"02"},null,null,null,null,null,null,null,null,null,null,null,null,null,null,null,null,null,null,null,null,null,null,null,null,null,null,null,null,null,null,null,null,null,null,null,null,null,null,null,null,null,null,null,null,null,null,null,null,null,null,null,null,null,null,null,null,null,null,null,null,null,null,null,null,null,null,null,null,null,null,null,null,null,null,null,null,null,null,null,null,null,null,null,null,null,null,null,null,null,null,null,null,null,null,null,null,null,null,"BG401","BG402","BG403","BG404","BG405","BG406","BG407","BG408","BG409","BG410","BG411","BG412","BG413","BG414","BG415","BG416"]
[4,"BB8",1,"Dahlan bin Zulkifli","Eksekutif Teknologi Maklumat","Dahlan",1,"Ok","Done",null,null,null,null,null,null,null,null,null,null,null,null,null,null,null,null,null,null,null,null,"Fill",null,null,null,null,null,"BB802",null,null,null,null,null,"BB803",null,null,null,null,null,"BB804",null,null,null,null,null,"BB805",null,null,null,null,null,"BB806",null,null,null,null,null,"BB807",null,null,null,null,null,"BB808",null,null,null,null,null,"BB809",null,null,null,null,null,"BB810",null,null,null,null,null,"BB811",null,null,null,null,null,"BB812",null,null,null,null,null,"BB813",null,null,null,null,null,"BB814",null,null,null,null,null,"BB815",null,null,null,null,null,"BB816",null,null,null,null,null,null,null,"BB801","BB802","BB803","BB804","BB805","BB806","BB807","BB808","BB809","BB810","BB811","BB812","BB813","BB814","BB815","BB816"]
[5,null,0,null,null,null,0,"X","No",null,null,null,null,null,null,null,null,null,null,null,null,null,null,null,null,null,null,null,{"$f":"TEXT(3,\"00\")","v":"03"},null,null,null,null,null,null,null,null,null,null,null,null,null,null,null,null,null,null,null,null,null,null,null,null,null,null,null,null,null,null,null,null,null,null,null,null,null,null,null,null,null,null,null,null,null,null,null,null,null,null,null,null,null,null,null,null,null,null,null,null,null,null,null,null,null,null,null,null,null,null,null,null,null,null,null,null,null,null,null,null,null,null,null,null,null,null,null,null,null,null,null,null,null,null,null,null,null,null,"01","02","03","04","05","06","07","08","09","10","11","12","13","14","15","16"]
[6,null,0,null,null,null,0,"X","No",null,null,null,null,null,null,null,null,null,null,null,null,null,null,null,null,null,null,null,null,null,null,null,null,null,null,null,null,null,null,null,null,null,null,null,null,null,null,null,null,null,null,null,null,null,null,null,null,null,null,null,null,null,null,null,null,null,null,null,null,null,null,null,null,null,null,null,null,null,null,null,null,null,null,null,null,null,null,null,null,null,null,null,null,null,null,null,null,null,null,null,null,null,null,null,null,null,null,null,null,null,null,null,null,null,null,null,null,null,null,null,null,null,null,null,null,null,null,"01","02","03","04","05","06","07","08","09","10","11","12","13","14","15","16"]
[7,null,0,null,null,null,0,"X","No",null,null,null,null,null,null,null,null,null,null,null,null,null,null,null,null,null,null,null,{"$f":"TEXT(4,\"00\")","v":"04"},null,null,null,null,null,null,null,null,null,null,null,null,null,null,null,null,null,null,null,null,null,null,null,null,null,null,null,null,null,null,null,null,null,null,null,null,null,null,null,null,null,null,null,null,null,null,null,null,null,null,null,null,null,null,null,null,null,null,null,null,null,null,null,null,null,null,null,null,null,null,null,null,null,null,null,null,null,null,null,null,null,null,null,null,null,null,null,null,null,null,null,null,null,null,null,null,null,null,"01","02","03","04","05","06","07","08","09","10","11","12","13","14","15","16"]
[8,null,0,null,null,null,0,"X","No",null,null,null,null,null,null,null,null,null,null,null,null,null,null,null,null,null,null,null,null,null,null,null,null,null,null,null,null,null,null,null,null,null,null,null,null,null,null,null,null,null,null,null,null,null,null,null,null,null,null,null,null,null,null,null,null,null,null,null,null,null,null,null,null,null,null,null,null,null,null,null,null,null,null,null,null,null,null,null,null,null,null,null,null,null,null,null,null,null,null,null,null,null,null,null,null,null,null,null,null,null,null,null,null,null,null,null,null,null,null,null,null,null,null,null,null,null,null,"01","02","03","04","05","06","07","08","09","10","11","12","13","14","15","16"]
[9,null,0,null,null,null,0,"X","No",null,null,null,null,null,null,null,null,null,null,null,null,null,null,null,null,null,null,null,{"$f":"TEXT(5,\"00\")","v":"05"},null,null,null,null,null,null,null,null,null,null,null,null,null,null,null,null,null,null,null,null,null,null,null,null,null,null,null,null,null,null,null,null,null,null,null,null,null,null,null,null,null,null,null,null,null,null,null,null,null,null,null,null,null,null,null,null,null,null,null,null,null,null,null,null,null,null,null,null,null,null,null,null,null,null,null,null,null,null,null,null,null,null,null,null,null,null,null,null,null,null,null,null,null,null,null,null,null,null,"01","02","03","04","05","06","07","08","09","10","11","12","13","14","15","16"]
[10,null,0,null,null,null,0,"X","No",null,null,null,null,null,null,null,null,null,null,null,null,null,null,null,null,null,null,null,null,null,null,null,null,null,null,null,null,null,null,null,null,null,null,null,null,null,null,null,null,null,null,null,null,null,null,null,null,null,null,null,null,null,null,null,null,null,null,null,null,null,null,null,null,null,null,null,null,null,null,null,null,null,null,null,null,null,null,null,null,null,null,null,null,null,null,null,null,null,null,null,null,null,null,null,null,null,null,null,null,null,null,null,null,null,null,null,null,null,null,null,null,null,null,null,null,null,null,"01","02","03","04","05","06","07","08","09","10","11","12","13","14","15","16"]
[11,null,0,null,null,null,0,"X","No",null,null,null,null,null,null,null,null,null,null,null,null,null,null,null,null,null,null,null,{"$f":"TEXT(6,\"00\")","v":"06"},null,null,null,null,null,null,null,null,null,null,null,null,null,null,null,null,null,null,null,null,null,null,null,null,null,null,null,null,null,null,null,null,null,null,null,null,null,null,null,null,null,null,null,null,null,null,null,null,null,null,null,null,null,null,null,null,null,null,null,null,null,null,null,null,null,null,null,null,null,null,null,null,null,null,null,null,null,null,null,null,null,null,null,null,null,null,null,null,null,null,null,null,null,null,null,null,null,null,"01","02","03","04","05","06","07","08","09","10","11","12","13","14","15","16"]
[12,null,0,null,null,null,0,"X","No",null,null,null,null,null,null,null,null,null,null,null,null,null,null,null,null,null,null,null,null,null,null,null,null,null,null,null,null,null,null,null,null,null,null,null,null,null,null,null,null,null,null,null,null,null,null,null,null,null,null,null,null,null,null,null,null,null,null,null,null,null,null,null,null,null,null,null,null,null,null,null,null,null,null,null,null,null,null,null,null,null,null,null,null,null,null,null,null,null,null,null,null,null,null,null,null,null,null,null,null,null,null,null,null,null,null,null,null,null,null,null,null,null,null,null,null,null,null,"01","02","03","04","05","06","07","08","09","10","11","12","13","14","15","16"]
[13,null,0,null,null,null,0,"X","No",null,null,null,null,null,null,null,null,null,null,null,null,null,null,null,null,null,null,null,{"$f":"TEXT(7,\"00\")","v":"07"},null,null,null,null,null,null,null,null,null,null,null,null,null,null,null,null,null,null,null,null,null,null,null,null,null,null,null,null,null,null,null,null,null,null,null,null,null,null,null,null,null,null,null,null,null,null,null,null,null,null,null,null,null,null,null,null,null,null,null,null,null,null,null,null,null,null,null,null,null,null,null,null,null,null,null,null,null,null,null,null,null,null,null,null,null,null,null,null,null,null,null,null,null,null,null,null,null,null,"01","02","03","04","05","06","07","08","09","10","11","12","13","14","15","16"]
[14,null,0,null,null,null,0,"X","No",null,null,null,null,null,null,null,null,null,null,null,null,null,null,null,null,null,null,null,null,null,null,null,null,null,null,null,null,null,null,null,null,null,null,null,null,null,null,null,null,null,null,null,null,null,null,null,null,null,null,null,null,null,null,null,null,null,null,null,null,null,null,null,null,null,null,null,null,null,null,null,null,null,null,null,null,null,null,null,null,null,null,null,null,null,null,null,null,null,null,null,null,null,null,null,null,null,null,null,null,null,null,null,null,null,null,null,null,null,null,null,null,null,null,null,null,null,null,"01","02","03","04","05","06","07","08","09","10","11","12","13","14","15","16"]
[15,null,0,null,null,null,0,"X","No",null,null,null,null,null,null,null,null,null,null,null,null,null,null,null,null,null,null,null,{"$f":"TEXT(8,\"00\")","v":"08"},null,null,null,null,null,null,null,null,null,null,null,null,null,null,null,null,null,null,null,null,null,null,null,null,null,null,null,null,null,null,null,null,null,null,null,null,null,null,null,null,null,null,null,null,null,null,null,null,null,null,null,null,null,null,null,null,null,null,null,null,null,null,null,null,null,null,null,null,null,null,null,null,null,null,null,null,null,null,null,null,null,null,null,null,null,null,null,null,null,null,null,null,null,null,null,null,null,null,"01","02","03","04","05","06","07","08","09","10","11","12","13","14","15","16"]
[16,null,0,null,null,null,0,"X","No",null,null,null,null,null,null,null,null,null,null,null,null,null,null,null,null,null,null,null,null,null,null,null,null,null,null,null,null,null,null,null,null,null,null,null,null,null,null,null,null,null,null,null,null,null,null,null,null,null,null,null,null,null,null,null,null,null,null,null,null,null,null,null,null,null,null,null,null,null,null,null,null,null,null,null,null,null,null,null,null,null,null,null,null,null,null,null,null,null,null,null,null,null,null,null,null,null,null,null,null,null,null,null,null,null,null,null,null,null,null,null,null,null,null,null,null,null,null,"01","02","03","04","05","06","07","08","09","10","11","12","13","14","15","16"]
[17,null,0,null,null,null,0,"X","No",null,null,null,null,null,null,null,null,null,null,null,null,null,null,null,null,null,null,null,{"$f":"TEXT(9,\"00\")","v":"09"},null,null,null,null,null,null,null,null,null,null,null,null,null,null,null,null,null,null,null,null,null,null,null,null,null,null,null,null,null,null,null,null,null,null,null,null,null,null,null,null,null,null,null,null,null,null,null,null,null,null,null,null,null,null,null,null,null,null,null,null,null,null,null,null,null,null,null,null,null,null,null,null,null,null,null,null,null,null,null,null,null,null,null,null,null,null,null,null,null,null,null,null,null,null,null,null,null,null,"01","02","03","04","05","06","07","08","09","10","11","12","13","14","15","16"]
[18,null,0,null,null,null,0,"X","No",null,null,null,null,null,null,null,null,null,null,null,null,null,null,null,null,null,null,null,null,null,null,null,null,null,null,null,null,null,null,null,null,null,null,null,null,null,null,null,null,null,null,null,null,null,null,null,null,null,null,null,null,null,null,null,null,null,null,null,null,null,null,null,null,null,null,null,null,null,null,null,null,null,null,null,null,null,null,null,null,null,null,null,null,null,null,null,null,null,null,null,null,null,null,null,null,null,null,null,null,null,null,null,null,null,null,null,null,null,null,null,null,null,null,null,null,null,null,"01","02","03","04","05","06","07","08","09","10","11","12","13","14","15","16"]
[19,null,0,null,null,null,0,"X","No",null,null,null,null,null,null,null,null,null,null,null,null,null,null,null,null,null,null,null,{"$f":"TEXT(10,\"00\")","v":"10"},null,null,null,null,null,null,null,null,null,null,null,null,null,null,null,null,null,null,null,null,null,null,null,null,null,null,null,null,null,null,null,null,null,null,null,null,null,null,null,null,null,null,null,null,null,null,null,null,null,null,null,null,null,null,null,null,null,null,null,null,null,null,null,null,null,null,null,null,null,null,null,null,null,null,null,null,null,null,null,null,null,null,null,null,null,null,null,null,null,null,null,null,null,null,null,null,null,null,"01","02","03","04","05","06","07","08","09","10","11","12","13","14","15","16"]
[20,null,0,null,null,null,0,"X","No",null,null,null,null,null,null,null,null,null,null,null,null,null,null,null,null,null,null,null,null,null,null,null,null,null,null,null,null,null,null,null,null,null,null,null,null,null,null,null,null,null,null,null,null,null,null,null,null,null,null,null,null,null,null,null,null,null,null,null,null,null,null,null,null,null,null,null,null,null,null,null,null,null,null,null,null,null,null,null,null,null,null,null,null,null,null,null,null,null,null,null,null,null,null,null,null,null,null,null,null,null,null,null,null,null,null,null,null,null,null,null,null,null,null,null,null,null,null,"01","02","03","04","05","06","07","08","09","10","11","12","13","14","15","16"]
[21,null,0,null,null,null,0,"X","No",null,null,null,null,null,null,null,null,null,null,null,null,null,null,null,null,null,null,null,{"$f":"TEXT(11,\"00\")","v":"11"},null,null,null,null,null,null,null,null,null,null,null,null,null,null,null,null,null,null,null,null,null,null,null,null,null,null,null,null,null,null,null,null,null,null,null,null,null,null,null,null,null,null,null,null,null,null,null,null,null,null,null,null,null,null,null,null,null,null,null,null,null,null,null,null,null,null,null,null,null,null,null,null,null,null,null,null,null,null,null,null,null,null,null,null,null,null,null,null,null,null,null,null,null,null,null,null,null,null,"01","02","03","04","05","06","07","08","09","10","11","12","13","14","15","16"]
[22,null,0,null,null,null,0,"X","No",null,null,null,null,null,null,null,null,null,null,null,null,null,null,null,null,null,null,null,null,null,null,null,null,null,null,null,null,null,null,null,null,null,null,null,null,null,null,null,null,null,null,null,null,null,null,null,null,null,null,null,null,null,null,null,null,null,null,null,null,null,null,null,null,null,null,null,null,null,null,null,null,null,null,null,null,null,null,null,null,null,null,null,null,null,null,null,null,null,null,null,null,null,null,null,null,null,null,null,null,null,null,null,null,null,null,null,null,null,null,null,null,null,null,null,null,null,null,"01","02","03","04","05","06","07","08","09","10","11","12","13","14","15","16"]
[23,null,0,null,null,null,0,"X","No",null,null,null,null,null,null,null,null,null,null,null,null,null,null,null,null,null,null,null,{"$f":"TEXT(12,\"00\")","v":"12"},null,null,null,null,null,null,null,null,null,null,null,null,null,null,null,null,null,null,null,null,null,null,null,null,null,null,null,null,null,null,null,null,null,null,null,null,null,null,null,null,null,null,null,null,null,null,null,null,null,null,null,null,null,null,null,null,null,null,null,null,null,null,null,null,null,null,null,null,null,null,null,null,null,null,null,null,null,null,null,null,null,null,null,null,null,null,null,null,null,null,null,null,null,null,null,null,null,null,"01","02","03","04","05","06","07","08","09","10","11","12","13","14","15","16"]
[24,null,0,null,null,null,0,"X","No",null,null,null,null,null,null,null,null,null,null,null,null,null,null,null,null,null,null,null,null,null,null,null,null,null,null,null,null,null,null,null,null,null,null,null,null,null,null,null,null,null,null,null,null,null,null,null,null,null,null,null,null,null,null,null,null,null,null,null,null,null,null,null,null,null,null,null,null,null,null,null,null,null,null,null,null,null,null,null,null,null,null,null,null,null,null,null,null,null,null,null,null,null,null,null,null,null,null,null,null,null,null,null,null,null,null,null,null,null,null,null,null,null,null,null,null,null,null,"01","02","03","04","05","06","07","08","09","10","11","12","13","14","15","16"]
[25,null,0,null,null,null,0,"X","No",null,null,null,null,null,null,null,null,null,null,null,null,null,null,null,null,null,null,null,{"$f":"TEXT(13,\"00\")","v":"13"},null,null,null,null,null,null,null,null,null,null,null,null,null,null,null,null,null,null,null,null,null,null,null,null,null,null,null,null,null,null,null,null,null,null,null,null,null,null,null,null,null,null,null,null,null,null,null,null,null,null,null,null,null,null,null,null,null,null,null,null,null,null,null,null,null,null,null,null,null,null,null,null,null,null,null,null,null,null,null,null,null,null,null,null,null,null,null,null,null,null,null,null,null,null,null,null,null,null,"01","02","03","04","05","06","07","08","09","10","11","12","13","14","15","16"]
[26,null,0,null,null,null,0,"X","No",null,null,null,null,null,null,null,null,null,null,null,null,null,null,null,null,null,null,null,null,null,null,null,null,null,null,null,null,null,null,null,null,null,null,null,null,null,null,null,null,null,null,null,null,null,null,null,null,null,null,null,null,null,null,null,null,null,null,null,null,null,null,null,null,null,null,null,null,null,null,null,null,null,null,null,null,null,null,null,null,null,null,null,null,null,null,null,null,null,null,null,null,null,null,null,null,null,null,null,null,null,null,null,null,null,null,null,null,null,null,null,null,null,null,null,null,null,null,"01","02","03","04","05","06","07","08","09","10","11","12","13","14","15","16"]
[27,null,0,null,null,null,0,"X","No",null,null,null,null,null,null,null,null,null,null,null,null,null,null,null,null,null,null,null,{"$f":"TEXT(14,\"00\")","v":"14"},null,null,null,null,null,null,null,null,null,null,null,null,null,null,null,null,null,null,null,null,null,null,null,null,null,null,null,null,null,null,null,null,null,null,null,null,null,null,null,null,null,null,null,null,null,null,null,null,null,null,null,null,null,null,null,null,null,null,null,null,null,null,null,null,null,null,null,null,null,null,null,null,null,null,null,null,null,null,null,null,null,null,null,null,null,null,null,null,null,null,null,null,null,null,null,null,null,null,"01","02","03","04","05","06","07","08","09","10","11","12","13","14","15","16"]
[28,null,0,null,null,null,0,"X","No",null,null,null,null,null,null,null,null,null,null,null,null,null,null,null,null,null,null,null,null,null,null,null,null,null,null,null,null,null,null,null,null,null,null,null,null,null,null,null,null,null,null,null,null,null,null,null,null,null,null,null,null,null,null,null,null,null,null,null,null,null,null,null,null,null,null,null,null,null,null,null,null,null,null,null,null,null,null,null,null,null,null,null,null,null,null,null,null,null,null,null,null,null,null,null,null,null,null,null,null,null,null,null,null,null,null,null,null,null,null,null,null,null,null,null,null,null,null,"01","02","03","04","05","06","07","08","09","10","11","12","13","14","15","16"]
[29,null,0,null,null,null,0,"X","No",null,null,null,null,null,null,null,null,null,null,null,null,null,null,null,null,null,null,null,{"$f":"TEXT(15,\"00\")","v":"15"},null,null,null,null,null,null,null,null,null,null,null,null,null,null,null,null,null,null,null,null,null,null,null,null,null,null,null,null,null,null,null,null,null,null,null,null,null,null,null,null,null,null,null,null,null,null,null,null,null,null,null,null,null,null,null,null,null,null,null,null,null,null,null,null,null,null,null,null,null,null,null,null,null,null,null,null,null,null,null,null,null,null,null,null,null,null,null,null,null,null,null,null,null,null,null,null,null,null,"01","02","03","04","05","06","07","08","09","10","11","12","13","14","15","16"]
[30,null,0,null,null,null,0,"X","No",null,null,null,null,null,null,null,null,null,null,null,null,null,null,null,null,null,null,null,null,null,null,null,null,null,null,null,null,null,null,null,null,null,null,null,null,null,null,null,null,null,null,null,null,null,null,null,null,null,null,null,null,null,null,null,null,null,null,null,null,null,null,null,null,null,null,null,null,null,null,null,null,null,null,null,null,null,null,null,null,null,null,null,null,null,null,null,null,null,null,null,null,null,null,null,null,null,null,null,null,null,null,null,null,null,null,null,null,null,null,null,null,null,null,null,null,null,null,"01","02","03","04","05","06","07","08","09","10","11","12","13","14","15","16"]
[31,null,0,null,null,null,0,"X","No",null,null,null,null,null,null,null,null,null,null,null,null,null,null,null,null,null,null,null,{"$f":"TEXT(16,\"00\")","v":"16"},null,null,null,null,null,null,null,null,null,null,null,null,null,null,null,null,null,null,null,null,null,null,null,null,null,null,null,null,null,null,null,null,null,null,null,null,null,null,null,null,null,null,null,null,null,null,null,null,null,null,null,null,null,null,null,null,null,null,null,null,null,null,null,null,null,null,null,null,null,null,null,null,null,null,null,null,null,null,null,null,null,null,null,null,null,null,null,null,null,null,null,null,null,null,null,null,null,null,"01","02","03","04","05","06","07","08","09","10","11","12","13","14","15","16"]
[32,null,0,null,null,null,0,"X","No",null,null,null,null,null,null,null,null,null,null,null,null,null,null,null,null,null,null,null,null,null,null,null,null,null,null,null,null,null,null,null,null,null,null,null,null,null,null,null,null,null,null,null,null,null,null,null,null,null,null,null,null,null,null,null,null,null,null,null,null,null,null,null,null,null,null,null,null,null,null,null,null,null,null,null,null,null,null,null,null,null,null,null,null,null,null,null,null,null,null,null,null,null,null,null,null,null,null,null,null,null,null,null,null,null,null,null,null,null,null,null,null,null,null,null,null,null,null,{"$f":"CONCATENATE($B36,TEXT(DX$4,\"00\"))","v":"01"},"02","03","04","05","06","07","08","09","10","11","12","13","14","15","16"]
[33,null,0,null,null,null,0,"X","No",null,null,null,null,null,null,null,null,null,null,null,null,null,null,null,null,null,null,null,null,null,null,null,null,null,null,null,null,null,null,null,null,null,null,null,null,null,null,null,null,null,null,null,null,null,null,null,null,null,null,null,null,null,null,null,null,null,null,null,null,null,null,null,null,null,null,null,null,null,null,null,null,null,null,null,null,null,null,null,null,null,null,null,null,null,null,null,null,null,null,null,null,null,null,null,null,null,null,null,null,null,null,null,null,null,null,null,null,null,null,null,null,null,null,null,null,null,null,"01","02","03","04","05","06","07","08","09","10","11","12","13","14","15","16"]
[34,null,0,null,null,null,0,"X","No",null,null,null,null,null,null,null,null,null,null,null,null,null,null,null,null,null,null,null,null,null,null,null,null,null,null,null,null,null,null,null,null,null,null,null,null,null,null,null,null,null,null,null,null,null,null,null,null,null,null,null,null,null,null,null,null,null,null,null,null,null,null,null,null,null,null,null,null,null,null,null,null,null,null,null,null,null,null,null,null,null,null,null,null,null,null,null,null,null,null,null,null,null,null,null,null,null,null,null,null,null,null,null,null,null,null,null,null,null,null,null,null,null,null,null,null,null,null,"01","02","03","04","05","06","07","08","09","10","11","12","13","14","15","16"]
[35,null,0,null,null,null,0,"X","No",null,null,null,null,null,null,null,null,null,null,null,null,null,null,null,null,null,null,null,null,null,null,null,null,null,null,null,null,null,null,null,null,null,null,null,null,null,null,null,null,null,null,null,null,null,null,null,null,null,null,null,null,null,null,null,null,null,null,null,null,null,null,null,null,null,null,null,null,null,null,null,null,null,null,null,null,null,null,null,null,null,null,null,null,null,null,null,null,null,null,null,null,null,null,null,null,null,null,null,null,null,null,null,null,null,null,null,null,null,null,null,null,null,null,null,null,null,null,"01","02","03","04","05","06","07","08","09","10","11","12","13","14","15","16"]
[36,null,0,null,null,null,0,"X","No",null,null,null,null,null,null,null,null,null,null,null,null,null,null,null,null,null,null,null,null,null,null,null,null,null,null,null,null,null,null,null,null,null,null,null,null,null,null,null,null,null,null,null,null,null,null,null,null,null,null,null,null,null,null,null,null,null,null,null,null,null,null,null,null,null,null,null,null,null,null,null,null,null,null,null,null,null,null,null,null,null,null,null,null,null,null,null,null,null,null,null,null,null,null,null,null,null,null,null,null,null,null,null,null,null,null,null,null,null,null,null,null,null,null,null,null,null,null,"01","02","03","04","05","06","07","08","09","10","11","12","13","14","15","16"]
[37,null,0,null,null,null,0,"X","No",null,null,null,null,null,null,null,null,null,null,null,null,null,null,null,null,null,null,null,null,null,null,null,null,null,null,null,null,null,null,null,null,null,null,null,null,null,null,null,null,null,null,null,null,null,null,null,null,null,null,null,null,null,null,null,null,null,null,null,null,null,null,null,null,null,null,null,null,null,null,null,null,null,null,null,null,null,null,null,null,null,null,null,null,null,null,null,null,null,null,null,null,null,null,null,null,null,null,null,null,null,null,null,null,null,null,null,null,null,null,null,null,null,null,null,null,null,null,"01","02","03","04","05","06","07","08","09","10","11","12","13","14","15","16"]
[38,null,0,null,null,null,0,"X","No",null,null,null,null,null,null,null,null,null,null,null,null,null,null,null,null,null,null,null,null,null,null,null,null,null,null,null,null,null,null,null,null,null,null,null,null,null,null,null,null,null,null,null,null,null,null,null,null,null,null,null,null,null,null,null,null,null,null,null,null,null,null,null,null,null,null,null,null,null,null,null,null,null,null,null,null,null,null,null,null,null,null,null,null,null,null,null,null,null,null,null,null,null,null,null,null,null,null,null,null,null,null,null,null,null,null,null,null,null,null,null,null,null,null,null,null,null,null,"01","02","03","04","05","06","07","08","09","10","11","12","13","14","15","16"]
[39,null,0,null,null,null,0,"X","No",null,null,null,null,null,null,null,null,null,null,null,null,null,null,null,null,null,null,null,null,null,null,null,null,null,null,null,null,null,null,null,null,null,null,null,null,null,null,null,null,null,null,null,null,null,null,null,null,null,null,null,null,null,null,null,null,null,null,null,null,null,null,null,null,null,null,null,null,null,null,null,null,null,null,null,null,null,null,null,null,null,null,null,null,null,null,null,null,null,null,null,null,null,null,null,null,null,null,null,null,null,null,null,null,null,null,null,null,null,null,null,null,null,null,null,null,null,null,"01","02","03","04","05","06","07","08","09","10","11","12","13","14","15","16"]
[40,null,0,null,null,null,0,"X","No",null,null,null,null,null,null,null,null,null,null,null,null,null,null,null,null,null,null,null,null,null,null,null,null,null,null,null,null,null,null,null,null,null,null,null,null,null,null,null,null,null,null,null,null,null,null,null,null,null,null,null,null,null,null,null,null,null,null,null,null,null,null,null,null,null,null,null,null,null,null,null,null,null,null,null,null,null,null,null,null,null,null,null,null,null,null,null,null,null,null,null,null,null,null,null,null,null,null,null,null,null,null,null,null,null,null,null,null,null,null,null,null,null,null,null,null,null,null,"01","02","03","04","05","06","07","08","09","10","11","12","13","14","15","16"]
[41,null,0,null,null,null,0,"X","No",null,null,null,null,null,null,null,null,null,null,null,null,null,null,null,null,null,null,null,null,null,null,null,null,null,null,null,null,null,null,null,null,null,null,null,null,null,null,null,null,null,null,null,null,null,null,null,null,null,null,null,null,null,null,null,null,null,null,null,null,null,null,null,null,null,null,null,null,null,null,null,null,null,null,null,null,null,null,null,null,null,null,null,null,null,null,null,null,null,null,null,null,null,null,null,null,null,null,null,null,null,null,null,null,null,null,null,null,null,null,null,null,null,null,null,null,null,null,"01","02","03","04","05","06","07","08","09","10","11","12","13","14","15","16"]
[42,null,0,null,null,null,0,"X","No",null,null,null,null,null,null,null,null,null,null,null,null,null,null,null,null,null,null,null,null,null,null,null,null,null,null,null,null,null,null,null,null,null,null,null,null,null,null,null,null,null,null,null,null,null,null,null,null,null,null,null,null,null,null,null,null,null,null,null,null,null,null,null,null,null,null,null,null,null,null,null,null,null,null,null,null,null,null,null,null,null,null,null,null,null,null,null,null,null,null,null,null,null,null,null,null,null,null,null,null,null,null,null,null,null,null,null,null,null,null,null,null,null,null,null,null,null,null,"01","02","03","04","05","06","07","08","09","10","11","12","13","14","15","16"]
[43,null,0,null,null,null,0,"X","No",null,null,null,null,null,null,null,null,null,null,null,null,null,null,null,null,null,null,null,null,null,null,null,null,null,null,null,null,null,null,null,null,null,null,null,null,null,null,null,null,null,null,null,null,null,null,null,null,null,null,null,null,null,null,null,null,null,null,null,null,null,null,null,null,null,null,null,null,null,null,null,null,null,null,null,null,null,null,null,null,null,null,null,null,null,null,null,null,null,null,null,null,null,null,null,null,null,null,null,null,null,null,null,null,null,null,null,null,null,null,null,null,null,null,null,null,null,null,"01","02","03","04","05","06","07","08","09","10","11","12","13","14","15","16"]
[44,null,0,null,null,null,0,"X","No",null,null,null,null,null,null,null,null,null,null,null,null,null,null,null,null,null,null,null,null,null,null,null,null,null,null,null,null,null,null,null,null,null,null,null,null,null,null,null,null,null,null,null,null,null,null,null,null,null,null,null,null,null,null,null,null,null,null,null,null,null,null,null,null,null,null,null,null,null,null,null,null,null,null,null,null,null,null,null,null,null,null,null,null,null,null,null,null,null,null,null,null,null,null,null,null,null,null,null,null,null,null,null,null,null,null,null,null,null,null,null,null,null,null,null,null,null,null,"01","02","03","04","05","06","07","08","09","10","11","12","13","14","15","16"]
[45,null,0,null,null,null,0,"X","No",null,null,null,null,null,null,null,null,null,null,null,null,null,null,null,null,null,null,null,null,null,null,null,null,null,null,null,null,null,null,null,null,null,null,null,null,null,null,null,null,null,null,null,null,null,null,null,null,null,null,null,null,null,null,null,null,null,null,null,null,null,null,null,null,null,null,null,null,null,null,null,null,null,null,null,null,null,null,null,null,null,null,null,null,null,null,null,null,null,null,null,null,null,null,null,null,null,null,null,null,null,null,null,null,null,null,null,null,null,null,null,null,null,null,null,null,null,null,"01","02","03","04","05","06","07","08","09","10","11","12","13","14","15","16"]
[46,null,0,null,null,null,0,"X","No",null,null,null,null,null,null,null,null,null,null,null,null,null,null,null,null,null,null,null,null,null,null,null,null,null,null,null,null,null,null,null,null,null,null,null,null,null,null,null,null,null,null,null,null,null,null,null,null,null,null,null,null,null,null,null,null,null,null,null,null,null,null,null,null,null,null,null,null,null,null,null,null,null,null,null,null,null,null,null,null,null,null,null,null,null,null,null,null,null,null,null,null,null,null,null,null,null,null,null,null,null,null,null,null,null,null,null,null,null,null,null,null,null,null,null,null,null,null,"01","02","03","04","05","06","07","08","09","10","11","12","13","14","15","16"]
[47,null,0,null,null,null,0,"X","No",null,null,null,null,null,null,null,null,null,null,null,null,null,null,null,null,null,null,null,null,null,null,null,null,null,null,null,null,null,null,null,null,null,null,null,null,null,null,null,null,null,null,null,null,null,null,null,null,null,null,null,null,null,null,null,null,null,null,null,null,null,null,null,null,null,null,null,null,null,null,null,null,null,null,null,null,null,null,null,null,null,null,null,null,null,null,null,null,null,null,null,null,null,null,null,null,null,null,null,null,null,null,null,null,null,null,null,null,null,null,null,null,null,null,null,null,null,null,"01","02","03","04","05","06","07","08","09","10","11","12","13","14","15",{"$f":"CONCATENATE($B51,TEXT(EM$4,\"00\"))","v":"16"}]
[48,null,0,null,null,null,0,"X","No",null,null,null,null,null,null,null,null,null,null,null,null,null,null,null,null,null,null,null,null,null,null,null,null,null,null,null,null,null,null,null,null,null,null,null,null,null,null,null,null,null,null,null,null,null,null,null,null,null,null,null,null,null,null,null,null,null,null,null,null,null,null,null,null,null,null,null,null,null,null,null,null,null,null,null,null,null,null,null,null,null,null,null,null,null,null,null,null,null,null,null,null,null,null,null,null,null,null,null,null,null,null,null,null,null,null,null,null,null,null,null,null,null,null,null,null,null,null,{"$f":"CONCATENATE($B52,TEXT(DX$4,\"00\"))","v":"01"},"02","03","04","05","06","07","08","09","10","11","12","13","14","15","16"]
[49,null,0,null,null,null,0,"X","No",null,null,null,null,null,null,null,null,null,null,null,null,null,null,null,null,null,null,null,null,null,null,null,null,null,null,null,null,null,null,null,null,null,null,null,null,null,null,null,null,null,null,null,null,null,null,null,null,null,null,null,null,null,null,null,null,null,null,null,null,null,null,null,null,null,null,null,null,null,null,null,null,null,null,null,null,null,null,null,null,null,null,null,null,null,null,null,null,null,null,null,null,null,null,null,null,null,null,null,null,null,null,null,null,null,null,null,null,null,null,null,null,null,null,null,null,null,null,"01","02","03","04","05","06","07","08","09","10","11","12","13","14","15","16"]
[50,null,0,null,null,null,0,"X","No",null,null,null,null,null,null,null,null,null,null,null,null,null,null,null,null,null,null,null,null,null,null,null,null,null,null,null,null,null,null,null,null,null,null,null,null,null,null,null,null,null,null,null,null,null,null,null,null,null,null,null,null,null,null,null,null,null,null,null,null,null,null,null,null,null,null,null,null,null,null,null,null,null,null,null,null,null,null,null,null,null,null,null,null,null,null,null,null,null,null,null,null,null,null,null,null,null,null,null,null,null,null,null,null,null,null,null,null,null,null,null,null,null,null,null,null,null,null,"01","02","03","04","05","06","07","08","09","10","11","12","13","14","15","16"]
[]
[null,"Notes:"]
[null,"1.",null,"Maksima dalam senarai grup adalah 50. Tetapi jika fail menjadi terlalu besar dan perlahan, pecahkan menjadi fail-fail kecil dengan senarai lebih kecil."]
[null,"2.",null,"User ID 3-digit mestilah dalam huruf besar, contoh: AB3. Sila dapatkan User ID sebenar dari Admin anda."]
[null,"3.",null,"Cascader akan hanya memproses satu nama yang dipilih pada satu masa. Status Cascade akan menunjukkan \"Done\" apabila selesai."]
[null,"4.",null,"Hanya KPI yang \"Cascade Ready\" untuk nama yang dipilih saja yang akan dicascade."]
[null,"5.",null,"Ulangan Cascader atas nama pilihan yang sama dibenarkan. Tetapi akan menimpa data sebelumnya, jika ada."]
[null,"6.",null,"Jika Shortname, contoh: Ahmad, dimasukkan ke kotak Cascade 1, 2, 3, 4 atau 5; Cascader secara automatik akan mencari KPI ID bebas seterusnya dalam Ahmad untuk digunakan."]
[null,"7.",null,"Jika ID KPI, contoh: AB301, dimasukkan ke kotak Cascade 1, 2, 3, 4 atau 5; maka AB301 akan digunakan dan akan menimpa data sebelumnya di situ, jika ada."]
[null,"8.",null,"Jika dimasukkan ID KPI ke kotak Cascade 1, 2, 3, 4 atau 5, gunakan hanya Huruf Besar sahaja (contoh: AB301)."]
[null,"9.",null,"Setelah semua nama diselesaikan, cetak worksheet untuk setiap nama dan edarkan."]

{"sheet":"Ahmad","index":1,"n_rows":37,"n_cols":42,"rows_kept":37,"cut":false,"hidden":false,"merged":[[36,19,36,20],[36,21,36,26],[34,18,35,18],[34,20,35,20],[34,22,35,22],[34,24,35,24],[34,26,35,26],[36,0,36,2],[36,5,36,9],[36,10,36,11],[36,12,36,13],[36,14,36,18],[34,8,35,8],[34,9,35,9],[34,10,35,10],[34,12,35,12],[34,14,35,14],[34,16,35,16],[34,1,35,1],[34,2,35,2],[34,4,35,4],[34,5,35,5],[34,6,35,6],[34,7,35,7],[32,16,33,16],[32,18,33,18],[32,20,33,20],[32,22,33,22],[32,24,33,24],[32,26,33,26],[32,7,33,7],[32,8,33,8],[32,9,33,9],[32,10,33,10],[32,12,33,12],[32,14,33,14],[30,18,31,18],[30,20,31,20],[30,22,31,22],[30,24,31,24],[30,26,31,26],[32,1,33,1],[32,2,33,2],[32,4,33,4],[32,5,33,5],[32,6,33,6],[30,8,31,8],[30,9,31,9],[30,10,31,10],[30,12,31,12],[30,14,31,14],[30,16,31,16],[30,1,31,1],[30,2,31,2],[30,4,31,4],[30,5,31,5],[30,6,31,6],[30,7,31,7],[28,16,29,16],[28,18,29,18],[28,20,29,20],[28,22,29,22],[28,24,29,24],[28,26,29,26],[28,7,29,7],[28,8,29,8],[28,9,29,9],[28,10,29,10],[28,12,29,12],[28,14,29,14],[26,18,27,18],[26,20,27,20],[26,22,27,22],[26,24,27,24],[26,26,27,26],[28,1,29,1],[28,2,29,2],[28,4,29,4],[28,5,29,5],[28,6,29,6],[26,8,27,8],[26,9,27,9],[26,10,27,10],[26,12,27,12],[26,14,27,14],[26,16,27,16],[26,1,27,1],[26,2,27,2],[26,4,27,4],[26,5,27,5],[26,6,27,6],[26,7,27,7],[24,16,25,16],[24,18,25,18],[24,20,25,20],[24,22,25,22],[24,24,25,24],[24,26,25,26],[24,7,25,7],[24,8,25,8],[24,9,25,9],[24,10,25,10],[24,12,25,12],[24,14,25,14],[22,18,23,18],[22,20,23,20],[22,22,23,22],[22,24,23,24],[22,26,23,26],[24,1,25,1],[24,2,25,2],[24,4,25,4],[24,5,25,5],[24,6,25,6],[22,8,23,8],[22,9,23,9],[22,10,23,10],[22,12,23,12],[22,14,23,14],[22,16,23,16],[22,1,23,1],[22,2,23,2],[22,4,23,4],[22,5,23,5],[22,6,23,6],[22,7,23,7],[20,16,21,16],[20,18,21,18],[20,20,21,20],[20,22,21,22],[20,24,21,24],[20,26,21,26],[20,7,21,7],[20,8,21,8],[20,9,21,9],[20,10,21,10],[20,12,21,12],[20,14,21,14],[18,18,19,18],[18,20,19,20],[18,22,19,22],[18,24,19,24],[18,26,19,26],[20,1,21,1],[20,2,21,2],[20,4,21,4],[20,5,21,5],[20,6,21,6],[18,8,19,8],[18,9,19,9],[18,10,19,10],[18,12,19,12],[18,14,19,14],[18,16,19,16],[18,1,19,1],[18,2,19,2],[18,4,19,4],[18,5,19,5],[18,6,19,6],[18,7,19,7],[16,16,17,16],[16,18,17,18],[16,20,17,20],[16,22,17,22],[16,24,17,24],[16,26,17,26],[16,7,17,7],[16,8,17,8],[16,9,17,9],[16,10,17,10],[16,12,17,12],[16,14,17,14],[14,18,15,18],[14,20,15,20],[14,22,15,22],[14,24,15,24],[14,26,15,26],[16,1,17,1],[16,2,17,2],[16,4,17,4],[16,5,17,5],[16,6,17,6],[14,8,15,8],[14,9,15,9],[14,10,15,10],[14,12,15,12],[14,14,15,14],[14,16,15,16],[14,1,15,1],[14,2,15,2],[14,4,15,4],[14,5,15,5],[14,6,15,6],[14,7,15,7],[12,16,13,16],[12,18,13,18],[12,20,13,20],[12,22,13,22],[12,24,13,24],[12,26,13,26],[12,7,13,7],[12,8,13,8],[12,9,13,9],[12,10,13,10],[12,12,13,12],[12,14,13,14],[10,18,11,18],[10,20,11,20],[10,22,11,22],[10,24,11,24],[10,26,11,26],[12,1,13,1],[12,2,13,2],[12,4,13,4],[12,5,13,5],[12,6,13,6],[10,8,11,8],[10,9,11,9],[10,10,11,10],[10,12,11,12],[10,14,11,14],[10,16,11,16],[10,1,11,1],[10,2,11,2],[10,4,11,4],[10,5,11,5],[10,6,11,6],[10,7,11,7],[8,16,9,16],[8,18,9,18],[8,20,9,20],[8,22,9,22],[8,24,9,24],[8,26,9,26],[8,7,9,7],[8,8,9,8],[8,9,9,9],[8,10,9,10],[8,12,9,12],[8,14,9,14],[6,18,7,18],[6,20,7,20],[6,22,7,22],[6,24,7,24],[6,26,7,26],[8,1,9,1],[8,2,9,2],[8,4,9,4],[8,5,9,5],[8,6,9,6],[6,8,7,8],[6,9,7,9],[6,10,7,10],[6,12,7,12],[6,14,7,14],[6,16,7,16],[6,1,7,1],[6,2,7,2],[6,4,7,4],[6,5,7,5],[6,6,7,6],[6,7,7,7],[4,16,5,16],[4,18,5,18],[4,20,5,20],[4,22,5,22],[4,24,5,24],[4,26,5,26],[4,7,5,7],[4,8,5,8],[4,9,5,9],[4,10,5,10],[4,12,5,12],[4,14,5,14],[1,22,2,22],[1,23,2,23],[1,24,2,24],[1,25,2,25],[1,26,2,26],[4,1,5,1],[4,2,5,2],[4,4,5,4],[4,5,5,5],[4,6,5,6],[1,16,2,16],[1,17,2,17],[1,18,2,18],[1,19,2,19],[1,20,2,20],[1,21,2,21],[0,7,2,7],[0,8,2,8],[0,9,2,9],[0,10,2,10],[0,11,0,26],[1,11,2,11],[1,12,2,12],[1,13,2,13],[1,14,2,14],[1,15,2,15],[0,0,2,0],[0,1,2,1],[0,3,1,3],[0,4,2,4],[0,5,2,5],[0,6,2,6]]}
["Terima Cascade Dari?","ID KPI","C A S C A D E R    T O O L","«\nWajaran","Metoda\nUkuran","SMART\nSasaran\n(Elakkan 0)","Jenis","Wk Mula","Wk Dead Line","Cascade Ke Bawah?","Kontribusi\nSendiri","Cascade Ke Bawah"]
[null,null,"          Deskripsi Spesifik KPI",null,null,null,null,null,null,null,null,"Cascade\n1","Kontribusi","Cascade\n2","Kontribusi","Cascade\n3","Kontribusi","Cascade\n4","Kontribusi","Cascade\n5","Kontribusi","Cascade\n6","Kontrib","Cascade\n7","Kontrib","Cascade\n8","Kontrib","Cascade\nReady?"]
[null,null,null,"%"]
[2021,"AD3","Ahmad bin Mohd Nor: Ketua Jabatan ICT"]
[null,{"$f":"CONCATENATE($B$4,\"01\")","v":"AD301"},"BR20 Mencapai pembangunan dan pelaksanaan Sistem e-HRM","3⍟","Percentage",100,"A",1,48,"%Prorated",0,"Brian",100,null,null,null,null,null,null,null,null,null,null,null,null,null,null,{"$f":"IF(OR(C5=\"\",E5=\"\",F5=\"\",G5=\"\",H5=\"\",I5=\"\",J5=\"\",J5=\"No\"),FALSE,TRUE)","v":true},null,null,null,null,null,null,null,null,null,null,null,null,null,{"$f":"IFERROR(VALUE(LEFT(D5,1)),\"\")","v":3}]
[null,null,null,{"$f":"IFERROR($AP5*100/$AP$21,0)","v":30},null,null,null,null,null,null,null,"BF201",null,null,null,null,null,null,null,null,null,null,null,null,null,null,null,null,null,null,null,null,null,null,null,null,null,null,null,null,null,{"$f":"IFERROR(VALUE(LEFT(D7,1)),\"\")","v":3}]
[null,{"$f":"CONCATENATE($B$4,\"02\")","v":"AD302"},"BR61 Mencapai penambahbaikan Sistem e-Jualan (Bilangan modul tambahan)","3⍟","Number",15,"A",1,40,"Absolute",0,"Brian",15,null,null,null,null,null,null,null,null,null,null,null,null,null,null,{"$f":"IF(OR(C7=\"\",E7=\"\",F7=\"\",G7=\"\",H7=\"\",I7=\"\",J7=\"\",J7=\"No\"),FALSE,TRUE)","v":true},null,null,null,null,null,null,null,null,null,null,null,null,null,{"$f":"IFERROR(VALUE(LEFT(D9,1)),\"\")","v":4}]
[null,null,null,{"$f":"IFERROR($AP6*100/$AP$21,0)","v":30},null,null,null,null,null,null,null,"BF202",null,null,null,null,null,null,null,null,null,null,null,null,null,null,null,null,null,null,null,null,null,null,null,null,null,null,null,null,null,{"$f":"IFERROR(VALUE(LEFT(D11,1)),\"\")","v":""}]
[null,{"$f":"CONCATENATE($B$4,\"03\")","v":"AD303"},"BR34 Mengekalkan Kesediaan Untuk Pengunaan Internet dalaman (Had jam maksima down time dalam sebulan)","4⍟","MaxLimit",10,"M",1,52,"%Prorated",0,"Charlie",100,null,null,null,null,null,null,null,null,null,null,null,null,null,null,{"$f":"IF(OR(C9=\"\",E9=\"\",F9=\"\",G9=\"\",H9=\"\",I9=\"\",J9=\"\",J9=\"No\"),FALSE,TRUE)","v":true},null,null,null,null,null,null,null,null,null,null,null,null,null,{"$f":"IFERROR(VALUE(LEFT(D13,1)),\"\")","v":""}]
[null,null,null,{"$f":"IFERROR($AP7*100/$AP$21,0)","v":40},null,null,null,null,null,null,null,"BG402",null,null,null,null,null,null,null,null,null,null,null,null,null,null,null,null,null,null,null,null,null,null,null,null,null,null,null,null,null,{"$f":"IFERROR(VALUE(LEFT(D15,1)),\"\")","v":""}]
[null,{"$f":"CONCATENATE($B$4,\"04\")","v":"AD304"},null,null,null,null,null,null,null,null,null,null,null,null,null,null,null,null,null,null,null,null,null,null,null,null,null,{"$f":"IF(OR(C11=\"\",E11=\"\",F11=\"\",G11=\"\",H11=\"\",I11=\"\",J11=\"\",J11=\"No\"),FALSE,TRUE)","v":false},null,null,null,null,null,null,null,null,null,null,null,null,null,{"$f":"IFERROR(VALUE(LEFT(D17,1)),\"\")","v":""}]
[null,null,null,{"$f":"IFERROR($AP8*100/$AP$21,0)","v":0},null,null,null,null,null,null,null,null,null,null,null,null,null,null,null,null,null,null,null,null,null,null,null,null,null,null,null,null,null,null,null,null,null,null,null,null,null,{"$f":"IFERROR(VALUE(LEFT(D19,1)),\"\")","v":""}]
[null,{"$f":"CONCATENATE($B$4,\"05\")","v":"AD305"},null,null,null,null,null,null,null,null,null,null,null,null,null,null,null,null,null,null,null,null,null,null,null,null,null,{"$f":"IF(OR(C13=\"\",E13=\"\",F13=\"\",G13=\"\",H13=\"\",I13=\"\",J13=\"\",J13=\"No\"),FALSE,TRUE)","v":false},null,null,null,null,null,null,null,null,null,null,null,null,null,{"$f":"IFERROR(VALUE(LEFT(D21,1)),\"\")","v":""}]
[null,null,null,{"$f":"IFERROR($AP9*100/$AP$21,0)","v":0},null,null,null,null,null,null,null,null,null,null,null,null,null,null,null,null,null,null,null,null,null,null,null,null,null,null,null,null,null,null,null,null,null,null,null,null,null,{"$f":"IFERROR(VALUE(LEFT(D23,1)),\"\")","v":""}]
[null,{"$f":"CONCATENATE($B$4,\"06\")","v":"AD306"},null,null,null,null,null,null,null,null,null,null,null,null,null,null,null,null,null,null,null,null,null,null,null,null,null,{"$f":"IF(OR(C15=\"\",E15=\"\",F15=\"\",G15=\"\",H15=\"\",I15=\"\",J15=\"\",J15=\"No\"),FALSE,TRUE)","v":false},null,null,null,null,null,null,null,null,null,null,null,null,null,{"$f":"IFERROR(VALUE(LEFT(D25,1)),\"\")","v":""}]
[null,null,null,{"$f":"IFERROR($AP10*100/$AP$21,0)","v":0},null,null,null,null,null,null,null,null,null,null,null,null,null,null,null,null,null,null,null,null,null,null,null,null,null,null,null,null,null,null,null,null,null,null,null,null,null,{"$f":"IFERROR(VALUE(LEFT(D27,1)),\"\")","v":""}]
[null,{"$f":"CONCATENATE($B$4,\"07\")","v":"AD307"},null,null,null,null,null,null,null,null,null,null,null,null,null,null,null,null,null,null,null,null,null,null,null,null,null,{"$f":"IF(OR(C17=\"\",E17=\"\",F17=\"\",G17=\"\",H17=\"\",I17=\"\",J17=\"\",J17=\"No\"),FALSE,TRUE)","v":false},null,null,null,null,null,null,null,null,null,null,null,null,null,{"$f":"IFERROR(VALUE(LEFT(D29,1)),\"\")","v":""}]
[null,null,null,{"$f":"IFERROR($AP11*100/$AP$21,0)","v":0},null,null,null,null,null,null,null,null,null,null,null,null,null,null,null,null,null,null,null,null,null,null,null,null,null,null,null,null,null,null,null,null,null,null,null,null,null,{"$f":"IFERROR(VALUE(LEFT(D31,1)),\"\")","v":""}]
[null,{"$f":"CONCATENATE($B$4,\"08\")","v":"AD308"},null,null,null,null,null,null,null,null,null,null,null,null,null,null,null,null,null,null,null,null,null,null,null,null,null,{"$f":"IF(OR(C19=\"\",E19=\"\",F19=\"\",G19=\"\",H19=\"\",I19=\"\",J19=\"\",J19=\"No\"),FALSE,TRUE)","v":false},null,null,null,null,null,null,null,null,null,null,null,null,null,{"$f":"IFERROR(VALUE(LEFT(D33,1)),\"\")","v":""}]
[null,null,null,{"$f":"IFERROR($AP12*100/$AP$21,0)","v":0},null,null,null,null,null,null,null,null,null,null,null,null,null,null,null,null,null,null,null,null,null,null,null,null,null,null,null,null,null,null,null,null,null,null,null,null,null,{"$f":"IFERROR(VALUE(LEFT(D35,1)),\"\")","v":""}]
[null,{"$f":"CONCATENATE($B$4,\"09\")","v":"AD309"},null,null,null,null,null,null,null,null,null,null,null,null,null,null,null,null,null,null,null,null,null,null,null,null,null,{"$f":"IF(OR(C21=\"\",E21=\"\",F21=\"\",G21=\"\",H21=\"\",I21=\"\",J21=\"\",J21=\"No\"),FALSE,TRUE)","v":false},null,null,null,null,null,null,null,null,null,null,null,null,null,{"$f":"IFERROR(IF(SUM(AP5:AP20)=0,1,SUM(AP5:AP20)),1)","v":10}]
[null,null,null,{"$f":"IFERROR($AP13*100/$AP$21,0)","v":0}]
[null,{"$f":"CONCATENATE($B$4,\"10\")","v":"AD310"},null,null,null,null,null,null,null,null,null,null,null,null,null,null,null,null,null,null,null,null,null,null,null,null,null,{"$f":"IF(OR(C23=\"\",E23=\"\",F23=\"\",G23=\"\",H23=\"\",I23=\"\",J23=\"\",J23=\"No\"),FALSE,TRUE)","v":false}]
[null,null,null,{"$f":"IFERROR($AP14*100/$AP$21,0)","v":0}]
[null,{"$f":"CONCATENATE($B$4,\"11\")","v":"AD311"},null,null,null,null,null,null,null,null,null,null,null,null,null,null,null,null,null,null,null,null,null,null,null,null,null,{"$f":"IF(OR(C25=\"\",E25=\"\",F25=\"\",G25=\"\",H25=\"\",I25=\"\",J25=\"\",J25=\"No\"),FALSE,TRUE)","v":false}]
[null,null,null,{"$f":"IFERROR($AP15*100/$AP$21,0)","v":0}]
[null,{"$f":"CONCATENATE($B$4,\"12\")","v":"AD312"},null,null,null,null,null,null,null,null,null,null,null,null,null,null,null,null,null,null,null,null,null,null,null,null,null,{"$f":"IF(OR(C27=\"\",E27=\"\",F27=\"\",G27=\"\",H27=\"\",I27=\"\",J27=\"\",J27=\"No\"),FALSE,TRUE)","v":false}]
[null,null,null,{"$f":"IFERROR($AP16*100/$AP$21,0)","v":0}]
[null,{"$f":"CONCATENATE($B$4,\"13\")","v":"AD313"},null,null,null,null,null,null,null,null,null,null,null,null,null,null,null,null,null,null,null,null,null,null,null,null,null,{"$f":"IF(OR(C29=\"\",E29=\"\",F29=\"\",G29=\"\",H29=\"\",I29=\"\",J29=\"\",J29=\"No\"),FALSE,TRUE)","v":false}]
[null,null,null,{"$f":"IFERROR($AP17*100/$AP$21,0)","v":0}]
[null,{"$f":"CONCATENATE($B$4,\"14\")","v":"AD314"},null,null,null,null,null,null,null,null,null,null,null,null,null,null,null,null,null,null,null,null,null,null,null,null,null,{"$f":"IF(OR(C31=\"\",E31=\"\",F31=\"\",G31=\"\",H31=\"\",I31=\"\",J31=\"\",J31=\"No\"),FALSE,TRUE)","v":false}]
[null,null,null,{"$f":"IFERROR($AP18*100/$AP$21,0)","v":0}]
[null,{"$f":"CONCATENATE($B$4,\"15\")","v":"AD315"},null,null,null,null,null,null,null,null,null,null,null,null,null,null,null,null,null,null,null,null,null,null,null,null,null,{"$f":"IF(OR(C33=\"\",E33=\"\",F33=\"\",G33=\"\",H33=\"\",I33=\"\",J33=\"\",J33=\"No\"),FALSE,TRUE)","v":false}]
[null,null,null,{"$f":"IFERROR($AP19*100/$AP$21,0)","v":0}]
[null,{"$f":"CONCATENATE($B$4,\"16\")","v":"AD316"},null,null,null,null,null,null,null,null,null,null,null,null,null,null,null,null,null,null,null,null,null,null,null,null,null,{"$f":"IF(OR(C35=\"\",E35=\"\",F35=\"\",G35=\"\",H35=\"\",I35=\"\",J35=\"\",J35=\"No\"),FALSE,TRUE)","v":false}]
[null,null,null,{"$f":"IFERROR($AP20*100/$AP$21,0)","v":0}]
[null,null,null,{"$f":"D6+D8+D10+D12+D14+D16+D18+D20+D22+D24+D26+D28+D30+D32+D34+D36","v":100},"Empunya:","Tandatangan",null,null,null,null,"Tarikh",null,"Diluluskan:",null,"Tandatangan",null,null,null,null,"Tarikh"]

{"sheet":"Brian","index":2,"n_rows":37,"n_cols":42,"rows_kept":37,"cut":false,"hidden":false,"merged":[[36,19,36,20],[36,21,36,26],[34,18,35,18],[34,20,35,20],[34,22,35,22],[34,24,35,24],[34,26,35,26],[36,0,36,2],[36,5,36,9],[36,10,36,11],[36,12,36,13],[36,14,36,18],[34,8,35,8],[34,9,35,9],[34,10,35,10],[34,12,35,12],[34,14,35,14],[34,16,35,16],[34,1,35,1],[34,2,35,2],[34,4,35,4],[34,5,35,5],[34,6,35,6],[34,7,35,7],[32,16,33,16],[32,18,33,18],[32,20,33,20],[32,22,33,22],[32,24,33,24],[32,26,33,26],[32,7,33,7],[32,8,33,8],[32,9,33,9],[32,10,33,10],[32,12,33,12],[32,14,33,14],[30,18,31,18],[30,20,31,20],[30,22,31,22],[30,24,31,24],[30,26,31,26],[32,1,33,1],[32,2,33,2],[32,4,33,4],[32,5,33,5],[32,6,33,6],[30,8,31,8],[30,9,31,9],[30,10,31,10],[30,12,31,12],[30,14,31,14],[30,16,31,16],[30,1,31,1],[30,2,31,2],[30,4,31,4],[30,5,31,5],[30,6,31,6],[30,7,31,7],[28,16,29,16],[28,18,29,18],[28,20,29,20],[28,22,29,22],[28,24,29,24],[28,26,29,26],[28,7,29,7],[28,8,29,8],[28,9,29,9],[28,10,29,10],[28,12,29,12],[28,14,29,14],[26,18,27,18],[26,20,27,20],[26,22,27,22],[26,24,27,24],[26,26,27,26],[28,1,29,1],[28,2,29,2],[28,4,29,4],[28,5,29,5],[28,6,29,6],[26,8,27,8],[26,9,27,9],[26,10,27,10],[26,12,27,12],[26,14,27,14],[26,16,27,16],[26,1,27,1],[26,2,27,2],[26,4,27,4],[26,5,27,5],[26,6,27,6],[26,7,27,7],[24,16,25,16],[24,18,25,18],[24,20,25,20],[24,22,25,22],[24,24,25,24],[24,26,25,26],[24,7,25,7],[24,8,25,8],[24,9,25,9],[24,10,25,10],[24,12,25,12],[24,14,25,14],[22,18,23,18],[22,20,23,20],[22,22,23,22],[22,24,23,24],[22,26,23,26],[24,1,25,1],[24,2,25,2],[24,4,25,4],[24,5,25,5],[24,6,25,6],[22,8,23,8],[22,9,23,9],[22,10,23,10],[22,12,23,12],[22,14,23,14],[22,16,23,16],[22,1,23,1],[22,2,23,2],[22,4,23,4],[22,5,23,5],[22,6,23,6],[22,7,23,7],[20,16,21,16],[20,18,21,18],[20,20,21,20],[20,22,21,22],[20,24,21,24],[20,26,21,26],[20,7,21,7],[20,8,21,8],[20,9,21,9],[20,10,21,10],[20,12,21,12],[20,14,21,14],[18,18,19,18],[18,20,19,20],[18,22,19,22],[18,24,19,24],[18,26,19,26],[20,1,21,1],[20,2,21,2],[20,4,21,4],[20,5,21,5],[20,6,21,6],[18,8,19,8],[18,9,19,9],[18,10,19,10],[18,12,19,12],[18,14,19,14],[18,16,19,16],[18,1,19,1],[18,2,19,2],[18,4,19,4],[18,5,19,5],[18,6,19,6],[18,7,19,7],[16,16,17,16],[16,18,17,18],[16,20,17,20],[16,22,17,22],[16,24,17,24],[16,26,17,26],[16,7,17,7],[16,8,17,8],[16,9,17,9],[16,10,17,10],[16,12,17,12],[16,14,17,14],[14,18,15,18],[14,20,15,20],[14,22,15,22],[14,24,15,24],[14,26,15,26],[16,1,17,1],[16,2,17,2],[16,4,17,4],[16,5,17,5],[16,6,17,6],[14,8,15,8],[14,9,15,9],[14,10,15,10],[14,12,15,12],[14,14,15,14],[14,16,15,16],[14,1,15,1],[14,2,15,2],[14,4,15,4],[14,5,15,5],[14,6,15,6],[14,7,15,7],[12,16,13,16],[12,18,13,18],[12,20,13,20],[12,22,13,22],[12,24,13,24],[12,26,13,26],[12,7,13,7],[12,8,13,8],[12,9,13,9],[12,10,13,10],[12,12,13,12],[12,14,13,14],[10,18,11,18],[10,20,11,20],[10,22,11,22],[10,24,11,24],[10,26,11,26],[12,1,13,1],[12,2,13,2],[12,4,13,4],[12,5,13,5],[12,6,13,6],[10,8,11,8],[10,9,11,9],[10,10,11,10],[10,12,11,12],[10,14,11,14],[10,16,11,16],[10,1,11,1],[10,2,11,2],[10,4,11,4],[10,5,11,5],[10,6,11,6],[10,7,11,7],[8,16,9,16],[8,18,9,18],[8,20,9,20],[8,22,9,22],[8,24,9,24],[8,26,9,26],[8,7,9,7],[8,8,9,8],[8,9,9,9],[8,10,9,10],[8,12,9,12],[8,14,9,14],[6,18,7,18],[6,20,7,20],[6,22,7,22],[6,24,7,24],[6,26,7,26],[8,1,9,1],[8,2,9,2],[8,4,9,4],[8,5,9,5],[8,6,9,6],[6,8,7,8],[6,9,7,9],[6,10,7,10],[6,12,7,12],[6,14,7,14],[6,16,7,16],[6,1,7,1],[6,2,7,2],[6,4,7,4],[6,5,7,5],[6,6,7,6],[6,7,7,7],[4,16,5,16],[4,18,5,18],[4,20,5,20],[4,22,5,22],[4,24,5,24],[4,26,5,26],[4,7,5,7],[4,8,5,8],[4,9,5,9],[4,10,5,10],[4,12,5,12],[4,14,5,14],[1,22,2,22],[1,23,2,23],[1,24,2,24],[1,25,2,25],[1,26,2,26],[4,1,5,1],[4,2,5,2],[4,4,5,4],[4,5,5,5],[4,6,5,6],[1,16,2,16],[1,17,2,17],[1,18,2,18],[1,19,2,19],[1,20,2,20],[1,21,2,21],[0,7,2,7],[0,8,2,8],[0,9,2,9],[0,10,2,10],[0,11,0,26],[1,11,2,11],[1,12,2,12],[1,13,2,13],[1,14,2,14],[1,15,2,15],[0,0,2,0],[0,1,2,1],[0,3,1,3],[0,4,2,4],[0,5,2,5],[0,6,2,6]]}
["Terima Cascade Dari?","ID KPI","C A S C A D E R    T O O L","«\nWajaran","Metoda\nUkuran","SMART\nSasaran\n(Elakkan 0)","Jenis","Wk Mula","Wk Dead Line","Cascade Ke Bawah?","Kontribusi\nSendiri","Cascade Ke Bawah"]
[null,null,"          Deskripsi Spesifik KPI",null,null,null,null,null,null,null,null,"Cascade\n1","Kontribusi","Cascade\n2","Kontribusi","Cascade\n3","Kontribusi","Cascade\n4","Kontribusi","Cascade\n5","Kontribusi","Cascade\n6","Kontrib","Cascade\n7","Kontrib","Cascade\n8","Kontrib","Cascade\nReady?"]
[null,null,null,"%"]
[2021,"BF2","Brian Khaw: Ketua Unit Pembangunan Software"]
["Ahmad",{"$f":"CONCATENATE($B$4,\"01\")","v":"BF201"},"BR20 Mencapai pembangunan dan pelaksanaan Sistem e-HRM","4⍟","Percentage",100,"A",1,48,"No",null,null,null,null,null,null,null,null,null,null,null,null,null,null,null,null,null,{"$f":"IF(OR(C5=\"\",E5=\"\",F5=\"\",G5=\"\",H5=\"\",I5=\"\",J5=\"\",J5=\"No\"),FALSE,TRUE)","v":false},null,null,null,null,null,null,null,null,null,null,null,null,null,{"$f":"IFERROR(VALUE(LEFT(D5,1)),\"\")","v":4}]
["AD301",null,null,{"$f":"IFERROR($AP5*100/$AP$21,0)","v":44.444444444444443},null,null,null,null,null,null,null,null,null,null,null,null,null,null,null,null,null,null,null,null,null,null,null,null,null,null,null,null,null,null,null,null,null,null,null,null,null,{"$f":"IFERROR(VALUE(LEFT(D7,1)),\"\")","v":2}]
["Ahmad",{"$f":"CONCATENATE($B$4,\"02\")","v":"BF202"},"BR61 Mencapai penambahbaikan Sistem e-Jualan (Bilangan modul tambahan)","2⍟","Number",15,"A",1,40,"Absolute",0,"Dahlan",15,null,null,null,null,null,null,null,null,null,null,null,null,null,null,{"$f":"IF(OR(C7=\"\",E7=\"\",F7=\"\",G7=\"\",H7=\"\",I7=\"\",J7=\"\",J7=\"No\"),FALSE,TRUE)","v":true},null,null,null,null,null,null,null,null,null,null,null,null,null,{"$f":"IFERROR(VALUE(LEFT(D9,1)),\"\")","v":3}]
["AD302",null,null,{"$f":"IFERROR($AP6*100/$AP$21,0)","v":22.222222222222221},null,null,null,null,null,null,null,"BB801",null,null,null,null,null,null,null,null,null,null,null,null,null,null,null,null,null,null,null,null,null,null,null,null,null,null,null,null,null,{"$f":"IFERROR(VALUE(LEFT(D11,1)),\"\")","v":""}]
[null,{"$f":"CONCATENATE($B$4,\"03\")","v":"BF203"},"OR12 Mencapai  Penyediaan Proses Kajian Untuk Pelaksanaan Pembangunan Sistem i-Sewaan","3⍟","Percentage",80,"A",1,26,"No",null,null,null,null,null,null,null,null,null,null,null,null,null,null,null,null,null,{"$f":"IF(OR(C9=\"\",E9=\"\",F9=\"\",G9=\"\",H9=\"\",I9=\"\",J9=\"\",J9=\"No\"),FALSE,TRUE)","v":false},null,null,null,null,null,null,null,null,null,null,null,null,null,{"$f":"IFERROR(VALUE(LEFT(D13,1)),\"\")","v":""}]
[null,null,null,{"$f":"IFERROR($AP7*100/$AP$21,0)","v":33.333333333333336},null,null,null,null,null,null,null,null,null,null,null,null,null,null,null,null,null,null,null,null,null,null,null,null,null,null,null,null,null,null,null,null,null,null,null,null,null,{"$f":"IFERROR(VALUE(LEFT(D15,1)),\"\")","v":""}]
[null,{"$f":"CONCATENATE($B$4,\"04\")","v":"BF204"},null,null,null,null,null,null,null,null,null,null,null,null,null,null,null,null,null,null,null,null,null,null,null,null,null,{"$f":"IF(OR(C11=\"\",E11=\"\",F11=\"\",G11=\"\",H11=\"\",I11=\"\",J11=\"\",J11=\"No\"),FALSE,TRUE)","v":false},null,null,null,null,null,null,null,null,null,null,null,null,null,{"$f":"IFERROR(VALUE(LEFT(D17,1)),\"\")","v":""}]
[null,null,null,{"$f":"IFERROR($AP8*100/$AP$21,0)","v":0},null,null,null,null,null,null,null,null,null,null,null,null,null,null,null,null,null,null,null,null,null,null,null,null,null,null,null,null,null,null,null,null,null,null,null,null,null,{"$f":"IFERROR(VALUE(LEFT(D19,1)),\"\")","v":""}]
[null,{"$f":"CONCATENATE($B$4,\"05\")","v":"BF205"},null,null,null,null,null,null,null,null,null,null,null,null,null,null,null,null,null,null,null,null,null,null,null,null,null,{"$f":"IF(OR(C13=\"\",E13=\"\",F13=\"\",G13=\"\",H13=\"\",I13=\"\",J13=\"\",J13=\"No\"),FALSE,TRUE)","v":false},null,null,null,null,null,null,null,null,null,null,null,null,null,{"$f":"IFERROR(VALUE(LEFT(D21,1)),\"\")","v":""}]
[null,null,null,{"$f":"IFERROR($AP9*100/$AP$21,0)","v":0},null,null,null,null,null,null,null,null,null,null,null,null,null,null,null,null,null,null,null,null,null,null,null,null,null,null,null,null,null,null,null,null,null,null,null,null,null,{"$f":"IFERROR(VALUE(LEFT(D23,1)),\"\")","v":""}]
[null,{"$f":"CONCATENATE($B$4,\"06\")","v":"BF206"},null,null,null,null,null,null,null,null,null,null,null,null,null,null,null,null,null,null,null,null,null,null,null,null,null,{"$f":"IF(OR(C15=\"\",E15=\"\",F15=\"\",G15=\"\",H15=\"\",I15=\"\",J15=\"\",J15=\"No\"),FALSE,TRUE)","v":false},null,null,null,null,null,null,null,null,null,null,null,null,null,{"$f":"IFERROR(VALUE(LEFT(D25,1)),\"\")","v":""}]
[null,null,null,{"$f":"IFERROR($AP10*100/$AP$21,0)","v":0},null,null,null,null,null,null,null,null,null,null,null,null,null,null,null,null,null,null,null,null,null,null,null,null,null,null,null,null,null,null,null,null,null,null,null,null,null,{"$f":"IFERROR(VALUE(LEFT(D27,1)),\"\")","v":""}]
[null,{"$f":"CONCATENATE($B$4,\"07\")","v":"BF207"},null,null,null,null,null,null,null,null,null,null,null,null,null,null,null,null,null,null,null,null,null,null,null,null,null,{"$f":"IF(OR(C17=\"\",E17=\"\",F17=\"\",G17=\"\",H17=\"\",I17=\"\",J17=\"\",J17=\"No\"),FALSE,TRUE)","v":false},null,null,null,null,null,null,null,null,null,null,null,null,null,{"$f":"IFERROR(VALUE(LEFT(D29,1)),\"\")","v":""}]
[null,null,null,{"$f":"IFERROR($AP11*100/$AP$21,0)","v":0},null,null,null,null,null,null,null,null,null,null,null,null,null,null,null,null,null,null,null,null,null,null,null,null,null,null,null,null,null,null,null,null,null,null,null,null,null,{"$f":"IFERROR(VALUE(LEFT(D31,1)),\"\")","v":""}]
[null,{"$f":"CONCATENATE($B$4,\"08\")","v":"BF208"},null,null,null,null,null,null,null,null,null,null,null,null,null,null,null,null,null,null,null,null,null,null,null,null,null,{"$f":"IF(OR(C19=\"\",E19=\"\",F19=\"\",G19=\"\",H19=\"\",I19=\"\",J19=\"\",J19=\"No\"),FALSE,TRUE)","v":false},null,null,null,null,null,null,null,null,null,null,null,null,null,{"$f":"IFERROR(VALUE(LEFT(D33,1)),\"\")","v":""}]
[null,null,null,{"$f":"IFERROR($AP12*100/$AP$21,0)","v":0},null,null,null,null,null,null,null,null,null,null,null,null,null,null,null,null,null,null,null,null,null,null,null,null,null,null,null,null,null,null,null,null,null,null,null,null,null,{"$f":"IFERROR(VALUE(LEFT(D35,1)),\"\")","v":""}]
[null,{"$f":"CONCATENATE($B$4,\"09\")","v":"BF209"},null,null,null,null,null,null,null,null,null,null,null,null,null,null,null,null,null,null,null,null,null,null,null,null,null,{"$f":"IF(OR(C21=\"\",E21=\"\",F21=\"\",G21=\"\",H21=\"\",I21=\"\",J21=\"\",J21=\"No\"),FALSE,TRUE)","v":false},null,null,null,null,null,null,null,null,null,null,null,null,null,{"$f":"IFERROR(IF(SUM(AP5:AP20)=0,1,SUM(AP5:AP20)),1)","v":9}]
[null,null,null,{"$f":"IFERROR($AP13*100/$AP$21,0)","v":0}]
[null,{"$f":"CONCATENATE($B$4,\"10\")","v":"BF210"},null,null,null,null,null,null,null,null,null,null,null,null,null,null,null,null,null,null,null,null,null,null,null,null,null,{"$f":"IF(OR(C23=\"\",E23=\"\",F23=\"\",G23=\"\",H23=\"\",I23=\"\",J23=\"\",J23=\"No\"),FALSE,TRUE)","v":false}]
[null,null,null,{"$f":"IFERROR($AP14*100/$AP$21,0)","v":0}]
[null,{"$f":"CONCATENATE($B$4,\"11\")","v":"BF211"},null,null,null,null,null,null,null,null,null,null,null,null,null,null,null,null,null,null,null,null,null,null,null,null,null,{"$f":"IF(OR(C25=\"\",E25=\"\",F25=\"\",G25=\"\",H25=\"\",I25=\"\",J25=\"\",J25=\"No\"),FALSE,TRUE)","v":false}]
[null,null,null,{"$f":"IFERROR($AP15*100/$AP$21,0)","v":0}]
[null,{"$f":"CONCATENATE($B$4,\"12\")","v":"BF212"},null,null,null,null,null,null,null,null,null,null,null,null,null,null,null,null,null,null,null,null,null,null,null,null,null,{"$f":"IF(OR(C27=\"\",E27=\"\",F27=\"\",G27=\"\",H27=\"\",I27=\"\",J27=\"\",J27=\"No\"),FALSE,TRUE)","v":false}]
[null,null,null,{"$f":"IFERROR($AP16*100/$AP$21,0)","v":0}]
[null,{"$f":"CONCATENATE($B$4,\"13\")","v":"BF213"},null,null,null,null,null,null,null,null,null,null,null,null,null,null,null,null,null,null,null,null,null,null,null,null,null,{"$f":"IF(OR(C29=\"\",E29=\"\",F29=\"\",G29=\"\",H29=\"\",I29=\"\",J29=\"\",J29=\"No\"),FALSE,TRUE)","v":false}]
[null,null,null,{"$f":"IFERROR($AP17*100/$AP$21,0)","v":0}]
[null,{"$f":"CONCATENATE($B$4,\"14\")","v":"BF214"},null,null,null,null,null,null,null,null,null,null,null,null,null,null,null,null,null,null,null,null,null,null,null,null,null,{"$f":"IF(OR(C31=\"\",E31=\"\",F31=\"\",G31=\"\",H31=\"\",I31=\"\",J31=\"\",J31=\"No\"),FALSE,TRUE)","v":false}]
[null,null,null,{"$f":"IFERROR($AP18*100/$AP$21,0)","v":0}]
[null,{"$f":"CONCATENATE($B$4,\"15\")","v":"BF215"},null,null,null,null,null,null,null,null,null,null,null,null,null,null,null,null,null,null,null,null,null,null,null,null,null,{"$f":"IF(OR(C33=\"\",E33=\"\",F33=\"\",G33=\"\",H33=\"\",I33=\"\",J33=\"\",J33=\"No\"),FALSE,TRUE)","v":false}]
[null,null,null,{"$f":"IFERROR($AP19*100/$AP$21,0)","v":0}]
[null,{"$f":"CONCATENATE($B$4,\"16\")","v":"BF216"},null,null,null,null,null,null,null,null,null,null,null,null,null,null,null,null,null,null,null,null,null,null,null,null,null,{"$f":"IF(OR(C35=\"\",E35=\"\",F35=\"\",G35=\"\",H35=\"\",I35=\"\",J35=\"\",J35=\"No\"),FALSE,TRUE)","v":false}]
[null,null,null,{"$f":"IFERROR($AP20*100/$AP$21,0)","v":0}]
[null,null,null,{"$f":"D6+D8+D10+D12+D14+D16+D18+D20+D22+D24+D26+D28+D30+D32+D34+D36","v":100},"Empunya:","Tandatangan",null,null,null,null,"Tarikh",null,"Diluluskan:",null,"Tandatangan",null,null,null,null,"Tarikh"]

{"sheet":"BF201","index":3,"n_rows":54,"n_cols":51,"rows_kept":54,"cut":false,"hidden":false,"merged":[[41,2,41,4],[41,6,41,9],[42,2,42,4],[42,6,42,9],[43,2,43,4],[43,6,43,9],[38,2,38,4],[38,6,38,9],[39,2,39,4],[39,6,39,9],[40,2,40,4],[40,6,40,9],[35,2,35,4],[35,6,35,9],[36,2,36,4],[36,6,36,9],[37,2,37,4],[37,6,37,9],[32,2,32,4],[32,6,32,9],[33,2,33,4],[33,6,33,9],[34,2,34,4],[34,6,34,9],[29,2,29,4],[29,6,29,9],[30,2,30,4],[30,6,30,9],[31,2,31,4],[31,6,31,9],[26,2,26,4],[26,6,26,9],[27,2,27,4],[27,6,27,9],[28,2,28,4],[28,6,28,9],[23,2,23,4],[23,6,23,9],[24,2,24,4],[24,6,24,9],[25,2,25,4],[25,6,25,9],[20,2,20,4],[20,6,20,9],[21,2,21,4],[21,6,21,9],[22,2,22,4],[22,6,22,9],[17,2,17,4],[17,6,17,9],[18,2,18,4],[18,6,18,9],[19,2,19,4],[19,6,19,9],[14,2,14,4],[14,6,14,9],[15,2,15,4],[15,6,15,9],[16,2,16,4],[16,6,16,9],[11,2,11,4],[11,6,11,9],[12,2,12,4],[12,6,12,9],[13,2,13,4],[13,6,13,9],[7,29,8,29],[7,31,8,31],[8,2,8,4],[9,2,9,4],[9,6,9,9],[10,2,10,4],[10,6,10,9],[5,2,7,2],[5,14,5,16],[5,20,5,21],[5,25,5,26],[7,6,7,9],[7,13,7,17],[7,19,7,22],[7,24,7,27],[0,5,0,9],[0,13,0,26],[1,11,1,13],[2,11,3,26],[4,20,4,21],[4,25,4,26]]}
[null,null,"Simple PROJECT Simpeo Benchmarks Series",null,null,{"$f":"Cascader!A3","v":2021},null,null,null,null,null,null,null,{"$f":"Cascader!D2","v":"SAMPEL CORPORATION BERHAD"}]
[null,null,"Nama: ","Brian",null,null,null,null,null,null,"ID KPI:","BF201",null,null,null,null,null,null,null,null,null,null,null,null,null,null,null,null,null,null,null,null,null,null,null,null,{"$f":"IF(AK4=\"N/A\",\"N/A\",\"Ok\")","v":"N/A"}]
[null,null,"Jawatan: ",null,null,null,null,null,null,null,"Deskripsi KPI:","BR20 Mencapai pembangunan dan pelaksanaan Sistem e-HRM",null,null,null,null,null,null,null,null,null,null,null,null,null,null,null,null,null,null,null,null,null,null,null,null,{"$f":"IF(AK5=\"N/A\",\"N/A\",\"Ok\")","v":"Ok"}]
[null,null,"Bahagian:",null,null,null,null,null,null,null,null,null,null,null,null,null,null,null,null,null,null,null,null,null,null,null,null,null,null,null,null,null,null,null,null,null,{"$f":"IFERROR(CHOOSE(L5,\"L\",\"M\",\"N\",\"O\",\"P\",\"Q\",\"R\",\"S\",\"T\",\"U\",\"V\",\"W\",\"X\",\"Y\",\"Z\",\"AA\",\"AB\",\"AC\",\"AD\",\"AE\",\"AF\",\"AG\",\"AH\",\"AI\",\"AJ\",\"AK\",\"AL\",\"AM\",\"AN\",\"AO\",\"AP\",\"AQ\",\"AR\",\"AS\",\"AT\",\"AU\",\"AV\",\"AW\",\"AX\",\"AY\",\"AZ\",\"BA\",\"BB\",\"BC\",\"BD\",\"BE\",\"BF\",\"BG\",\"BH\",\"BI\",\"BJ\",\"BK\",\"BK\"),\"N/A\")","v":"N/A"}]
[null,null,"Skor:","Minggu Deadline:",null,null,null,null,null,null,"Minggu Pilihan:",null,null,null,null,"%",null,null,null,null,"%",null,null,null,null,"%",null,null,null,null,null,"%",null,null,null,null,{"$f":"IFERROR(CHOOSE(RIGHT(L2,2),5,6,7,8,9,10,11,12,13,14,15,16,17,18,19),\"N/A\")","v":5}]
[null,null,{"$f":"IFERROR(AF45/100*AF47,\"N/A\")","v":0},null,null,null,null,null,null,null,null,null,null,null,80,null,null,null,null,null,10,null,null,null,null,10,null,null,null,null,null,{"$f":"O6+U6+Z6","v":100}]
[]
[null,null,null,null,null,null,"Saiz Wajaran",null,null,null,null,null,null,"Selesai Tugas",null,null,null,null,null,"Kualiti Kerja",null,null,null,null,"Ikut Bajet",null,null,null,null,"Lupakan",null,"Line\nSkor"]
["Tajuk","No","Deskripsi Tugasan",null,null,null,"⍟   1x","⍟⍟  2x","⍟⍟⍟ 3x","⍟⍟⍟⍟ 4x",null,"Wajar\n%",null,"Belum Mula","Permulaan","DalamProgres","Lanjut","Selesai",null,"Tidak Diguna","«  Poor","«« Fair","«««Meet",null,"Tidak Diguna","«  Poor","«« Fair","«««Meet",null,null,null,null,null,null,null,"H","W","C","Q","B","F","H","C","Q","B","Full Line Total","C","Q","B"]
[null,1,"Permohonan dan Kelulusan",null,null,null,null,null,null,null,{"$f":"IF(OR(C10=\"\",AJ10,AO10),0,AK10)","v":0},{"$f":"K10/K$45*100","v":0},null,null,null,null,null,null,null,null,null,null,null,null,null,null,null,null,null,null,null,{"$f":"IFERROR(L10*AY10,\"N/A\")","v":0},null,null,null,true,{"$f":"IFERROR(VALUE(LEFT($G10,1)),0)","v":0},1,4,4,false,{"$f":"IF(AJ10,0,1)","v":0},{"$f":"O$6","v":80},{"$f":"IF(AM10=1,0,U$6)","v":10},{"$f":"IF(AN10=1,0,Z$6)","v":10},{"$f":"SUM(AQ10:AS10)","v":100},{"$f":"(AL10-1)/4*AQ10","v":0},{"$f":"(AL10-1)/4*(AM10-1)/3*AR10","v":0},{"$f":"(AL10-1)/4*(AN10-1)/3*AS10","v":0},{"$f":"SUM(AU10:AW10)","v":0},{"$f":"IFERROR(AX10/AT10,\"N/A\")","v":0}]
[null,1.1000000000000001,"Penerimaan Permohonan",null,null,null,"1x ⍟",null,null,null,1,3.3333333333333335,null,null,null,null,null,null,null,null,null,null,null,null,null,null,null,null,null,null,null,0,null,null,null,false,{"$f":"IFERROR(VALUE(LEFT($G11,1)),0)","v":1},1,4,4,false,1,80,10,10,100,{"$f":"(AL11-1)/4*AQ11","v":0},{"$f":"(AL11-1)/4*(AM11-1)/3*AR11","v":0},{"$f":"(AL11-1)/4*(AN11-1)/3*AS11","v":0},0,0]
[null,1.2,"Kelulusan Ahli Jawatankuasa Teknikal ICT",null,null,null,"1x ⍟",null,null,null,1,3.3333333333333335,null,null,null,null,null,null,null,null,null,null,null,null,null,null,null,null,null,null,null,0,null,null,null,false,1,1,4,4,false,1,80,10,10,100,0,0,0,0,0]
[null,1.3,"Kelulusan Bahagian Perolehan",null,null,null,"1x ⍟",null,null,null,1,3.3333333333333335,null,null,null,null,null,null,null,null,null,null,null,null,null,null,null,null,null,null,null,0,null,null,null,false,1,1,4,4,false,1,80,10,10,100,0,0,0,0,0]
[null,1.4,"Kenalpasti Objektif Sistem",null,null,null,"1x ⍟",null,null,null,1,3.3333333333333335,null,null,null,null,null,null,null,null,null,null,null,null,null,null,null,null,null,null,null,0,null,null,null,false,1,1,4,4,false,1,80,10,10,100,0,0,0,0,0]
[null,2,"User Requirement Specification",null,null,null,null,null,null,null,0,0,null,null,null,null,null,null,null,null,null,null,null,null,null,null,null,null,null,null,null,0,null,null,null,true,0,1,4,4,false,0,80,10,10,100,0,0,0,0,0]
[null,2.1,"Mengenal Pasti Data Flow Diagram",null,null,null,"2x ⍟⍟",null,null,null,2,6.666666666666667,null,null,null,null,null,null,null,null,null,null,null,null,null,null,null,null,null,null,null,0,null,null,null,false,2,1,4,4,false,1,80,10,10,100,0,0,0,0,0]
[null,2.2000000000000002,"Mengenal Pasti Proses Kerja (SOP)",null,null,null,"2x ⍟⍟",null,null,null,2,6.666666666666667,null,null,null,null,null,null,null,null,null,null,null,null,null,null,null,null,null,null,null,0,null,null,null,false,2,1,4,4,false,1,80,10,10,100,0,0,0,0,0]
[null,2.2999999999999998,"Mengenal pasti Input, Output dan Proses Sistem",null,null,null,"2x ⍟⍟",null,null,null,2,6.666666666666667,null,null,null,null,null,null,null,null,null,null,null,null,null,null,null,null,null,null,null,0,null,null,null,false,2,1,4,4,false,1,80,10,10,100,0,0,0,0,0]
[null,2.4,"Membuat Prototype Sistem dan pengesahan",null,null,null,"3x ⍟⍟⍟",null,null,null,3,10,null,null,null,null,null,null,null,null,null,null,null,null,null,null,null,null,null,null,null,0,null,null,null,false,3,1,4,4,false,1,80,10,10,100,0,0,0,0,0]
[null,3,"Pembangunan Sistem",null,null,null,null,null,null,null,0,0,null,null,null,null,null,null,null,null,null,null,null,null,null,null,null,null,null,null,null,0,null,null,null,true,0,1,4,4,false,0,80,10,10,100,0,0,0,0,0]
[null,3.1,"Membangunkan Sistem",null,null,null,"4x ⍟⍟⍟⍟",null,null,null,4,13.333333333333334,null,null,null,null,null,null,null,null,null,null,null,null,null,null,null,null,null,null,null,0,null,null,null,false,4,1,4,4,false,1,80,10,10,100,0,0,0,0,0]
[null,3.2,"Trial RUN",null,null,null,"3x ⍟⍟⍟",null,null,null,3,10,null,null,null,null,null,null,null,null,null,null,null,null,null,null,null,null,null,null,null,0,null,null,null,false,3,1,4,4,false,1,80,10,10,100,0,0,0,0,0]
[null,3.3,"User Acceptance Testing",null,null,null,"3x ⍟⍟⍟",null,null,null,3,10,null,null,null,null,null,null,null,null,null,null,null,null,null,null,null,null,null,null,null,0,null,null,null,false,3,1,4,4,false,1,80,10,10,100,0,0,0,0,0]
[null,3.4,"Final Acceptance Testing",null,null,null,"3x ⍟⍟⍟",null,null,null,3,10,null,null,null,null,null,null,null,null,null,null,null,null,null,null,null,null,null,null,null,0,null,null,null,false,3,1,4,4,false,1,80,10,10,100,0,0,0,0,0]
[null,3.5,"Training Pengguna",null,null,null,"3x ⍟⍟⍟",null,null,null,3,10,null,null,null,null,null,null,null,null,null,null,null,null,null,null,null,null,null,null,null,0,null,null,null,false,3,1,4,4,false,1,80,10,10,100,0,0,0,0,0]
[null,3.6,"Going Live",null,null,null,"1x ⍟",null,null,null,1,3.3333333333333335,null,null,null,null,null,null,null,null,null,null,null,null,null,null,null,null,null,null,null,0,null,null,null,false,1,1,4,4,false,1,80,10,10,100,0,0,0,0,0]
[null,null,null,null,null,null,null,null,null,null,0,0,null,null,null,null,null,null,null,null,null,null,null,null,null,null,null,null,null,null,null,0,null,null,null,false,0,1,4,4,false,1,80,10,10,100,0,0,0,0,0]
[null,null,null,null,null,null,null,null,null,null,0,0,null,null,null,null,null,null,null,null,null,null,null,null,null,null,null,null,null,null,null,0,null,null,null,false,0,1,4,4,false,1,80,10,10,100,0,0,0,0,0]
[null,null,null,null,null,null,null,null,null,null,0,0,null,null,null,null,null,null,null,null,null,null,null,null,null,null,null,null,null,null,null,0,null,null,null,false,0,1,4,4,false,1,80,10,10,100,0,0,0,0,0]
[null,null,null,null,null,null,null,null,null,null,0,0,null,null,null,null,null,null,null,null,null,null,null,null,null,null,null,null,null,null,null,0,null,null,null,false,0,1,4,4,false,1,80,10,10,100,0,0,0,0,0]
[null,null,null,null,null,null,null,null,null,null,0,0,null,null,null,null,null,null,null,null,null,null,null,null,null,null,null,null,null,null,null,0,null,null,null,false,0,1,4,4,false,1,80,10,10,100,0,0,0,0,0]
[null,null,null,null,null,null,null,null,null,null,0,0,null,null,null,null,null,null,null,null,null,null,null,null,null,null,null,null,null,null,null,0,null,null,null,false,0,1,4,4,false,1,80,10,10,100,0,0,0,0,0]
[null,null,null,null,null,null,null,null,null,null,0,0,null,null,null,null,null,null,null,null,null,null,null,null,null,null,null,null,null,null,null,0,null,null,null,false,0,1,4,4,false,1,80,10,10,100,0,0,0,0,0]
[null,null,null,null,null,null,null,null,null,null,0,0,null,null,null,null,null,null,null,null,null,null,null,null,null,null,null,null,null,null,null,0,null,null,null,false,0,1,4,4,false,1,80,10,10,100,0,0,0,0,0]
[null,null,null,null,null,null,null,null,null,null,0,0,null,null,null,null,null,null,null,null,null,null,null,null,null,null,null,null,null,null,null,0,null,null,null,false,0,1,4,4,false,1,80,10,10,100,0,0,0,0,0]
[null,null,null,null,null,null,null,null,null,null,0,0,null,null,null,null,null,null,null,null,null,null,null,null,null,null,null,null,null,null,null,0,null,null,null,false,0,1,4,4,false,1,80,10,10,100,0,0,0,0,0]
[null,null,null,null,null,null,null,null,null,null,0,0,null,null,null,null,null,null,null,null,null,null,null,null,null,null,null,null,null,null,null,0,null,null,null,false,0,1,4,4,false,1,80,10,10,100,0,0,0,0,0]
[null,null,null,null,null,null,null,null,null,null,0,0,null,null,null,null,null,null,null,null,null,null,null,null,null,null,null,null,null,null,null,0,null,null,null,false,0,1,4,4,false,1,80,10,10,100,0,0,0,0,0]
[null,null,null,null,null,null,null,null,null,null,0,0,null,null,null,null,null,null,null,null,null,null,null,null,null,null,null,null,null,null,null,0,null,null,null,false,0,1,4,4,false,1,80,10,10,100,0,0,0,0,0]
[null,null,null,null,null,null,null,null,null,null,0,0,null,null,null,null,null,null,null,null,null,null,null,null,null,null,null,null,null,null,null,0,null,null,null,false,0,1,4,4,false,1,80,10,10,100,0,0,0,0,0]
[null,null,null,null,null,null,null,null,null,null,0,0,null,null,null,null,null,null,null,null,null,null,null,null,null,null,null,null,null,null,null,0,null,null,null,false,0,1,4,4,false,1,80,10,10,100,0,0,0,0,0]
[null,null,null,null,null,null,null,null,null,null,0,0,null,null,null,null,null,null,null,null,null,null,null,null,null,null,null,null,null,null,null,0,null,null,null,false,0,1,4,4,false,1,80,10,10,100,0,0,0,0,0]
[null,null,null,null,null,null,null,null,null,null,0,0,null,null,null,null,null,null,null,null,null,null,null,null,null,null,null,null,null,null,null,0,null,null,null,false,0,1,4,4,false,1,80,10,10,100,0,0,0,0,0]
[null,null,null,null,null,null,null,null,null,null,0,0,null,null,null,null,null,null,null,null,null,null,null,null,null,null,null,null,null,null,null,0,null,null,null,false,0,1,4,4,false,1,80,10,10,100,0,0,0,0,0]
[null,null,null,null,null,null,null,null,null,null,{"$f":"IF(SUM(K10:K44)=0,1,SUM(K10:K44))","v":30},{"$f":"SUM(L10:L44)","v":100},null,null,null,null,null,null,null,null,null,null,null,null,null,null,null,null,null,null,null,{"$f":"IFERROR(SUM(AF10:AF44)/L45*100,\"N/A\")","v":0}]
[]
[null,null,null,null,null,null,null,null,null,null,null,null,null,null,null,null,null,null,null,null,null,null,null,null,null,null,null,null,null,"Use Base:",null,100]
[]
[null,null,null,null,null,null,null,null,null,null,null,null,null,null,null,null,null,"A form by Leadersense Consulting & Systems Sdn Bhd @2017"]
[null,null,null,null,null,null,0]
[null,null,null,null,null,null,"1x ⍟"]
[null,null,null,null,null,null,"2x ⍟⍟"]
[null,null,null,null,null,null,"3x ⍟⍟⍟"]
[null,null,null,null,null,null,"4x ⍟⍟⍟⍟"]

{"sheet":"BF203","index":4,"n_rows":48,"n_cols":53,"rows_kept":48,"cut":false,"hidden":false,"merged":[[38,1,38,2],[38,4,38,7],[38,14,38,16],[38,18,38,21],[38,23,38,26],[36,1,36,2],[36,4,36,7],[36,14,36,16],[36,18,36,21],[36,23,36,26],[37,1,37,2],[37,4,37,7],[37,14,37,16],[37,18,37,21],[37,23,37,26],[34,1,34,2],[34,4,34,7],[34,14,34,16],[34,18,34,21],[34,23,34,26],[35,1,35,2],[35,4,35,7],[35,14,35,16],[35,18,35,21],[35,23,35,26],[32,1,32,2],[32,4,32,7],[32,14,32,16],[32,18,32,21],[32,23,32,26],[33,1,33,2],[33,4,33,7],[33,14,33,16],[33,18,33,21],[33,23,33,26],[30,1,30,2],[30,4,30,7],[30,14,30,16],[30,18,30,21],[30,23,30,26],[31,1,31,2],[31,4,31,7],[31,14,31,16],[31,18,31,21],[31,23,31,26],[28,1,28,2],[28,4,28,7],[28,14,28,16],[28,18,28,21],[28,23,28,26],[29,1,29,2],[29,4,29,7],[29,14,29,16],[29,18,29,21],[29,23,29,26],[26,1,26,2],[26,4,26,7],[26,14,26,16],[26,18,26,21],[26,23,26,26],[27,1,27,2],[27,4,27,7],[27,14,27,16],[27,18,27,21],[27,23,27,26],[24,1,24,2],[24,4,24,7],[24,14,24,16],[24,18,24,21],[24,23,24,26],[25,1,25,2],[25,4,25,7],[25,14,25,16],[25,18,25,21],[25,23,25,26],[22,1,22,2],[22,4,22,7],[22,14,22,16],[22,18,22,21],[22,23,22,26],[23,1,23,2],[23,4,23,7],[23,14,23,16],[23,18,23,21],[23,23,23,26],[20,1,20,2],[20,4,20,7],[20,14,20,16],[20,18,20,21],[20,23,20,26],[21,1,21,2],[21,4,21,7],[21,14,21,16],[21,18,21,21],[21,23,21,26],[18,1,18,2],[18,4,18,7],[18,14,18,16],[18,18,18,21],[18,23,18,26],[19,1,19,2],[19,4,19,7],[19,14,19,16],[19,18,19,21],[19,23,19,26],[16,1,16,2],[16,4,16,7],[16,14,16,16],[16,18,16,21],[16,23,16,26],[17,1,17,2],[17,4,17,7],[17,14,17,16],[17,18,17,21],[17,23,17,26],[14,1,14,2],[14,4,14,7],[14,14,14,16],[14,18,14,21],[14,23,14,26],[15,1,15,2],[15,4,15,7],[15,14,15,16],[15,18,15,21],[15,23,15,26],[12,1,12,2],[12,4,12,7],[12,14,12,16],[12,18,12,21],[12,23,12,26],[13,1,13,2],[13,4,13,7],[13,14,13,16],[13,18,13,21],[13,23,13,26],[10,1,10,2],[10,4,10,7],[10,14,10,16],[10,18,10,21],[10,23,10,26],[11,1,11,2],[11,4,11,7],[11,14,11,16],[11,18,11,21],[11,23,11,26],[7,28,8,28],[7,30,8,30],[7,32,8,32],[8,1,8,2],[9,1,9,2],[9,4,9,7],[9,14,9,16],[9,18,9,21],[9,23,9,26],[9,32,38,32],[5,1,7,1],[5,15,5,16],[5,19,5,20],[5,24,5,25],[7,4,7,7],[7,11,7,12],[7,14,7,16],[7,18,7,21],[7,23,7,26],[0,4,0,8],[0,11,0,25],[1,11,1,12],[2,11,3,26],[4,15,4,16],[4,19,4,20],[4,24,4,25]]}
[null,"Simple CHECKLIST Simpeo Benchmarks Series",null,null,{"$f":"Cascader!A3","v":2021},null,null,null,null,null,null,{"$f":"Cascader!D2","v":"SAMPEL CORPORATION BERHAD"}]
[null,"NAMA:","Brian",null,null,null,null,null,null,"ID KPI:",null,"BF203",null,null,null,null,null,null,null,null,null,null,null,null,null,null,null,null,null,null,null,null,null,null,{"$f":"IF(AI4=\"N/A\",\"N/A\",\"Ok\")","v":"N/A"}]
[null,"JAWATAN:",null,null,null,null,null,null,null,"Deskripsi KPI:",null,"OR12 Mencapai  Penyediaan Proses Kajian Untuk Pelaksanaan Pembangunan Sistem i-Sewaan",null,null,null,null,null,null,null,null,null,null,null,null,null,null,null,null,null,null,null,null,null,null,{"$f":"IF(AI5=\"N/A\",\"N/A\",\"Ok\")","v":"Ok"}]
[null,"BAHAGIAN:",null,null,null,null,null,null,null,null,null,null,null,null,null,null,null,null,null,null,null,null,null,null,null,null,null,null,null,null,null,null,null,null,{"$f":"IFERROR(CHOOSE(L5,\"L\",\"M\",\"N\",\"O\",\"P\",\"Q\",\"R\",\"S\",\"T\",\"U\",\"V\",\"W\",\"X\",\"Y\",\"Z\",\"AA\",\"AB\",\"AC\",\"AD\",\"AE\",\"AF\",\"AG\",\"AH\",\"AI\",\"AJ\",\"AK\",\"AL\",\"AM\",\"AN\",\"AO\",\"AP\",\"AQ\",\"AR\",\"AS\",\"AT\",\"AU\",\"AV\",\"AW\",\"AX\",\"AY\",\"AZ\",\"BA\",\"BB\",\"BC\",\"BD\",\"BE\",\"BF\",\"BG\",\"BH\",\"BI\",\"BJ\",\"BK\",\"BK\"),\"N/A\")","v":"N/A"}]
[null,"Skor:",null,null,null,null,null,null,null,"Minggu Pilihan:",null,null,"%",null,null,"%",null,null,null,"%",null,null,null,null,"%",null,null,null,null,null,"%",null,null,null,{"$f":"IFERROR(CHOOSE(RIGHT(L2,2),5,6,7,8,9,10,11,12,13,14,15,16,17,18,19),\"N/A\")","v":7}]
[null,{"$f":"IFERROR(AE40/100*AE42,\"\")","v":0},null,null,null,null,null,null,null,null,null,null,70,null,null,10,null,null,null,10,null,null,null,null,10,null,null,null,null,null,{"$f":"M6+P6+T6+Y6","v":100},null,null,null,null,null,null,null,null,null,null,null,null,null,null,null,null,null,null,null,null,null,"L5"]
[]
[null,null,null,null,"Saiz Wajaran",null,null,null,null,null,null,"Penyelesaian",null,null,"Tepati Masa",null,null,null,"Kualiti",null,null,null,null,"Ikut Bajet",null,null,null,null,"  Lupakan þ",null,"Line\nSkor",null,"Catatan"]
["No","Deskripsi Tugasan",null,null,"⍟ 1x","⍟⍟ 2x","⍟⍟⍟ 3x","⍟⍟⍟⍟ 4x",null,"Wajar\n%",null,"Deadline","Selesai þ",null,"✪  Poor","✪✪ Fair","✪✪✪Meet",null,"Not Used","✪  Poor","✪✪ Fair","✪✪✪Meet",null,"Not Used","✪  Poor","✪✪ Fair","✪✪✪Meet"]
[1,"Kajian kenalpasti keperluan Sistem i-Sewaan ",null,null,"3x ⍟⍟⍟",null,null,null,{"$f":"IF(OR(B10=\"\",AM10),0,AI10)","v":3},{"$f":"I10/I$40*100","v":30},null,"2021-03-31",null,null,null,null,null,null,null,null,null,null,null,null,null,null,null,null,null,null,{"$f":"IFERROR(J10*AW10,\"N/A\")","v":0},null,null,null,{"$f":"IFERROR(VALUE(LEFT($E10,1)),0)","v":3},{"$f":"IFERROR(VALUE(LEFT($O10,1)),0)","v":0},{"$f":"IFERROR(VALUE(LEFT($S10,1)),0)","v":0},{"$f":"IFERROR(VALUE(LEFT($X10,1)),0)","v":0},false,{"$f":"IF($AX10,M$6,0)","v":0},{"$f":"P$6","v":10},{"$f":"IF(AK10=0,0,T$6)","v":0},{"$f":"IF(AL10=0,0,Y$6)","v":0},{"$f":"SUM(AN10:AQ10)","v":10},{"$f":"AJ10/3*AO10","v":0},{"$f":"AK10/3*AP10","v":0},{"$f":"AL10/3*AQ10","v":0},{"$f":"IF(AN10<>0,AN10+AS10+AT10+AU10,0)","v":0},{"$f":"IFERROR(AV10/AR10,\"N/A\")","v":0},false]
[2,"Penyediaan kajian feasibility awalan",null,null,"2x ⍟⍟",null,null,null,2,{"$f":"I11/I$40*100","v":20},null,"2021-04-30",null,null,null,null,null,null,null,null,null,null,null,null,null,null,null,null,null,null,{"$f":"IFERROR(J11*AW11,\"N/A\")","v":0},null,null,null,{"$f":"IFERROR(VALUE(LEFT($E11,1)),0)","v":2},{"$f":"IFERROR(VALUE(LEFT($O11,1)),0)","v":0},{"$f":"IFERROR(VALUE(LEFT($S11,1)),0)","v":0},{"$f":"IFERROR(VALUE(LEFT($X11,1)),0)","v":0},false,{"$f":"IF($AX11,M$6,0)","v":0},{"$f":"P$6","v":10},{"$f":"IF(AK11=0,0,T$6)","v":0},{"$f":"IF(AL11=0,0,Y$6)","v":0},{"$f":"SUM(AN11:AQ11)","v":10},{"$f":"AJ11/3*AO11","v":0},0,0,{"$f":"IF(AN11<>0,AN11+AS11+AT11+AU11,0)","v":0},{"$f":"IFERROR(AV11/AR11,\"N/A\")","v":0},false]
[3,"Penyediaan dokumentasi pra-kelayakan (Pre-Q) dan senarai kuantiti (BQ) sistem i-Sewaan",null,null,"3x ⍟⍟⍟",null,null,null,3,30,null,"2021-06-30",null,null,null,null,null,null,null,null,null,null,null,null,null,null,null,null,null,null,0,null,null,null,3,0,0,0,false,0,10,0,0,10,0,0,0,0,0,false]
[4,"Menyediakan template keperluan sistem bagi penilaian analisis tender",null,null,"2x ⍟⍟",null,null,null,2,20,null,"2021-06-30",null,null,null,null,null,null,null,null,null,null,null,null,null,null,null,null,null,null,0,null,null,null,2,0,0,0,false,0,10,0,0,10,0,0,0,0,0,false]
[5,null,null,null,null,null,null,null,0,0,null,null,null,null,null,null,null,null,null,null,null,null,null,null,null,null,null,null,null,null,0,null,null,null,0,0,0,0,false,0,10,0,0,10,0,0,0,0,0,false]
[6,null,null,null,null,null,null,null,0,0,null,null,null,null,null,null,null,null,null,null,null,null,null,null,null,null,null,null,null,null,0,null,null,null,0,0,0,0,false,0,10,0,0,10,0,0,0,0,0,false]
[7,null,null,null,null,null,null,null,0,0,null,null,null,null,null,null,null,null,null,null,null,null,null,null,null,null,null,null,null,null,0,null,null,null,0,0,0,0,false,0,10,0,0,10,0,0,0,0,0,false]
[8,null,null,null,null,null,null,null,0,0,null,null,null,null,null,null,null,null,null,null,null,null,null,null,null,null,null,null,null,null,0,null,null,null,0,0,0,0,false,0,10,0,0,10,0,0,0,0,0,false]
[9,null,null,null,null,null,null,null,0,0,null,null,null,null,null,null,null,null,null,null,null,null,null,null,null,null,null,null,null,null,0,null,null,null,0,0,0,0,false,0,10,0,0,10,0,0,0,0,0,false]
[10,null,null,null,null,null,null,null,0,0,null,null,null,null,null,null,null,null,null,null,null,null,null,null,null,null,null,null,null,null,0,null,null,null,0,0,0,0,false,0,10,0,0,10,0,0,0,0,0,false]
[11,null,null,null,null,null,null,null,0,0,null,null,null,null,null,null,null,null,null,null,null,null,null,null,null,null,null,null,null,null,0,null,null,null,0,0,0,0,false,0,10,0,0,10,0,0,0,0,0,false]
[12,null,null,null,null,null,null,null,0,0,null,null,null,null,null,null,null,null,null,null,null,null,null,null,null,null,null,null,null,null,0,null,null,null,0,0,0,0,false,0,10,0,0,10,0,0,0,0,0,false]
[13,null,null,null,null,null,null,null,0,0,null,null,null,null,null,null,null,null,null,null,null,null,null,null,null,null,null,null,null,null,0,null,null,null,0,0,0,0,false,0,10,0,0,10,0,0,0,0,0,false]
[14,null,null,null,null,null,null,null,0,0,null,null,null,null,null,null,null,null,null,null,null,null,null,null,null,null,null,null,null,null,0,null,null,null,0,0,0,0,false,0,10,0,0,10,0,0,0,0,0,false]
[15,null,null,null,null,null,null,null,0,0,null,null,null,null,null,null,null,null,null,null,null,null,null,null,null,null,null,null,null,null,0,null,null,null,0,0,0,0,false,0,10,0,0,10,0,0,0,0,0,false]
[16,null,null,null,null,null,null,null,0,0,null,null,null,null,null,null,null,null,null,null,null,null,null,null,null,null,null,null,null,null,0,null,null,null,0,0,0,0,false,0,10,0,0,10,0,0,0,0,0,false]
[17,null,null,null,null,null,null,null,0,0,null,null,null,null,null,null,null,null,null,null,null,null,null,null,null,null,null,null,null,null,0,null,null,null,0,0,0,0,false,0,10,0,0,10,0,0,0,0,0,false]
[18,null,null,null,null,null,null,null,0,0,null,null,null,null,null,null,null,null,null,null,null,null,null,null,null,null,null,null,null,null,0,null,null,null,0,0,0,0,false,0,10,0,0,10,0,0,0,0,0,false]
[19,null,null,null,null,null,null,null,0,0,null,null,null,null,null,null,null,null,null,null,null,null,null,null,null,null,null,null,null,null,0,null,null,null,0,0,0,0,false,0,10,0,0,10,0,0,0,0,0,false]
[20,null,null,null,null,null,null,null,0,0,null,null,null,null,null,null,null,null,null,null,null,null,null,null,null,null,null,null,null,null,0,null,null,null,0,0,0,0,false,0,10,0,0,10,0,0,0,0,0,false]
[21,null,null,null,null,null,null,null,0,0,null,null,null,null,null,null,null,null,null,null,null,null,null,null,null,null,null,null,null,null,0,null,null,null,0,0,0,0,false,0,10,0,0,10,0,0,0,0,0,false]
[22,null,null,null,null,null,null,null,0,0,null,null,null,null,null,null,null,null,null,null,null,null,null,null,null,null,null,null,null,null,0,null,null,null,0,0,0,0,false,0,10,0,0,10,0,0,0,0,0,false]
[23,null,null,null,null,null,null,null,0,0,null,null,null,null,null,null,null,null,null,null,null,null,null,null,null,null,null,null,null,null,0,null,null,null,0,0,0,0,false,0,10,0,0,10,0,0,0,0,0,false]
[24,null,null,null,null,null,null,null,0,0,null,null,null,null,null,null,null,null,null,null,null,null,null,null,null,null,null,null,null,null,0,null,null,null,0,0,0,0,false,0,10,0,0,10,0,0,0,0,0,false]
[25,null,null,null,null,null,null,null,0,0,null,null,null,null,null,null,null,null,null,null,null,null,null,null,null,null,null,null,null,null,0,null,null,null,0,0,0,0,false,0,10,0,0,10,0,0,0,0,0,false]
[26,null,null,null,null,null,null,null,0,0,null,null,null,null,null,null,null,null,null,null,null,null,null,null,null,null,null,null,null,null,0,null,null,null,0,0,0,0,false,0,10,0,0,10,0,0,0,0,0,false]
[27,null,null,null,null,null,null,null,0,0,null,null,null,null,null,null,null,null,null,null,null,null,null,null,null,null,null,null,null,null,0,null,null,null,0,0,0,0,false,0,10,0,0,10,0,0,0,0,0,false]
[28,null,null,null,null,null,null,null,0,0,null,null,null,null,null,null,null,null,null,null,null,null,null,null,null,null,null,null,null,null,0,null,null,null,0,0,0,0,false,0,10,0,0,10,0,0,0,0,0,false]
[29,null,null,null,null,null,null,null,0,0,null,null,null,null,null,null,null,null,null,null,null,null,null,null,null,null,null,null,null,null,0,null,null,null,0,0,0,0,false,0,10,0,0,10,0,0,0,0,0,false]
[30,null,null,null,null,null,null,null,0,0,null,null,null,null,null,null,null,null,null,null,null,null,null,null,null,null,null,null,null,null,0,null,null,null,0,0,0,0,false,0,10,0,0,10,0,0,0,0,0,false]
[null,null,null,null,null,null,null,null,{"$f":"IF(SUM(I10:I39)=0,1,SUM(I10:I39))","v":10},{"$f":"SUM(J10:J39)","v":100},null,null,null,null,null,null,null,null,null,null,null,null,null,null,null,null,null,null,null,null,{"$f":"IFERROR(SUM(AE10:AE39)/J40*100,\"N/A\")","v":0}]
[]
[null,null,null,null,null,null,null,null,null,null,null,null,null,null,null,null,null,null,null,null,null,null,null,null,null,null,null,null,"Use Base:",null,100]
[]
[null,null,null,null,null,null,null,null,null,null,null,null,null,null,null,null,"A form by Leadersense Consulting & Systems Sdn Bhd @2017"]
[null,null,null,null,"1x ⍟",null,null,null,null,null,null,null,null,null,"1✪",null,null,null,"Not Used",null,null,null,null,"Not Used"]
[null,null,null,null,"2x ⍟⍟",null,null,null,null,null,null,null,null,null,"2✪✪",null,null,null,"1✪",null,null,null,null,"1✪"]
[null,null,null,null,"3x ⍟⍟⍟",null,null,null,null,null,null,null,null,null,"3✪✪✪",null,null,null,"2✪✪",null,null,null,null,"2✪✪"]
[null,null,null,null,"4x ⍟⍟⍟⍟",null,null,null,null,null,null,null,null,null,null,null,null,null,"3✪✪✪",null,null,null,null,"3✪✪✪"]

{"sheet":"Charlie","index":5,"n_rows":37,"n_cols":42,"rows_kept":37,"cut":false,"hidden":false,"merged":[[36,19,36,20],[36,21,36,26],[34,18,35,18],[34,20,35,20],[34,22,35,22],[34,24,35,24],[34,26,35,26],[36,0,36,2],[36,5,36,9],[36,10,36,11],[36,12,36,13],[36,14,36,18],[34,8,35,8],[34,9,35,9],[34,10,35,10],[34,12,35,12],[34,14,35,14],[34,16,35,16],[34,1,35,1],[34,2,35,2],[34,4,35,4],[34,5,35,5],[34,6,35,6],[34,7,35,7],[32,16,33,16],[32,18,33,18],[32,20,33,20],[32,22,33,22],[32,24,33,24],[32,26,33,26],[32,7,33,7],[32,8,33,8],[32,9,33,9],[32,10,33,10],[32,12,33,12],[32,14,33,14],[30,18,31,18],[30,20,31,20],[30,22,31,22],[30,24,31,24],[30,26,31,26],[32,1,33,1],[32,2,33,2],[32,4,33,4],[32,5,33,5],[32,6,33,6],[30,8,31,8],[30,9,31,9],[30,10,31,10],[30,12,31,12],[30,14,31,14],[30,16,31,16],[30,1,31,1],[30,2,31,2],[30,4,31,4],[30,5,31,5],[30,6,31,6],[30,7,31,7],[28,16,29,16],[28,18,29,18],[28,20,29,20],[28,22,29,22],[28,24,29,24],[28,26,29,26],[28,7,29,7],[28,8,29,8],[28,9,29,9],[28,10,29,10],[28,12,29,12],[28,14,29,14],[26,18,27,18],[26,20,27,20],[26,22,27,22],[26,24,27,24],[26,26,27,26],[28,1,29,1],[28,2,29,2],[28,4,29,4],[28,5,29,5],[28,6,29,6],[26,8,27,8],[26,9,27,9],[26,10,27,10],[26,12,27,12],[26,14,27,14],[26,16,27,16],[26,1,27,1],[26,2,27,2],[26,4,27,4],[26,5,27,5],[26,6,27,6],[26,7,27,7],[24,16,25,16],[24,18,25,18],[24,20,25,20],[24,22,25,22],[24,24,25,24],[24,26,25,26],[24,7,25,7],[24,8,25,8],[24,9,25,9],[24,10,25,10],[24,12,25,12],[24,14,25,14],[22,18,23,18],[22,20,23,20],[22,22,23,22],[22,24,23,24],[22,26,23,26],[24,1,25,1],[24,2,25,2],[24,4,25,4],[24,5,25,5],[24,6,25,6],[22,8,23,8],[22,9,23,9],[22,10,23,10],[22,12,23,12],[22,14,23,14],[22,16,23,16],[22,1,23,1],[22,2,23,2],[22,4,23,4],[22,5,23,5],[22,6,23,6],[22,7,23,7],[20,16,21,16],[20,18,21,18],[20,20,21,20],[20,22,21,22],[20,24,21,24],[20,26,21,26],[20,7,21,7],[20,8,21,8],[20,9,21,9],[20,10,21,10],[20,12,21,12],[20,14,21,14],[18,18,19,18],[18,20,19,20],[18,22,19,22],[18,24,19,24],[18,26,19,26],[20,1,21,1],[20,2,21,2],[20,4,21,4],[20,5,21,5],[20,6,21,6],[18,8,19,8],[18,9,19,9],[18,10,19,10],[18,12,19,12],[18,14,19,14],[18,16,19,16],[18,1,19,1],[18,2,19,2],[18,4,19,4],[18,5,19,5],[18,6,19,6],[18,7,19,7],[16,16,17,16],[16,18,17,18],[16,20,17,20],[16,22,17,22],[16,24,17,24],[16,26,17,26],[16,7,17,7],[16,8,17,8],[16,9,17,9],[16,10,17,10],[16,12,17,12],[16,14,17,14],[14,18,15,18],[14,20,15,20],[14,22,15,22],[14,24,15,24],[14,26,15,26],[16,1,17,1],[16,2,17,2],[16,4,17,4],[16,5,17,5],[16,6,17,6],[14,8,15,8],[14,9,15,9],[14,10,15,10],[14,12,15,12],[14,14,15,14],[14,16,15,16],[14,1,15,1],[14,2,15,2],[14,4,15,4],[14,5,15,5],[14,6,15,6],[14,7,15,7],[12,16,13,16],[12,18,13,18],[12,20,13,20],[12,22,13,22],[12,24,13,24],[12,26,13,26],[12,7,13,7],[12,8,13,8],[12,9,13,9],[12,10,13,10],[12,12,13,12],[12,14,13,14],[10,18,11,18],[10,20,11,20],[10,22,11,22],[10,24,11,24],[10,26,11,26],[12,1,13,1],[12,2,13,2],[12,4,13,4],[12,5,13,5],[12,6,13,6],[10,8,11,8],[10,9,11,9],[10,10,11,10],[10,12,11,12],[10,14,11,14],[10,16,11,16],[10,1,11,1],[10,2,11,2],[10,4,11,4],[10,5,11,5],[10,6,11,6],[10,7,11,7],[8,16,9,16],[8,18,9,18],[8,20,9,20],[8,22,9,22],[8,24,9,24],[8,26,9,26],[8,7,9,7],[8,8,9,8],[8,9,9,9],[8,10,9,10],[8,12,9,12],[8,14,9,14],[6,18,7,18],[6,20,7,20],[6,22,7,22],[6,24,7,24],[6,26,7,26],[8,1,9,1],[8,2,9,2],[8,4,9,4],[8,5,9,5],[8,6,9,6],[6,8,7,8],[6,9,7,9],[6,10,7,10],[6,12,7,12],[6,14,7,14],[6,16,7,16],[6,1,7,1],[6,2,7,2],[6,4,7,4],[6,5,7,5],[6,6,7,6],[6,7,7,7],[4,16,5,16],[4,18,5,18],[4,20,5,20],[4,22,5,22],[4,24,5,24],[4,26,5,26],[4,7,5,7],[4,8,5,8],[4,9,5,9],[4,10,5,10],[4,12,5,12],[4,14,5,14],[1,22,2,22],[1,23,2,23],[1,24,2,24],[1,25,2,25],[1,26,2,26],[4,1,5,1],[4,2,5,2],[4,4,5,4],[4,5,5,5],[4,6,5,6],[1,16,2,16],[1,17,2,17],[1,18,2,18],[1,19,2,19],[1,20,2,20],[1,21,2,21],[0,7,2,7],[0,8,2,8],[0,9,2,9],[0,10,2,10],[0,11,0,26],[1,11,2,11],[1,12,2,12],[1,13,2,13],[1,14,2,14],[1,15,2,15],[0,0,2,0],[0,1,2,1],[0,3,1,3],[0,4,2,4],[0,5,2,5],[0,6,2,6]]}
["Terima Cascade Dari?","ID KPI","C A S C A D E R    T O O L","«\nWajaran","Metoda\nUkuran","SMART\nSasaran\n(Elakkan 0)","Jenis","Wk Mula","Wk Dead Line","Cascade Ke Bawah?","Kontribusi\nSendiri","Cascade Ke Bawah"]
[null,null,"          Deskripsi Spesifik KPI",null,null,null,null,null,null,null,null,"Cascade\n1","Kontribusi","Cascade\n2","Kontribusi","Cascade\n3","Kontribusi","Cascade\n4","Kontribusi","Cascade\n5","Kontribusi","Cascade\n6","Kontrib","Cascade\n7","Kontrib","Cascade\n8","Kontrib","Cascade\nReady?"]
[null,null,null,"%"]
[2021,"BG4","Charlie Tan: Eksekutif Teknologi Maklumat"]
[null,{"$f":"CONCATENATE($B$4,\"01\")","v":"BG401"},"BR05 Mengekalkan penyelesaian aduan pengguna-pengguna IT pada tahap kepuasan yang baik","4⍟","Percentage",90,"M",1,52,"No",null,null,null,null,null,null,null,null,null,null,null,null,null,null,null,null,null,{"$f":"IF(OR(C5=\"\",E5=\"\",F5=\"\",G5=\"\",H5=\"\",I5=\"\",J5=\"\",J5=\"No\"),FALSE,TRUE)","v":false},null,null,null,null,null,null,null,null,null,null,null,null,null,{"$f":"IFERROR(VALUE(LEFT(D5,1)),\"\")","v":4}]
[null,null,null,{"$f":"IFERROR($AP5*100/$AP$21,0)","v":57.142857142857146},null,null,null,null,null,null,null,null,null,null,null,null,null,null,null,null,null,null,null,null,null,null,null,null,null,null,null,null,null,null,null,null,null,null,null,null,null,{"$f":"IFERROR(VALUE(LEFT(D7,1)),\"\")","v":3}]
["Ahmad",{"$f":"CONCATENATE($B$4,\"02\")","v":"BG402"},"BR34 Mengekalkan Kesediaan Untuk Pengunaan Internet dalaman (Had jam maksima down time dalam sebulan)","3⍟","MaxLimit",10,"M",1,52,"No",null,null,null,null,null,null,null,null,null,null,null,null,null,null,null,null,null,{"$f":"IF(OR(C7=\"\",E7=\"\",F7=\"\",G7=\"\",H7=\"\",I7=\"\",J7=\"\",J7=\"No\"),FALSE,TRUE)","v":false},null,null,null,null,null,null,null,null,null,null,null,null,null,{"$f":"IFERROR(VALUE(LEFT(D9,1)),\"\")","v":""}]
["AD303",null,null,{"$f":"IFERROR($AP6*100/$AP$21,0)","v":42.857142857142854},null,null,null,null,null,null,null,null,null,null,null,null,null,null,null,null,null,null,null,null,null,null,null,null,null,null,null,null,null,null,null,null,null,null,null,null,null,{"$f":"IFERROR(VALUE(LEFT(D11,1)),\"\")","v":""}]
[null,{"$f":"CONCATENATE($B$4,\"03\")","v":"BG403"},null,null,null,null,null,null,null,null,null,null,null,null,null,null,null,null,null,null,null,null,null,null,null,null,null,{"$f":"IF(OR(C9=\"\",E9=\"\",F9=\"\",G9=\"\",H9=\"\",I9=\"\",J9=\"\",J9=\"No\"),FALSE,TRUE)","v":false},null,null,null,null,null,null,null,null,null,null,null,null,null,{"$f":"IFERROR(VALUE(LEFT(D13,1)),\"\")","v":""}]
[null,null,null,{"$f":"IFERROR($AP7*100/$AP$21,0)","v":0},null,null,null,null,null,null,null,null,null,null,null,null,null,null,null,null,null,null,null,null,null,null,null,null,null,null,null,null,null,null,null,null,null,null,null,null,null,{"$f":"IFERROR(VALUE(LEFT(D15,1)),\"\")","v":""}]
[null,{"$f":"CONCATENATE($B$4,\"04\")","v":"BG404"},null,null,null,null,null,null,null,null,null,null,null,null,null,null,null,null,null,null,null,null,null,null,null,null,null,{"$f":"IF(OR(C11=\"\",E11=\"\",F11=\"\",G11=\"\",H11=\"\",I11=\"\",J11=\"\",J11=\"No\"),FALSE,TRUE)","v":false},null,null,null,null,null,null,null,null,null,null,null,null,null,{"$f":"IFERROR(VALUE(LEFT(D17,1)),\"\")","v":""}]
[null,null,null,{"$f":"IFERROR($AP8*100/$AP$21,0)","v":0},null,null,null,null,null,null,null,null,null,null,null,null,null,null,null,null,null,null,null,null,null,null,null,null,null,null,null,null,null,null,null,null,null,null,null,null,null,{"$f":"IFERROR(VALUE(LEFT(D19,1)),\"\")","v":""}]
[null,{"$f":"CONCATENATE($B$4,\"05\")","v":"BG405"},null,null,null,null,null,null,null,null,null,null,null,null,null,null,null,null,null,null,null,null,null,null,null,null,null,{"$f":"IF(OR(C13=\"\",E13=\"\",F13=\"\",G13=\"\",H13=\"\",I13=\"\",J13=\"\",J13=\"No\"),FALSE,TRUE)","v":false},null,null,null,null,null,null,null,null,null,null,null,null,null,{"$f":"IFERROR(VALUE(LEFT(D21,1)),\"\")","v":""}]
[null,null,null,{"$f":"IFERROR($AP9*100/$AP$21,0)","v":0},null,null,null,null,null,null,null,null,null,null,null,null,null,null,null,null,null,null,null,null,null,null,null,null,null,null,null,null,null,null,null,null,null,null,null,null,null,{"$f":"IFERROR(VALUE(LEFT(D23,1)),\"\")","v":""}]
[null,{"$f":"CONCATENATE($B$4,\"06\")","v":"BG406"},null,null,null,null,null,null,null,null,null,null,null,null,null,null,null,null,null,null,null,null,null,null,null,null,null,{"$f":"IF(OR(C15=\"\",E15=\"\",F15=\"\",G15=\"\",H15=\"\",I15=\"\",J15=\"\",J15=\"No\"),FALSE,TRUE)","v":false},null,null,null,null,null,null,null,null,null,null,null,null,null,{"$f":"IFERROR(VALUE(LEFT(D25,1)),\"\")","v":""}]
[null,null,null,{"$f":"IFERROR($AP10*100/$AP$21,0)","v":0},null,null,null,null,null,null,null,null,null,null,null,null,null,null,null,null,null,null,null,null,null,null,null,null,null,null,null,null,null,null,null,null,null,null,null,null,null,{"$f":"IFERROR(VALUE(LEFT(D27,1)),\"\")","v":""}]
[null,{"$f":"CONCATENATE($B$4,\"07\")","v":"BG407"},null,null,null,null,null,null,null,null,null,null,null,null,null,null,null,null,null,null,null,null,null,null,null,null,null,{"$f":"IF(OR(C17=\"\",E17=\"\",F17=\"\",G17=\"\",H17=\"\",I17=\"\",J17=\"\",J17=\"No\"),FALSE,TRUE)","v":false},null,null,null,null,null,null,null,null,null,null,null,null,null,{"$f":"IFERROR(VALUE(LEFT(D29,1)),\"\")","v":""}]
[null,null,null,{"$f":"IFERROR($AP11*100/$AP$21,0)","v":0},null,null,null,null,null,null,null,null,null,null,null,null,null,null,null,null,null,null,null,null,null,null,null,null,null,null,null,null,null,null,null,null,null,null,null,null,null,{"$f":"IFERROR(VALUE(LEFT(D31,1)),\"\")","v":""}]
[null,{"$f":"CONCATENATE($B$4,\"08\")","v":"BG408"},null,null,null,null,null,null,null,null,null,null,null,null,null,null,null,null,null,null,null,null,null,null,null,null,null,{"$f":"IF(OR(C19=\"\",E19=\"\",F19=\"\",G19=\"\",H19=\"\",I19=\"\",J19=\"\",J19=\"No\"),FALSE,TRUE)","v":false},null,null,null,null,null,null,null,null,null,null,null,null,null,{"$f":"IFERROR(VALUE(LEFT(D33,1)),\"\")","v":""}]
[null,null,null,{"$f":"IFERROR($AP12*100/$AP$21,0)","v":0},null,null,null,null,null,null,null,null,null,null,null,null,null,null,null,null,null,null,null,null,null,null,null,null,null,null,null,null,null,null,null,null,null,null,null,null,null,{"$f":"IFERROR(VALUE(LEFT(D35,1)),\"\")","v":""}]
[null,{"$f":"CONCATENATE($B$4,\"09\")","v":"BG409"},null,null,null,null,null,null,null,null,null,null,null,null,null,null,null,null,null,null,null,null,null,null,null,null,null,{"$f":"IF(OR(C21=\"\",E21=\"\",F21=\"\",G21=\"\",H21=\"\",I21=\"\",J21=\"\",J21=\"No\"),FALSE,TRUE)","v":false},null,null,null,null,null,null,null,null,null,null,null,null,null,{"$f":"IFERROR(IF(SUM(AP5:AP20)=0,1,SUM(AP5:AP20)),1)","v":7}]
[null,null,null,{"$f":"IFERROR($AP13*100/$AP$21,0)","v":0}]
[null,{"$f":"CONCATENATE($B$4,\"10\")","v":"BG410"},null,null,null,null,null,null,null,null,null,null,null,null,null,null,null,null,null,null,null,null,null,null,null,null,null,{"$f":"IF(OR(C23=\"\",E23=\"\",F23=\"\",G23=\"\",H23=\"\",I23=\"\",J23=\"\",J23=\"No\"),FALSE,TRUE)","v":false}]
[null,null,null,{"$f":"IFERROR($AP14*100/$AP$21,0)","v":0}]
[null,{"$f":"CONCATENATE($B$4,\"11\")","v":"BG411"},null,null,null,null,null,null,null,null,null,null,null,null,null,null,null,null,null,null,null,null,null,null,null,null,null,{"$f":"IF(OR(C25=\"\",E25=\"\",F25=\"\",G25=\"\",H25=\"\",I25=\"\",J25=\"\",J25=\"No\"),FALSE,TRUE)","v":false}]
[null,null,null,{"$f":"IFERROR($AP15*100/$AP$21,0)","v":0}]
[null,{"$f":"CONCATENATE($B$4,\"12\")","v":"BG412"},null,null,null,null,null,null,null,null,null,null,null,null,null,null,null,null,null,null,null,null,null,null,null,null,null,{"$f":"IF(OR(C27=\"\",E27=\"\",F27=\"\",G27=\"\",H27=\"\",I27=\"\",J27=\"\",J27=\"No\"),FALSE,TRUE)","v":false}]
[null,null,null,{"$f":"IFERROR($AP16*100/$AP$21,0)","v":0}]
[null,{"$f":"CONCATENATE($B$4,\"13\")","v":"BG413"},null,null,null,null,null,null,null,null,null,null,null,null,null,null,null,null,null,null,null,null,null,null,null,null,null,{"$f":"IF(OR(C29=\"\",E29=\"\",F29=\"\",G29=\"\",H29=\"\",I29=\"\",J29=\"\",J29=\"No\"),FALSE,TRUE)","v":false}]
[null,null,null,{"$f":"IFERROR($AP17*100/$AP$21,0)","v":0}]
[null,{"$f":"CONCATENATE($B$4,\"14\")","v":"BG414"},null,null,null,null,null,null,null,null,null,null,null,null,null,null,null,null,null,null,null,null,null,null,null,null,null,{"$f":"IF(OR(C31=\"\",E31=\"\",F31=\"\",G31=\"\",H31=\"\",I31=\"\",J31=\"\",J31=\"No\"),FALSE,TRUE)","v":false}]
[null,null,null,{"$f":"IFERROR($AP18*100/$AP$21,0)","v":0}]
[null,{"$f":"CONCATENATE($B$4,\"15\")","v":"BG415"},null,null,null,null,null,null,null,null,null,null,null,null,null,null,null,null,null,null,null,null,null,null,null,null,null,{"$f":"IF(OR(C33=\"\",E33=\"\",F33=\"\",G33=\"\",H33=\"\",I33=\"\",J33=\"\",J33=\"No\"),FALSE,TRUE)","v":false}]
[null,null,null,{"$f":"IFERROR($AP19*100/$AP$21,0)","v":0}]
[null,{"$f":"CONCATENATE($B$4,\"16\")","v":"BG416"},null,null,null,null,null,null,null,null,null,null,null,null,null,null,null,null,null,null,null,null,null,null,null,null,null,{"$f":"IF(OR(C35=\"\",E35=\"\",F35=\"\",G35=\"\",H35=\"\",I35=\"\",J35=\"\",J35=\"No\"),FALSE,TRUE)","v":false}]
[null,null,null,{"$f":"IFERROR($AP20*100/$AP$21,0)","v":0}]
[null,null,null,{"$f":"D6+D8+D10+D12+D14+D16+D18+D20+D22+D24+D26+D28+D30+D32+D34+D36","v":100},"Empunya:","Tandatangan",null,null,null,null,"Tarikh",null,"Diluluskan:",null,"Tandatangan",null,null,null,null,"Tarikh"]

{"sheet":"BG401","index":6,"n_rows":65,"n_cols":53,"rows_kept":65,"cut":false,"hidden":false,"merged":[[42,12,54,12],[43,2,43,5],[44,2,44,5],[45,2,45,5],[46,2,46,5],[47,2,47,5],[48,2,48,5],[49,2,49,5],[50,2,50,5],[51,2,51,5],[41,2,41,4],[41,5,41,9],[42,0,54,0],[42,2,42,5],[42,7,54,9],[42,10,54,10],[52,2,52,5],[53,2,53,5],[54,2,54,5],[26,10,38,10],[26,12,38,12],[27,2,27,5],[28,2,28,5],[29,2,29,5],[30,2,30,5],[31,2,31,5],[32,2,32,5],[33,2,33,5],[34,2,34,5],[22,2,22,5],[25,2,25,4],[25,5,25,9],[26,0,38,0],[26,2,26,5],[26,7,38,9],[35,2,35,5],[36,2,36,5],[37,2,37,5],[38,2,38,5],[16,2,16,5],[17,2,17,5],[18,2,18,5],[19,2,19,5],[20,2,20,5],[21,2,21,5],[10,0,22,0],[10,2,10,5],[10,7,22,9],[10,10,22,10],[10,12,22,12],[11,2,11,5],[12,2,12,5],[13,2,13,5],[14,2,14,5],[15,2,15,5],[0,3,1,9],[0,47,0,48],[3,4,5,10],[7,6,7,9],[9,2,9,4],[9,5,9,9]]}
[null,"SIMPLE RANKING Simpeo Benchmarks Series",null,{"$f":"Cascader!D2","v":"SAMPEL CORPORATION BERHAD"}]
[null,{"$f":"Cascader!A3","v":2021}]
[null,null,null,"ID KPI:","BG401"]
[null,"Nama:","Charlie","Deskripsi KPI:","BR05 Mengekalkan penyelesaian aduan pengguna-pengguna IT pada tahap kepuasan yang baik",null,null,null,null,null,null,null,null,null,null,null,null,null,null,null,null,null,null,null,null,null,null,null,null,null,null,null,null,null,null,null,null,null,null,null,null,null,null,null,null,null,null,{"$f":"IF(AV6=\"N/A\",\"N/A\",\"Ok\")","v":"N/A"}]
[null,"Jawatan:",null,null,null,null,null,null,null,null,null,null,null,null,null,null,null,null,null,null,null,null,null,null,null,null,null,null,null,null,null,null,null,null,null,null,null,null,null,null,null,null,null,null,null,null,null,{"$f":"IF(AV7=\"N/A\",\"N/A\",\"Ok\")","v":"Ok"}]
[null,"Bahagian:",null,null,null,null,null,null,null,null,null,null,null,null,null,null,null,null,null,null,null,null,null,null,null,null,null,null,null,null,null,null,null,null,null,null,null,null,null,null,null,null,null,null,null,null,null,{"$f":"IFERROR(CHOOSE(E7,\"L\",\"M\",\"N\",\"O\",\"P\",\"Q\",\"R\",\"S\",\"T\",\"U\",\"V\",\"W\",\"X\",\"Y\",\"Z\",\"AA\",\"AB\",\"AC\",\"AD\",\"AE\",\"AF\",\"AG\",\"AH\",\"AI\",\"AJ\",\"AK\",\"AL\",\"AM\",\"AN\",\"AO\",\"AP\",\"AQ\",\"AR\",\"AS\",\"AT\",\"AU\",\"AV\",\"AW\",\"AX\",\"AY\",\"AZ\",\"BA\",\"BB\",\"BC\",\"BD\",\"BE\",\"BF\",\"BG\",\"BH\",\"BI\",\"BJ\",\"BK\",\"BK\"),\"N/A\")","v":"N/A"}]
[null,"Skor:",null,"Minggu Pilihan:",null,null,null,null,null,null,null,null,null,null,null,null,null,null,null,null,null,null,null,null,null,null,null,null,null,null,null,null,null,null,null,null,null,null,null,null,null,null,null,null,null,null,null,{"$f":"IFERROR(CHOOSE(RIGHT(E3,2),5,6,7,8,9,10,11,12,13,14,15,16,17,18,19),\"N/A\")","v":5}]
[null,{"$f":"IFERROR(K56/100*K58,\"\")","v":0},"Deskripsi Rank",null,null,null,"Wajaran %",null,null,null,"Jumlah %",null,"Catatan"]
[null,null,null,null,null,"Off","1x","2x","3x","4x"]
[null,"A","Kuantiti Penyelesaian yang baik",null,null,"4x ⍟⍟⍟⍟",null,null,null,null,null,null,null,null,null,null,null,null,null,null,null,null,null,null,null,null,null,null,null,null,null,null,null,null,null,null,null,null,null,null,null,null,null,null,null,null,null,"Sel Wgt",{"$f":"IFERROR(VALUE(LEFT(F10,1))+1,1)","v":5},{"$f":"AW10-1","v":4},{"$f":"AX10/AX61*100","v":50},{"$f":"IFERROR(AY10,\"N/A\")","v":50}]
["(Zero)Worst <--- Rank ---> Best(Full)","Best = 1","Kadar penyelesaian melebihi 90% dari semua bilangan kes",null,null,null,null,{"$f":"IF(AZ10=0,\"N/A\",AZ10)","v":50},null,null,{"$f":"IF(H11=\"N/A\",\"N/A\",AZ11)","v":0},null,null,null,null,null,null,null,null,null,null,null,null,null,null,null,null,null,null,null,null,null,null,null,null,null,null,null,null,null,null,null,null,null,null,null,null,"Sel Rank",1,{"$f":"IF(C11=\"\",0,1)","v":1},{"$f":"AW11-(14-AX24)","v":-5},{"$f":"IFERROR(AY10*AY12/AY24,\"N/A\")","v":0},{"$f":"IF(AZ11=\"N/A\",0,AZ11)","v":0}]
[null,2,"Kadar penyelesaian melebihi 80% dari semua bilangan kes",null,null,null,null,null,null,null,null,null,null,null,null,null,null,null,null,null,null,null,null,null,null,null,null,null,null,null,null,null,null,null,null,null,null,null,null,null,null,null,null,null,null,null,null,null,null,{"$f":"IF(C12=\"\",0,1)","v":1},{"$f":"IF(AY11<0,0,AY11)","v":0}]
[null,3,"Kadar penyelesaian melebihi 70% dari semua bilangan kes",null,null,null,null,null,null,null,null,null,null,null,null,null,null,null,null,null,null,null,null,null,null,null,null,null,null,null,null,null,null,null,null,null,null,null,null,null,null,null,null,null,null,null,null,null,null,1]
[null,4,"Kadar penyelesaian melebihi 60% dari semua bilangan kes",null,null,null,null,null,null,null,null,null,null,null,null,null,null,null,null,null,null,null,null,null,null,null,null,null,null,null,null,null,null,null,null,null,null,null,null,null,null,null,null,null,null,null,null,null,null,1]
[null,5,"Kadar penyelesaian melebihi 50% dari semua bilangan kes",null,null,null,null,null,null,null,null,null,null,null,null,null,null,null,null,null,null,null,null,null,null,null,null,null,null,null,null,null,null,null,null,null,null,null,null,null,null,null,null,null,null,null,null,null,null,1]
[null,6,"Kadar penyelesaian melebihi 40% dari semua bilangan kes",null,null,null,null,null,null,null,null,null,null,null,null,null,null,null,null,null,null,null,null,null,null,null,null,null,null,null,null,null,null,null,null,null,null,null,null,null,null,null,null,null,null,null,null,null,null,1]
[null,7,"Kadar penyelesaian melebihi 30% dari semua bilangan kes",null,null,null,null,null,null,null,null,null,null,null,null,null,null,null,null,null,null,null,null,null,null,null,null,null,null,null,null,null,null,null,null,null,null,null,null,null,null,null,null,null,null,null,null,null,null,1]
[null,8,"Kadar penyelesaian adalah 30% atau kurang dari semua bilangan kes",null,null,null,null,null,null,null,null,null,null,null,null,null,null,null,null,null,null,null,null,null,null,null,null,null,null,null,null,null,null,null,null,null,null,null,null,null,null,null,null,null,null,null,null,null,null,1]
[null,9,null,null,null,null,null,null,null,null,null,null,null,null,null,null,null,null,null,null,null,null,null,null,null,null,null,null,null,null,null,null,null,null,null,null,null,null,null,null,null,null,null,null,null,null,null,null,null,0]
[null,10,null,null,null,null,null,null,null,null,null,null,null,null,null,null,null,null,null,null,null,null,null,null,null,null,null,null,null,null,null,null,null,null,null,null,null,null,null,null,null,null,null,null,null,null,null,null,null,0]
[null,11,null,null,null,null,null,null,null,null,null,null,null,null,null,null,null,null,null,null,null,null,null,null,null,null,null,null,null,null,null,null,null,null,null,null,null,null,null,null,null,null,null,null,null,null,null,null,null,0]
[null,12,null,null,null,null,null,null,null,null,null,null,null,null,null,null,null,null,null,null,null,null,null,null,null,null,null,null,null,null,null,null,null,null,null,null,null,null,null,null,null,null,null,null,null,null,null,null,null,0]
[null,13,null,null,null,null,null,null,null,null,null,null,null,null,null,null,null,null,null,null,null,null,null,null,null,null,null,null,null,null,null,null,null,null,null,null,null,null,null,null,null,null,null,null,null,null,null,null,null,0]
[null,null,null,null,null,null,null,null,null,null,null,null,null,null,null,null,null,null,null,null,null,null,null,null,null,null,null,null,null,null,null,null,null,null,null,null,null,null,null,null,null,null,null,null,null,null,null,null,null,{"$f":"SUM(AX11:AX23)","v":8},{"$f":"AX24-1","v":7}]
[null,null,null,null,null,"Off","1x","2x","3x","4x"]
[null,"B","Kualiti Penyelesaian yang Memuaskan Pengguna",null,null,"2x ⍟⍟",null,null,null,null,null,null,null,null,null,null,null,null,null,null,null,null,null,null,null,null,null,null,null,null,null,null,null,null,null,null,null,null,null,null,null,null,null,null,null,null,null,"Sel Wgt",{"$f":"IFERROR(VALUE(LEFT(F26,1))+1,1)","v":3},{"$f":"AW26-1","v":2},{"$f":"AX26/AX61*100","v":25},{"$f":"IFERROR(AY26,\"N/A\")","v":25}]
["(Zero)Worst <--- Rank ---> Best(Full)","Best = 1","Purata feedback rating melebihi 3 bintang",null,null,null,null,{"$f":"IF(AZ26=0,\"N/A\",AZ26)","v":25},null,null,{"$f":"IF(H27=\"N/A\",\"N/A\",AZ27)","v":0},null,null,null,null,null,null,null,null,null,null,null,null,null,null,null,null,null,null,null,null,null,null,null,null,null,null,null,null,null,null,null,null,null,null,null,null,"Sel Rank",1,{"$f":"IF(C27=\"\",0,1)","v":1},{"$f":"AW27-(14-AX40)","v":-9},{"$f":"IFERROR(AY26*AY28/AY40,\"N/A\")","v":0},{"$f":"IF(AZ27=\"N/A\",0,1)","v":1}]
[null,2,"Purata feedback rating melebihi 2 bintang",null,null,null,null,null,null,null,null,null,null,null,null,null,null,null,null,null,null,null,null,null,null,null,null,null,null,null,null,null,null,null,null,null,null,null,null,null,null,null,null,null,null,null,null,null,null,1,{"$f":"IF(AY27<0,0,AY27)","v":0}]
[null,3,"Purata feedback rating melebihi 1 bintang",null,null,null,null,null,null,null,null,null,null,null,null,null,null,null,null,null,null,null,null,null,null,null,null,null,null,null,null,null,null,null,null,null,null,null,null,null,null,null,null,null,null,null,null,null,null,1]
[null,4,"Purata feedback rating adalah 1 bintang",null,null,null,null,null,null,null,null,null,null,null,null,null,null,null,null,null,null,null,null,null,null,null,null,null,null,null,null,null,null,null,null,null,null,null,null,null,null,null,null,null,null,null,null,null,null,1]
[null,5,null,null,null,null,null,null,null,null,null,null,null,null,null,null,null,null,null,null,null,null,null,null,null,null,null,null,null,null,null,null,null,null,null,null,null,null,null,null,null,null,null,null,null,null,null,null,null,0]
[null,6,null,null,null,null,null,null,null,null,null,null,null,null,null,null,null,null,null,null,null,null,null,null,null,null,null,null,null,null,null,null,null,null,null,null,null,null,null,null,null,null,null,null,null,null,null,null,null,0]
[null,7,null,null,null,null,null,null,null,null,null,null,null,null,null,null,null,null,null,null,null,null,null,null,null,null,null,null,null,null,null,null,null,null,null,null,null,null,null,null,null,null,null,null,null,null,null,null,null,0]
[null,8,null,null,null,null,null,null,null,null,null,null,null,null,null,null,null,null,null,null,null,null,null,null,null,null,null,null,null,null,null,null,null,null,null,null,null,null,null,null,null,null,null,null,null,null,null,null,null,0]
[null,9,null,null,null,null,null,null,null,null,null,null,null,null,null,null,null,null,null,null,null,null,null,null,null,null,null,null,null,null,null,null,null,null,null,null,null,null,null,null,null,null,null,null,null,null,null,null,null,0]
[null,10,null,null,null,null,null,null,null,null,null,null,null,null,null,null,null,null,null,null,null,null,null,null,null,null,null,null,null,null,null,null,null,null,null,null,null,null,null,null,null,null,null,null,null,null,null,null,null,0]
[null,11,null,null,null,null,null,null,null,null,null,null,null,null,null,null,null,null,null,null,null,null,null,null,null,null,null,null,null,null,null,null,null,null,null,null,null,null,null,null,null,null,null,null,null,null,null,null,null,0]
[null,12,null,null,null,null,null,null,null,null,null,null,null,null,null,null,null,null,null,null,null,null,null,null,null,null,null,null,null,null,null,null,null,null,null,null,null,null,null,null,null,null,null,null,null,null,null,null,null,0]
[null,13,null,null,null,null,null,null,null,null,null,null,null,null,null,null,null,null,null,null,null,null,null,null,null,null,null,null,null,null,null,null,null,null,null,null,null,null,null,null,null,null,null,null,null,null,null,null,null,0]
[null,null,null,null,null,null,null,null,null,null,null,null,null,null,null,null,null,null,null,null,null,null,null,null,null,null,null,null,null,null,null,null,null,null,null,null,null,null,null,null,null,null,null,null,null,null,null,null,null,{"$f":"SUM(AX27:AX39)","v":4},{"$f":"AX40-1","v":3}]
[null,null,null,null,null,"Off","1x","2x","3x","4x"]
[null,"C","Penyelesaian dilaksanakan dalam tempoh masa yang ditetapkan",null,null,"2x ⍟⍟",null,null,null,null,null,null,null,null,null,null,null,null,null,null,null,null,null,null,null,null,null,null,null,null,null,null,null,null,null,null,null,null,null,null,null,null,null,null,null,null,null,"Sel Wgt",{"$f":"IFERROR(VALUE(LEFT(F42,1))+1,1)","v":3},{"$f":"AW42-1","v":2},{"$f":"AX42/AX61*100","v":25},{"$f":"IFERROR(AY42,\"N/A\")","v":25}]
["(Zero)Worst <--- Rank ---> Best(Full)","Best = 1","Purata penyelesaian dalam tempoh masa yang ditetapkan adalah 90% atau lebih",null,null,null,null,{"$f":"IF(AZ42=0,\"N/A\",AZ42)","v":25},null,null,{"$f":"IF(H43=\"N/A\",\"N/A\",AZ43)","v":0},null,null,null,null,null,null,null,null,null,null,null,null,null,null,null,null,null,null,null,null,null,null,null,null,null,null,null,null,null,null,null,null,null,null,null,null,"Sel Rank",1,{"$f":"IF(C43=\"\",0,1)","v":1},{"$f":"AW43-(14-AX60)","v":-7},{"$f":"IFERROR(AY42*AY44/AY60,\"N/A\")","v":0},{"$f":"IF(AZ43=\"N/A\",0,1)","v":1}]
[null,2,"Purata penyelesaian dalam tempoh masa yang ditetapkan adalah 70% atau lebih",null,null,null,null,null,null,null,null,null,null,null,null,null,null,null,null,null,null,null,null,null,null,null,null,null,null,null,null,null,null,null,null,null,null,null,null,null,null,null,null,null,null,null,null,null,null,1,{"$f":"IF(AY43<0,0,AY43)","v":0}]
[null,3,"Purata penyelesaian dalam tempoh masa yang ditetapkan adalah 50% atau lebih",null,null,null,null,null,null,null,null,null,null,null,null,null,null,null,null,null,null,null,null,null,null,null,null,null,null,null,null,null,null,null,null,null,null,null,null,null,null,null,null,null,null,null,null,null,null,1]
[null,4,"Purata penyelesaian dalam tempoh masa yang ditetapkan adalah 30% atau lebih",null,null,null,null,null,null,null,null,null,null,null,null,null,null,null,null,null,null,null,null,null,null,null,null,null,null,null,null,null,null,null,null,null,null,null,null,null,null,null,null,null,null,null,null,null,null,1]
[null,5,"Purata penyelesaian dalam tempoh masa yang ditetapkan adalah 15% atau lebih",null,null,null,null,null,null,null,null,null,null,null,null,null,null,null,null,null,null,null,null,null,null,null,null,null,null,null,null,null,null,null,null,null,null,null,null,null,null,null,null,null,null,null,null,null,null,1]
[null,6,"Purata penyelesaian dalam tempoh masa yang ditetapkan adalah kurang dari 15%",null,null,null,null,null,null,null,null,null,null,null,null,null,null,null,null,null,null,null,null,null,null,null,null,null,null,null,null,null,null,null,null,null,null,null,null,null,null,null,null,null,null,null,null,null,null,1]
[null,7,null,null,null,null,null,null,null,null,null,null,null,null,null,null,null,null,null,null,null,null,null,null,null,null,null,null,null,null,null,null,null,null,null,null,null,null,null,null,null,null,null,null,null,null,null,null,null,0]
[null,8,null,null,null,null,null,null,null,null,null,null,null,null,null,null,null,null,null,null,null,null,null,null,null,null,null,null,null,null,null,null,null,null,null,null,null,null,null,null,null,null,null,null,null,null,null,null,null,0]
[null,9,null,null,null,null,null,null,null,null,null,null,null,null,null,null,null,null,null,null,null,null,null,null,null,null,null,null,null,null,null,null,null,null,null,null,null,null,null,null,null,null,null,null,null,null,null,null,null,0]
[null,10,null,null,null,null,null,null,null,null,null,null,null,null,null,null,null,null,null,null,null,null,null,null,null,null,null,null,null,null,null,null,null,null,null,null,null,null,null,null,null,null,null,null,null,null,null,null,null,0]
[null,11,null,null,null,null,null,null,null,null,null,null,null,null,null,null,null,null,null,null,null,null,null,null,null,null,null,null,null,null,null,null,null,null,null,null,null,null,null,null,null,null,null,null,null,null,null,null,null,0]
[null,12,null,null,null,null,null,null,null,null,null,null,null,null,null,null,null,null,null,null,null,null,null,null,null,null,null,null,null,null,null,null,null,null,null,null,null,null,null,null,null,null,null,null,null,null,null,null,null,0]
[null,13,null,null,null,null,null,null,null,null,null,null,null,null,null,null,null,null,null,null,null,null,null,null,null,null,null,null,null,null,null,null,null,null,null,null,null,null,null,null,null,null,null,null,null,null,null,null,null,0]
[null,null,null,null,null,null,null,null,null,null,{"$f":"BA62","v":0}]
[]
[null,null,null,null,null,null,null,null,null,"Use Base:",100]
[]
[null,null,null,null,null,null,"A Form by Leadersense Consulting & Systems Sdn Bhd",null,null,null,null,null,null,null,null,null,null,null,null,null,null,null,null,null,null,null,null,null,null,null,null,null,null,null,null,null,null,null,null,null,null,null,null,null,null,null,null,null,null,{"$f":"SUM(AX43:AX55)","v":6},{"$f":"AX60-1","v":5}]
[null,null,null,null,null,"Off",null,null,null,null,null,null,null,null,null,null,null,null,null,null,null,null,null,null,null,null,null,null,null,null,null,null,null,null,null,null,null,null,null,null,null,null,null,null,null,null,null,null,"Weight x",{"$f":"AX10+AX26+AX42","v":8},null,null,{"$f":"BA11+BA27+BA43","v":2}]
[null,null,null,null,null,"1x ⍟",null,null,null,null,null,null,null,null,null,null,null,null,null,null,null,null,null,null,null,null,null,null,null,null,null,null,null,null,null,null,null,null,null,null,null,null,null,null,null,null,null,null,null,null,null,{"$f":"(AZ11+AZ27+AZ43)*BA61/BA61","v":0},{"$f":"IFERROR(AZ62,\"N/A\")","v":0}]
[null,null,null,null,null,"2x ⍟⍟"]
[null,null,null,null,null,"3x ⍟⍟⍟"]
[null,null,null,null,null,"4x ⍟⍟⍟⍟"]

{"sheet":"Dahlan","index":7,"n_rows":37,"n_cols":42,"rows_kept":37,"cut":false,"hidden":false,"merged":[[36,19,36,20],[36,21,36,26],[34,18,35,18],[34,20,35,20],[34,22,35,22],[34,24,35,24],[34,26,35,26],[36,0,36,2],[36,5,36,9],[36,10,36,11],[36,12,36,13],[36,14,36,18],[34,8,35,8],[34,9,35,9],[34,10,35,10],[34,12,35,12],[34,14,35,14],[34,16,35,16],[34,1,35,1],[34,2,35,2],[34,4,35,4],[34,5,35,5],[34,6,35,6],[34,7,35,7],[32,16,33,16],[32,18,33,18],[32,20,33,20],[32,22,33,22],[32,24,33,24],[32,26,33,26],[32,7,33,7],[32,8,33,8],[32,9,33,9],[32,10,33,10],[32,12,33,12],[32,14,33,14],[30,18,31,18],[30,20,31,20],[30,22,31,22],[30,24,31,24],[30,26,31,26],[32,1,33,1],[32,2,33,2],[32,4,33,4],[32,5,33,5],[32,6,33,6],[30,8,31,8],[30,9,31,9],[30,10,31,10],[30,12,31,12],[30,14,31,14],[30,16,31,16],[30,1,31,1],[30,2,31,2],[30,4,31,4],[30,5,31,5],[30,6,31,6],[30,7,31,7],[28,16,29,16],[28,18,29,18],[28,20,29,20],[28,22,29,22],[28,24,29,24],[28,26,29,26],[28,7,29,7],[28,8,29,8],[28,9,29,9],[28,10,29,10],[28,12,29,12],[28,14,29,14],[26,18,27,18],[26,20,27,20],[26,22,27,22],[26,24,27,24],[26,26,27,26],[28,1,29,1],[28,2,29,2],[28,4,29,4],[28,5,29,5],[28,6,29,6],[26,8,27,8],[26,9,27,9],[26,10,27,10],[26,12,27,12],[26,14,27,14],[26,16,27,16],[26,1,27,1],[26,2,27,2],[26,4,27,4],[26,5,27,5],[26,6,27,6],[26,7,27,7],[24,16,25,16],[24,18,25,18],[24,20,25,20],[24,22,25,22],[24,24,25,24],[24,26,25,26],[24,7,25,7],[24,8,25,8],[24,9,25,9],[24,10,25,10],[24,12,25,12],[24,14,25,14],[22,18,23,18],[22,20,23,20],[22,22,23,22],[22,24,23,24],[22,26,23,26],[24,1,25,1],[24,2,25,2],[24,4,25,4],[24,5,25,5],[24,6,25,6],[22,8,23,8],[22,9,23,9],[22,10,23,10],[22,12,23,12],[22,14,23,14],[22,16,23,16],[22,1,23,1],[22,2,23,2],[22,4,23,4],[22,5,23,5],[22,6,23,6],[22,7,23,7],[20,16,21,16],[20,18,21,18],[20,20,21,20],[20,22,21,22],[20,24,21,24],[20,26,21,26],[20,7,21,7],[20,8,21,8],[20,9,21,9],[20,10,21,10],[20,12,21,12],[20,14,21,14],[18,18,19,18],[18,20,19,20],[18,22,19,22],[18,24,19,24],[18,26,19,26],[20,1,21,1],[20,2,21,2],[20,4,21,4],[20,5,21,5],[20,6,21,6],[18,8,19,8],[18,9,19,9],[18,10,19,10],[18,12,19,12],[18,14,19,14],[18,16,19,16],[18,1,19,1],[18,2,19,2],[18,4,19,4],[18,5,19,5],[18,6,19,6],[18,7,19,7],[16,16,17,16],[16,18,17,18],[16,20,17,20],[16,22,17,22],[16,24,17,24],[16,26,17,26],[16,7,17,7],[16,8,17,8],[16,9,17,9],[16,10,17,10],[16,12,17,12],[16,14,17,14],[14,18,15,18],[14,20,15,20],[14,22,15,22],[14,24,15,24],[14,26,15,26],[16,1,17,1],[16,2,17,2],[16,4,17,4],[16,5,17,5],[16,6,17,6],[14,8,15,8],[14,9,15,9],[14,10,15,10],[14,12,15,12],[14,14,15,14],[14,16,15,16],[14,1,15,1],[14,2,15,2],[14,4,15,4],[14,5,15,5],[14,6,15,6],[14,7,15,7],[12,16,13,16],[12,18,13,18],[12,20,13,20],[12,22,13,22],[12,24,13,24],[12,26,13,26],[12,7,13,7],[12,8,13,8],[12,9,13,9],[12,10,13,10],[12,12,13,12],[12,14,13,14],[10,18,11,18],[10,20,11,20],[10,22,11,22],[10,24,11,24],[10,26,11,26],[12,1,13,1],[12,2,13,2],[12,4,13,4],[12,5,13,5],[12,6,13,6],[10,8,11,8],[10,9,11,9],[10,10,11,10],[10,12,11,12],[10,14,11,14],[10,16,11,16],[10,1,11,1],[10,2,11,2],[10,4,11,4],[10,5,11,5],[10,6,11,6],[10,7,11,7],[8,16,9,16],[8,18,9,18],[8,20,9,20],[8,22,9,22],[8,24,9,24],[8,26,9,26],[8,7,9,7],[8,8,9,8],[8,9,9,9],[8,10,9,10],[8,12,9,12],[8,14,9,14],[6,18,7,18],[6,20,7,20],[6,22,7,22],[6,24,7,24],[6,26,7,26],[8,1,9,1],[8,2,9,2],[8,4,9,4],[8,5,9,5],[8,6,9,6],[6,8,7,8],[6,9,7,9],[6,10,7,10],[6,12,7,12],[6,14,7,14],[6,16,7,16],[6,1,7,1],[6,2,7,2],[6,4,7,4],[6,5,7,5],[6,6,7,6],[6,7,7,7],[4,16,5,16],[4,18,5,18],[4,20,5,20],[4,22,5,22],[4,24,5,24],[4,26,5,26],[4,7,5,7],[4,8,5,8],[4,9,5,9],[4,10,5,10],[4,12,5,12],[4,14,5,14],[1,22,2,22],[1,23,2,23],[1,24,2,24],[1,25,2,25],[1,26,2,26],[4,1,5,1],[4,2,5,2],[4,4,5,4],[4,5,5,5],[4,6,5,6],[1,16,2,16],[1,17,2,17],[1,18,2,18],[1,19,2,19],[1,20,2,20],[1,21,2,21],[0,7,2,7],[0,8,2,8],[0,9,2,9],[0,10,2,10],[0,11,0,26],[1,11,2,11],[1,12,2,12],[1,13,2,13],[1,14,2,14],[1,15,2,15],[0,0,2,0],[0,1,2,1],[0,3,1,3],[0,4,2,4],[0,5,2,5],[0,6,2,6]]}
["Terima Cascade Dari?","ID KPI","C A S C A D E R    T O O L","«\nWajaran","Metoda\nUkuran","SMART\nSasaran\n(Elakkan 0)","Jenis","Wk Mula","Wk Dead Line","Cascade Ke Bawah?","Kontribusi\nSendiri","Cascade Ke Bawah"]
[null,null,"          Deskripsi Spesifik KPI",null,null,null,null,null,null,null,null,"Cascade\n1","Kontribusi","Cascade\n2","Kontribusi","Cascade\n3","Kontribusi","Cascade\n4","Kontribusi","Cascade\n5","Kontribusi","Cascade\n6","Kontrib","Cascade\n7","Kontrib","Cascade\n8","Kontrib","Cascade\nReady?"]
[null,null,null,"%"]
[2021,"BB8","Dahlan bin Zulkifli: Eksekutif Teknologi Maklumat"]
["Brian",{"$f":"CONCATENATE($B$4,\"01\")","v":"BB801"},"BR61 Mencapai penambahbaikan Sistem e-Jualan (Bilangan modul tambahan)","4⍟","Number",15,"A",1,40,"No",null,null,null,null,null,null,null,null,null,null,null,null,null,null,null,null,null,{"$f":"IF(OR(C5=\"\",E5=\"\",F5=\"\",G5=\"\",H5=\"\",I5=\"\",J5=\"\",J5=\"No\"),FALSE,TRUE)","v":false},null,null,null,null,null,null,null,null,null,null,null,null,null,{"$f":"IFERROR(VALUE(LEFT(D5,1)),\"\")","v":4}]
["BF202",null,null,{"$f":"IFERROR($AP5*100/$AP$21,0)","v":100},null,null,null,null,null,null,null,null,null,null,null,null,null,null,null,null,null,null,null,null,null,null,null,null,null,null,null,null,null,null,null,null,null,null,null,null,null,{"$f":"IFERROR(VALUE(LEFT(D7,1)),\"\")","v":""}]
[null,{"$f":"CONCATENATE($B$4,\"02\")","v":"BB802"},null,null,null,null,null,null,null,null,null,null,null,null,null,null,null,null,null,null,null,null,null,null,null,null,null,{"$f":"IF(OR(C7=\"\",E7=\"\",F7=\"\",G7=\"\",H7=\"\",I7=\"\",J7=\"\",J7=\"No\"),FALSE,TRUE)","v":false},null,null,null,null,null,null,null,null,null,null,null,null,null,{"$f":"IFERROR(VALUE(LEFT(D9,1)),\"\")","v":""}]
[null,null,null,{"$f":"IFERROR($AP6*100/$AP$21,0)","v":0},null,null,null,null,null,null,null,null,null,null,null,null,null,null,null,null,null,null,null,null,null,null,null,null,null,null,null,null,null,null,null,null,null,null,null,null,null,{"$f":"IFERROR(VALUE(LEFT(D11,1)),\"\")","v":""}]
[null,{"$f":"CONCATENATE($B$4,\"03\")","v":"BB803"},null,null,null,null,null,null,null,null,null,null,null,null,null,null,null,null,null,null,null,null,null,null,null,null,null,{"$f":"IF(OR(C9=\"\",E9=\"\",F9=\"\",G9=\"\",H9=\"\",I9=\"\",J9=\"\",J9=\"No\"),FALSE,TRUE)","v":false},null,null,null,null,null,null,null,null,null,null,null,null,null,{"$f":"IFERROR(VALUE(LEFT(D13,1)),\"\")","v":""}]
[null,null,null,{"$f":"IFERROR($AP7*100/$AP$21,0)","v":0},null,null,null,null,null,null,null,null,null,null,null,null,null,null,null,null,null,null,null,null,null,null,null,null,null,null,null,null,null,null,null,null,null,null,null,null,null,{"$f":"IFERROR(VALUE(LEFT(D15,1)),\"\")","v":""}]
[null,{"$f":"CONCATENATE($B$4,\"04\")","v":"BB804"},null,null,null,null,null,null,null,null,null,null,null,null,null,null,null,null,null,null,null,null,null,null,null,null,null,{"$f":"IF(OR(C11=\"\",E11=\"\",F11=\"\",G11=\"\",H11=\"\",I11=\"\",J11=\"\",J11=\"No\"),FALSE,TRUE)","v":false},null,null,null,null,null,null,null,null,null,null,null,null,null,{"$f":"IFERROR(VALUE(LEFT(D17,1)),\"\")","v":""}]
[null,null,null,{"$f":"IFERROR($AP8*100/$AP$21,0)","v":0},null,null,null,null,null,null,null,null,null,null,null,null,null,null,null,null,null,null,null,null,null,null,null,null,null,null,null,null,null,null,null,null,null,null,null,null,null,{"$f":"IFERROR(VALUE(LEFT(D19,1)),\"\")","v":""}]
[null,{"$f":"CONCATENATE($B$4,\"05\")","v":"BB805"},null,null,null,null,null,null,null,null,null,null,null,null,null,null,null,null,null,null,null,null,null,null,null,null,null,{"$f":"IF(OR(C13=\"\",E13=\"\",F13=\"\",G13=\"\",H13=\"\",I13=\"\",J13=\"\",J13=\"No\"),FALSE,TRUE)","v":false},null,null,null,null,null,null,null,null,null,null,null,null,null,{"$f":"IFERROR(VALUE(LEFT(D21,1)),\"\")","v":""}]
[null,null,null,{"$f":"IFERROR($AP9*100/$AP$21,0)","v":0},null,null,null,null,null,null,null,null,null,null,null,null,null,null,null,null,null,null,null,null,null,null,null,null,null,null,null,null,null,null,null,null,null,null,null,null,null,{"$f":"IFERROR(VALUE(LEFT(D23,1)),\"\")","v":""}]
[null,{"$f":"CONCATENATE($B$4,\"06\")","v":"BB806"},null,null,null,null,null,null,null,null,null,null,null,null,null,null,null,null,null,null,null,null,null,null,null,null,null,{"$f":"IF(OR(C15=\"\",E15=\"\",F15=\"\",G15=\"\",H15=\"\",I15=\"\",J15=\"\",J15=\"No\"),FALSE,TRUE)","v":false},null,null,null,null,null,null,null,null,null,null,null,null,null,{"$f":"IFERROR(VALUE(LEFT(D25,1)),\"\")","v":""}]
[null,null,null,{"$f":"IFERROR($AP10*100/$AP$21,0)","v":0},null,null,null,null,null,null,null,null,null,null,null,null,null,null,null,null,null,null,null,null,null,null,null,null,null,null,null,null,null,null,null,null,null,null,null,null,null,{"$f":"IFERROR(VALUE(LEFT(D27,1)),\"\")","v":""}]
[null,{"$f":"CONCATENATE($B$4,\"07\")","v":"BB807"},null,null,null,null,null,null,null,null,null,null,null,null,null,null,null,null,null,null,null,null,null,null,null,null,null,{"$f":"IF(OR(C17=\"\",E17=\"\",F17=\"\",G17=\"\",H17=\"\",I17=\"\",J17=\"\",J17=\"No\"),FALSE,TRUE)","v":false},null,null,null,null,null,null,null,null,null,null,null,null,null,{"$f":"IFERROR(VALUE(LEFT(D29,1)),\"\")","v":""}]
[null,null,null,{"$f":"IFERROR($AP11*100/$AP$21,0)","v":0},null,null,null,null,null,null,null,null,null,null,null,null,null,null,null,null,null,null,null,null,null,null,null,null,null,null,null,null,null,null,null,null,null,null,null,null,null,{"$f":"IFERROR(VALUE(LEFT(D31,1)),\"\")","v":""}]
[null,{"$f":"CONCATENATE($B$4,\"08\")","v":"BB808"},null,null,null,null,null,null,null,null,null,null,null,null,null,null,null,null,null,null,null,null,null,null,null,null,null,{"$f":"IF(OR(C19=\"\",E19=\"\",F19=\"\",G19=\"\",H19=\"\",I19=\"\",J19=\"\",J19=\"No\"),FALSE,TRUE)","v":false},null,null,null,null,null,null,null,null,null,null,null,null,null,{"$f":"IFERROR(VALUE(LEFT(D33,1)),\"\")","v":""}]
[null,null,null,{"$f":"IFERROR($AP12*100/$AP$21,0)","v":0},null,null,null,null,null,null,null,null,null,null,null,null,null,null,null,null,null,null,null,null,null,null,null,null,null,null,null,null,null,null,null,null,null,null,null,null,null,{"$f":"IFERROR(VALUE(LEFT(D35,1)),\"\")","v":""}]
[null,{"$f":"CONCATENATE($B$4,\"09\")","v":"BB809"},null,null,null,null,null,null,null,null,null,null,null,null,null,null,null,null,null,null,null,null,null,null,null,null,null,{"$f":"IF(OR(C21=\"\",E21=\"\",F21=\"\",G21=\"\",H21=\"\",I21=\"\",J21=\"\",J21=\"No\"),FALSE,TRUE)","v":false},null,null,null,null,null,null,null,null,null,null,null,null,null,{"$f":"IFERROR(IF(SUM(AP5:AP20)=0,1,SUM(AP5:AP20)),1)","v":4}]
[null,null,null,{"$f":"IFERROR($AP13*100/$AP$21,0)","v":0}]
[null,{"$f":"CONCATENATE($B$4,\"10\")","v":"BB810"},null,null,null,null,null,null,null,null,null,null,null,null,null,null,null,null,null,null,null,null,null,null,null,null,null,{"$f":"IF(OR(C23=\"\",E23=\"\",F23=\"\",G23=\"\",H23=\"\",I23=\"\",J23=\"\",J23=\"No\"),FALSE,TRUE)","v":false}]
[null,null,null,{"$f":"IFERROR($AP14*100/$AP$21,0)","v":0}]
[null,{"$f":"CONCATENATE($B$4,\"11\")","v":"BB811"},null,null,null,null,null,null,null,null,null,null,null,null,null,null,null,null,null,null,null,null,null,null,null,null,null,{"$f":"IF(OR(C25=\"\",E25=\"\",F25=\"\",G25=\"\",H25=\"\",I25=\"\",J25=\"\",J25=\"No\"),FALSE,TRUE)","v":false}]
[null,null,null,{"$f":"IFERROR($AP15*100/$AP$21,0)","v":0}]
[null,{"$f":"CONCATENATE($B$4,\"12\")","v":"BB812"},null,null,null,null,null,null,null,null,null,null,null,null,null,null,null,null,null,null,null,null,null,null,null,null,null,{"$f":"IF(OR(C27=\"\",E27=\"\",F27=\"\",G27=\"\",H27=\"\",I27=\"\",J27=\"\",J27=\"No\"),FALSE,TRUE)","v":false}]
[null,null,null,{"$f":"IFERROR($AP16*100/$AP$21,0)","v":0}]
[null,{"$f":"CONCATENATE($B$4,\"13\")","v":"BB813"},null,null,null,null,null,null,null,null,null,null,null,null,null,null,null,null,null,null,null,null,null,null,null,null,null,{"$f":"IF(OR(C29=\"\",E29=\"\",F29=\"\",G29=\"\",H29=\"\",I29=\"\",J29=\"\",J29=\"No\"),FALSE,TRUE)","v":false}]
[null,null,null,{"$f":"IFERROR($AP17*100/$AP$21,0)","v":0}]
[null,{"$f":"CONCATENATE($B$4,\"14\")","v":"BB814"},null,null,null,null,null,null,null,null,null,null,null,null,null,null,null,null,null,null,null,null,null,null,null,null,null,{"$f":"IF(OR(C31=\"\",E31=\"\",F31=\"\",G31=\"\",H31=\"\",I31=\"\",J31=\"\",J31=\"No\"),FALSE,TRUE)","v":false}]
[null,null,null,{"$f":"IFERROR($AP18*100/$AP$21,0)","v":0}]
[null,{"$f":"CONCATENATE($B$4,\"15\")","v":"BB815"},null,null,null,null,null,null,null,null,null,null,null,null,null,null,null,null,null,null,null,null,null,null,null,null,null,{"$f":"IF(OR(C33=\"\",E33=\"\",F33=\"\",G33=\"\",H33=\"\",I33=\"\",J33=\"\",J33=\"No\"),FALSE,TRUE)","v":false}]
[null,null,null,{"$f":"IFERROR($AP19*100/$AP$21,0)","v":0}]
[null,{"$f":"CONCATENATE($B$4,\"16\")","v":"BB816"},null,null,null,null,null,null,null,null,null,null,null,null,null,null,null,null,null,null,null,null,null,null,null,null,null,{"$f":"IF(OR(C35=\"\",E35=\"\",F35=\"\",G35=\"\",H35=\"\",I35=\"\",J35=\"\",J35=\"No\"),FALSE,TRUE)","v":false}]
[null,null,null,{"$f":"IFERROR($AP20*100/$AP$21,0)","v":0}]
[null,null,null,{"$f":"D6+D8+D10+D12+D14+D16+D18+D20+D22+D24+D26+D28+D30+D32+D34+D36","v":100},"Empunya:","Tandatangan",null,null,null,null,"Tarikh",null,"Diluluskan:",null,"Tandatangan",null,null,null,null,"Tarikh"]

{"sheet":"KPICreate","index":8,"n_rows":37,"n_cols":42,"rows_kept":37,"cut":false,"hidden":true,"merged":[[36,19,36,20],[36,21,36,26],[34,18,35,18],[34,20,35,20],[34,22,35,22],[34,24,35,24],[34,26,35,26],[36,0,36,2],[36,5,36,9],[36,10,36,11],[36,12,36,13],[36,14,36,18],[34,8,35,8],[34,9,35,9],[34,10,35,10],[34,12,35,12],[34,14,35,14],[34,16,35,16],[34,1,35,1],[34,2,35,2],[34,4,35,4],[34,5,35,5],[34,6,35,6],[34,7,35,7],[32,20,33,20],[32,22,33,22],[32,24,33,24],[32,26,33,26],[32,7,33,7],[32,8,33,8],[32,9,33,9],[32,10,33,10],[32,12,33,12],[32,14,33,14],[30,18,31,18],[30,20,31,20],[30,22,31,22],[30,24,31,24],[30,26,31,26],[32,1,33,1],[32,2,33,2],[32,4,33,4],[32,5,33,5],[32,6,33,6],[30,8,31,8],[30,9,31,9],[30,10,31,10],[30,12,31,12],[30,14,31,14],[30,16,31,16],[30,1,31,1],[30,2,31,2],[30,4,31,4],[30,5,31,5],[30,6,31,6],[30,7,31,7],[32,16,33,16],[32,18,33,18],[28,20,29,20],[28,22,29,22],[28,24,29,24],[28,26,29,26],[28,7,29,7],[28,8,29,8],[28,9,29,9],[28,10,29,10],[28,12,29,12],[28,14,29,14],[26,18,27,18],[26,20,27,20],[26,22,27,22],[26,24,27,24],[26,26,27,26],[28,1,29,1],[28,2,29,2],[28,4,29,4],[28,5,29,5],[28,6,29,6],[26,8,27,8],[26,9,27,9],[26,10,27,10],[26,12,27,12],[26,14,27,14],[26,16,27,16],[26,1,27,1],[26,2,27,2],[26,4,27,4],[26,5,27,5],[26,6,27,6],[26,7,27,7],[28,16,29,16],[28,18,29,18],[24,20,25,20],[24,22,25,22],[24,24,25,24],[24,26,25,26],[24,7,25,7],[24,8,25,8],[24,9,25,9],[24,10,25,10],[24,12,25,12],[24,14,25,14],[22,18,23,18],[22,20,23,20],[22,22,23,22],[22,24,23,24],[22,26,23,26],[24,1,25,1],[24,2,25,2],[24,4,25,4],[24,5,25,5],[24,6,25,6],[22,8,23,8],[22,9,23,9],[22,10,23,10],[22,12,23,12],[22,14,23,14],[22,16,23,16],[22,1,23,1],[22,2,23,2],[22,4,23,4],[22,5,23,5],[22,6,23,6],[22,7,23,7],[24,16,25,16],[24,18,25,18],[20,20,21,20],[20,22,21,22],[20,24,21,24],[20,26,21,26],[20,7,21,7],[20,8,21,8],[20,9,21,9],[20,10,21,10],[20,12,21,12],[20,14,21,14],[18,18,19,18],[18,20,19,20],[18,22,19,22],[18,24,19,24],[18,26,19,26],[20,1,21,1],[20,2,21,2],[20,4,21,4],[20,5,21,5],[20,6,21,6],[18,8,19,8],[18,9,19,9],[18,10,19,10],[18,12,19,12],[18,14,19,14],[18,16,19,16],[18,1,19,1],[18,2,19,2],[18,4,19,4],[18,5,19,5],[18,6,19,6],[18,7,19,7],[20,16,21,16],[20,18,21,18],[16,20,17,20],[16,22,17,22],[16,24,17,24],[16,26,17,26],[16,7,17,7],[16,8,17,8],[16,9,17,9],[16,10,17,10],[16,12,17,12],[16,14,17,14],[14,18,15,18],[14,20,15,20],[14,22,15,22],[14,24,15,24],[14,26,15,26],[16,1,17,1],[16,2,17,2],[16,4,17,4],[16,5,17,5],[16,6,17,6],[14,8,15,8],[14,9,15,9],[14,10,15,10],[14,12,15,12],[14,14,15,14],[14,16,15,16],[14,1,15,1],[14,2,15,2],[14,4,15,4],[14,5,15,5],[14,6,15,6],[14,7,15,7],[16,16,17,16],[16,18,17,18],[12,20,13,20],[12,22,13,22],[12,24,13,24],[12,26,13,26],[12,7,13,7],[12,8,13,8],[12,9,13,9],[12,10,13,10],[12,12,13,12],[12,14,13,14],[10,18,11,18],[10,20,11,20],[10,22,11,22],[10,24,11,24],[10,26,11,26],[12,1,13,1],[12,2,13,2],[12,4,13,4],[12,5,13,5],[12,6,13,6],[10,8,11,8],[10,9,11,9],[10,10,11,10],[10,12,11,12],[10,14,11,14],[10,16,11,16],[10,1,11,1],[10,2,11,2],[10,4,11,4],[10,5,11,5],[10,6,11,6],[10,7,11,7],[12,16,13,16],[12,18,13,18],[8,20,9,20],[8,22,9,22],[8,24,9,24],[8,26,9,26],[8,7,9,7],[8,8,9,8],[8,9,9,9],[8,10,9,10],[8,12,9,12],[8,14,9,14],[6,18,7,18],[6,20,7,20],[6,22,7,22],[6,24,7,24],[6,26,7,26],[8,1,9,1],[8,2,9,2],[8,4,9,4],[8,5,9,5],[8,6,9,6],[6,8,7,8],[6,9,7,9],[6,10,7,10],[6,12,7,12],[6,14,7,14],[6,16,7,16],[6,1,7,1],[6,2,7,2],[6,4,7,4],[6,5,7,5],[6,6,7,6],[6,7,7,7],[8,16,9,16],[8,18,9,18],[4,18,5,18],[4,20,5,20],[4,22,5,22],[4,24,5,24],[4,26,5,26],[4,7,5,7],[4,8,5,8],[4,9,5,9],[4,10,5,10],[4,12,5,12],[4,14,5,14],[1,23,2,23],[1,24,2,24],[1,25,2,25],[1,26,2,26],[4,1,5,1],[4,2,5,2],[4,4,5,4],[4,5,5,5],[4,6,5,6],[1,16,2,16],[1,17,2,17],[1,18,2,18],[1,19,2,19],[1,20,2,20],[1,21,2,21],[0,7,2,7],[0,8,2,8],[0,9,2,9],[0,10,2,10],[0,11,0,26],[1,11,2,11],[1,12,2,12],[1,13,2,13],[4,16,5,16],[1,14,2,14],[1,15,2,15],[0,0,2,0],[0,1,2,1],[0,3,1,3],[0,4,2,4],[0,5,2,5],[0,6,2,6],[1,22,2,22]]}
["Terima Cascade Dari?","ID KPI","C A S C A D E R    T O O L","«\nWajaran","Metoda\nUkuran","SMART\nSasaran\n(Elakkan 0)","Jenis","Wk Mula","Wk Dead Line","Cascade Ke Bawah?","Kontribusi\nSendiri","Cascade Ke Bawah"]
[null,null,"          Deskripsi Spesifik KPI",null,null,null,null,null,null,null,null,"Cascade\n1","Kontribusi","Cascade\n2","Kontribusi","Cascade\n3","Kontribusi","Cascade\n4","Kontribusi","Cascade\n5","Kontribusi","Cascade\n6","Kontrib","Cascade\n7","Kontrib","Cascade\n8","Kontrib","Cascade\nReady?"]
[null,null,null,"%"]
[2021]
[null,{"$f":"CONCATENATE($B$4,\"01\")","v":"01"},null,null,null,null,null,null,null,null,null,null,null,null,null,null,null,null,null,null,null,null,null,null,null,null,null,{"$f":"IF(OR(C5=\"\",E5=\"\",F5=\"\",G5=\"\",H5=\"\",I5=\"\",J5=\"\",J5=\"No\"),FALSE,TRUE)","v":false},null,null,null,null,null,null,null,null,null,null,null,null,null,{"$f":"IFERROR(VALUE(LEFT(D5,1)),\"\")","v":""}]
[null,null,null,{"$f":"IFERROR($AP5*100/$AP$21,0)","v":0},null,null,null,null,null,null,null,null,null,null,null,null,null,null,null,null,null,null,null,null,null,null,null,null,null,null,null,null,null,null,null,null,null,null,null,null,null,{"$f":"IFERROR(VALUE(LEFT(D7,1)),\"\")","v":""}]
[null,{"$f":"CONCATENATE($B$4,\"02\")","v":"02"},null,null,null,null,null,null,null,null,null,null,null,null,null,null,null,null,null,null,null,null,null,null,null,null,null,{"$f":"IF(OR(C7=\"\",E7=\"\",F7=\"\",G7=\"\",H7=\"\",I7=\"\",J7=\"\",J7=\"No\"),FALSE,TRUE)","v":false},null,null,null,null,null,null,null,null,null,null,null,null,null,{"$f":"IFERROR(VALUE(LEFT(D9,1)),\"\")","v":""}]
[null,null,null,{"$f":"IFERROR($AP6*100/$AP$21,0)","v":0},null,null,null,null,null,null,null,null,null,null,null,null,null,null,null,null,null,null,null,null,null,null,null,null,null,null,null,null,null,null,null,null,null,null,null,null,null,{"$f":"IFERROR(VALUE(LEFT(D11,1)),\"\")","v":""}]
[null,{"$f":"CONCATENATE($B$4,\"03\")","v":"03"},null,null,null,null,null,null,null,null,null,null,null,null,null,null,null,null,null,null,null,null,null,null,null,null,null,{"$f":"IF(OR(C9=\"\",E9=\"\",F9=\"\",G9=\"\",H9=\"\",I9=\"\",J9=\"\",J9=\"No\"),FALSE,TRUE)","v":false},null,null,null,null,null,null,null,null,null,null,null,null,null,{"$f":"IFERROR(VALUE(LEFT(D13,1)),\"\")","v":""}]
[null,null,null,{"$f":"IFERROR($AP7*100/$AP$21,0)","v":0},null,null,null,null,null,null,null,null,null,null,null,null,null,null,null,null,null,null,null,null,null,null,null,null,null,null,null,null,null,null,null,null,null,null,null,null,null,{"$f":"IFERROR(VALUE(LEFT(D15,1)),\"\")","v":""}]
[null,{"$f":"CONCATENATE($B$4,\"04\")","v":"04"},null,null,null,null,null,null,null,null,null,null,null,null,null,null,null,null,null,null,null,null,null,null,null,null,null,{"$f":"IF(OR(C11=\"\",E11=\"\",F11=\"\",G11=\"\",H11=\"\",I11=\"\",J11=\"\",J11=\"No\"),FALSE,TRUE)","v":false},null,null,null,null,null,null,null,null,null,null,null,null,null,{"$f":"IFERROR(VALUE(LEFT(D17,1)),\"\")","v":""}]
[null,null,null,{"$f":"IFERROR($AP8*100/$AP$21,0)","v":0},null,null,null,null,null,null,null,null,null,null,null,null,null,null,null,null,null,null,null,null,null,null,null,null,null,null,null,null,null,null,null,null,null,null,null,null,null,{"$f":"IFERROR(VALUE(LEFT(D19,1)),\"\")","v":""}]
[null,{"$f":"CONCATENATE($B$4,\"05\")","v":"05"},null,null,null,null,null,null,null,null,null,null,null,null,null,null,null,null,null,null,null,null,null,null,null,null,null,{"$f":"IF(OR(C13=\"\",E13=\"\",F13=\"\",G13=\"\",H13=\"\",I13=\"\",J13=\"\",J13=\"No\"),FALSE,TRUE)","v":false},null,null,null,null,null,null,null,null,null,null,null,null,null,{"$f":"IFERROR(VALUE(LEFT(D21,1)),\"\")","v":""}]
[null,null,null,{"$f":"IFERROR($AP9*100/$AP$21,0)","v":0},null,null,null,null,null,null,null,null,null,null,null,null,null,null,null,null,null,null,null,null,null,null,null,null,null,null,null,null,null,null,null,null,null,null,null,null,null,{"$f":"IFERROR(VALUE(LEFT(D23,1)),\"\")","v":""}]
[null,{"$f":"CONCATENATE($B$4,\"06\")","v":"06"},null,null,null,null,null,null,null,null,null,null,null,null,null,null,null,null,null,null,null,null,null,null,null,null,null,{"$f":"IF(OR(C15=\"\",E15=\"\",F15=\"\",G15=\"\",H15=\"\",I15=\"\",J15=\"\",J15=\"No\"),FALSE,TRUE)","v":false},null,null,null,null,null,null,null,null,null,null,null,null,null,{"$f":"IFERROR(VALUE(LEFT(D25,1)),\"\")","v":""}]
[null,null,null,{"$f":"IFERROR($AP10*100/$AP$21,0)","v":0},null,null,null,null,null,null,null,null,null,null,null,null,null,null,null,null,null,null,null,null,null,null,null,null,null,null,null,null,null,null,null,null,null,null,null,null,null,{"$f":"IFERROR(VALUE(LEFT(D27,1)),\"\")","v":""}]
[null,{"$f":"CONCATENATE($B$4,\"07\")","v":"07"},null,null,null,null,null,null,null,null,null,null,null,null,null,null,null,null,null,null,null,null,null,null,null,null,null,{"$f":"IF(OR(C17=\"\",E17=\"\",F17=\"\",G17=\"\",H17=\"\",I17=\"\",J17=\"\",J17=\"No\"),FALSE,TRUE)","v":false},null,null,null,null,null,null,null,null,null,null,null,null,null,{"$f":"IFERROR(VALUE(LEFT(D29,1)),\"\")","v":""}]
[null,null,null,{"$f":"IFERROR($AP11*100/$AP$21,0)","v":0},null,null,null,null,null,null,null,null,null,null,null,null,null,null,null,null,null,null,null,null,null,null,null,null,null,null,null,null,null,null,null,null,null,null,null,null,null,{"$f":"IFERROR(VALUE(LEFT(D31,1)),\"\")","v":""}]
[null,{"$f":"CONCATENATE($B$4,\"08\")","v":"08"},null,null,null,null,null,null,null,null,null,null,null,null,null,null,null,null,null,null,null,null,null,null,null,null,null,{"$f":"IF(OR(C19=\"\",E19=\"\",F19=\"\",G19=\"\",H19=\"\",I19=\"\",J19=\"\",J19=\"No\"),FALSE,TRUE)","v":false},null,null,null,null,null,null,null,null,null,null,null,null,null,{"$f":"IFERROR(VALUE(LEFT(D33,1)),\"\")","v":""}]
[null,null,null,{"$f":"IFERROR($AP12*100/$AP$21,0)","v":0},null,null,null,null,null,null,null,null,null,null,null,null,null,null,null,null,null,null,null,null,null,null,null,null,null,null,null,null,null,null,null,null,null,null,null,null,null,{"$f":"IFERROR(VALUE(LEFT(D35,1)),\"\")","v":""}]
[null,{"$f":"CONCATENATE($B$4,\"09\")","v":"09"},null,null,null,null,null,null,null,null,null,null,null,null,null,null,null,null,null,null,null,null,null,null,null,null,null,{"$f":"IF(OR(C21=\"\",E21=\"\",F21=\"\",G21=\"\",H21=\"\",I21=\"\",J21=\"\",J21=\"No\"),FALSE,TRUE)","v":false},null,null,null,null,null,null,null,null,null,null,null,null,null,{"$f":"IFERROR(IF(SUM(AP5:AP20)=0,1,SUM(AP5:AP20)),1)","v":1}]
[null,null,null,{"$f":"IFERROR($AP13*100/$AP$21,0)","v":0}]
[null,{"$f":"CONCATENATE($B$4,\"10\")","v":"10"},null,null,null,null,null,null,null,null,null,null,null,null,null,null,null,null,null,null,null,null,null,null,null,null,null,{"$f":"IF(OR(C23=\"\",E23=\"\",F23=\"\",G23=\"\",H23=\"\",I23=\"\",J23=\"\",J23=\"No\"),FALSE,TRUE)","v":false}]
[null,null,null,{"$f":"IFERROR($AP14*100/$AP$21,0)","v":0}]
[null,{"$f":"CONCATENATE($B$4,\"11\")","v":"11"},null,null,null,null,null,null,null,null,null,null,null,null,null,null,null,null,null,null,null,null,null,null,null,null,null,{"$f":"IF(OR(C25=\"\",E25=\"\",F25=\"\",G25=\"\",H25=\"\",I25=\"\",J25=\"\",J25=\"No\"),FALSE,TRUE)","v":false}]
[null,null,null,{"$f":"IFERROR($AP15*100/$AP$21,0)","v":0}]
[null,{"$f":"CONCATENATE($B$4,\"12\")","v":"12"},null,null,null,null,null,null,null,null,null,null,null,null,null,null,null,null,null,null,null,null,null,null,null,null,null,{"$f":"IF(OR(C27=\"\",E27=\"\",F27=\"\",G27=\"\",H27=\"\",I27=\"\",J27=\"\",J27=\"No\"),FALSE,TRUE)","v":false}]
[null,null,null,{"$f":"IFERROR($AP16*100/$AP$21,0)","v":0}]
[null,{"$f":"CONCATENATE($B$4,\"13\")","v":"13"},null,null,null,null,null,null,null,null,null,null,null,null,null,null,null,null,null,null,null,null,null,null,null,null,null,{"$f":"IF(OR(C29=\"\",E29=\"\",F29=\"\",G29=\"\",H29=\"\",I29=\"\",J29=\"\",J29=\"No\"),FALSE,TRUE)","v":false}]
[null,null,null,{"$f":"IFERROR($AP17*100/$AP$21,0)","v":0}]
[null,{"$f":"CONCATENATE($B$4,\"14\")","v":"14"},null,null,null,null,null,null,null,null,null,null,null,null,null,null,null,null,null,null,null,null,null,null,null,null,null,{"$f":"IF(OR(C31=\"\",E31=\"\",F31=\"\",G31=\"\",H31=\"\",I31=\"\",J31=\"\",J31=\"No\"),FALSE,TRUE)","v":false}]
[null,null,null,{"$f":"IFERROR($AP18*100/$AP$21,0)","v":0}]
[null,{"$f":"CONCATENATE($B$4,\"15\")","v":"15"},null,null,null,null,null,null,null,null,null,null,null,null,null,null,null,null,null,null,null,null,null,null,null,null,null,{"$f":"IF(OR(C33=\"\",E33=\"\",F33=\"\",G33=\"\",H33=\"\",I33=\"\",J33=\"\",J33=\"No\"),FALSE,TRUE)","v":false}]
[null,null,null,{"$f":"IFERROR($AP19*100/$AP$21,0)","v":0}]
[null,{"$f":"CONCATENATE($B$4,\"16\")","v":"16"},null,null,null,null,null,null,null,null,null,null,null,null,null,null,null,null,null,null,null,null,null,null,null,null,null,{"$f":"IF(OR(C35=\"\",E35=\"\",F35=\"\",G35=\"\",H35=\"\",I35=\"\",J35=\"\",J35=\"No\"),FALSE,TRUE)","v":false}]
[null,null,null,{"$f":"IFERROR($AP20*100/$AP$21,0)","v":0}]
[null,null,null,{"$f":"D6+D8+D10+D12+D14+D16+D18+D20+D22+D24+D26+D28+D30+D32+D34+D36","v":0},"Empunya:","Tandatangan",null,null,null,null,"Tarikh",null,"Diluluskan:",null,"Tandatangan",null,null,null,null,"Tarikh"]

{"sheet":"ProjBM","index":9,"n_rows":54,"n_cols":51,"rows_kept":54,"cut":false,"hidden":false,"merged":[[41,2,41,4],[41,6,41,9],[42,2,42,4],[42,6,42,9],[43,2,43,4],[43,6,43,9],[38,2,38,4],[38,6,38,9],[39,2,39,4],[39,6,39,9],[40,2,40,4],[40,6,40,9],[35,2,35,4],[35,6,35,9],[36,2,36,4],[36,6,36,9],[37,2,37,4],[37,6,37,9],[32,2,32,4],[32,6,32,9],[33,2,33,4],[33,6,33,9],[34,2,34,4],[34,6,34,9],[29,2,29,4],[29,6,29,9],[30,2,30,4],[30,6,30,9],[31,2,31,4],[31,6,31,9],[26,2,26,4],[26,6,26,9],[27,2,27,4],[27,6,27,9],[28,2,28,4],[28,6,28,9],[23,2,23,4],[23,6,23,9],[24,2,24,4],[24,6,24,9],[25,2,25,4],[25,6,25,9],[20,2,20,4],[20,6,20,9],[21,2,21,4],[21,6,21,9],[22,2,22,4],[22,6,22,9],[17,2,17,4],[17,6,17,9],[18,2,18,4],[18,6,18,9],[19,2,19,4],[19,6,19,9],[14,2,14,4],[14,6,14,9],[15,2,15,4],[15,6,15,9],[16,2,16,4],[16,6,16,9],[11,2,11,4],[11,6,11,9],[12,2,12,4],[12,6,12,9],[13,2,13,4],[13,6,13,9],[7,29,8,29],[7,31,8,31],[8,2,8,4],[9,2,9,4],[9,6,9,9],[10,2,10,4],[10,6,10,9],[5,2,7,2],[5,14,5,16],[5,20,5,21],[5,25,5,26],[7,6,7,9],[7,13,7,17],[7,19,7,22],[7,24,7,27],[0,5,0,9],[0,13,0,26],[1,11,1,13],[2,11,3,26],[4,20,4,21],[4,25,4,26]]}
[null,null,"Simple PROJECT Simpeo Benchmarks Series",null,null,{"$f":"Cascader!A3","v":2021},null,null,null,null,null,null,null,{"$f":"Cascader!D2","v":"SAMPEL CORPORATION BERHAD"}]
[null,null,"Nama: ",null,null,null,null,null,null,null,"ID KPI:",null,null,null,null,null,null,null,null,null,null,null,null,null,null,null,null,null,null,null,null,null,null,null,null,null,{"$f":"IF(AK4=\"N/A\",\"N/A\",\"Ok\")","v":"N/A"}]
[null,null,"Jawatan: ",null,null,null,null,null,null,null,"Deskripsi KPI:",null,null,null,null,null,null,null,null,null,null,null,null,null,null,null,null,null,null,null,null,null,null,null,null,null,{"$f":"IF(AK5=\"N/A\",\"N/A\",\"Ok\")","v":"N/A"}]
[null,null,"Bahagian:",null,null,null,null,null,null,null,null,null,null,null,null,null,null,null,null,null,null,null,null,null,null,null,null,null,null,null,null,null,null,null,null,null,{"$f":"IFERROR(CHOOSE(L5,\"L\",\"M\",\"N\",\"O\",\"P\",\"Q\",\"R\",\"S\",\"T\",\"U\",\"V\",\"W\",\"X\",\"Y\",\"Z\",\"AA\",\"AB\",\"AC\",\"AD\",\"AE\",\"AF\",\"AG\",\"AH\",\"AI\",\"AJ\",\"AK\",\"AL\",\"AM\",\"AN\",\"AO\",\"AP\",\"AQ\",\"AR\",\"AS\",\"AT\",\"AU\",\"AV\",\"AW\",\"AX\",\"AY\",\"AZ\",\"BA\",\"BB\",\"BC\",\"BD\",\"BE\",\"BF\",\"BG\",\"BH\",\"BI\",\"BJ\",\"BK\",\"BK\"),\"N/A\")","v":"N/A"}]
[null,null,"Skor:","Minggu Deadline:",null,null,null,null,null,null,"Minggu Pilihan:",null,null,null,null,"%",null,null,null,null,"%",null,null,null,null,"%",null,null,null,null,null,"%",null,null,null,null,{"$f":"IFERROR(CHOOSE(RIGHT(L2,2),5,6,7,8,9,10,11,12,13,14,15,16,17,18,19),\"N/A\")","v":"N/A"}]
[null,null,{"$f":"IFERROR(AF45/100*AF47,\"N/A\")","v":"N/A"},null,null,null,null,null,null,null,null,null,null,null,80,null,null,null,null,null,10,null,null,null,null,10,null,null,null,null,null,{"$f":"O6+U6+Z6","v":100}]
[]
[null,null,null,null,null,null,"Saiz Wajaran",null,null,null,null,null,null,"Selesai Tugas",null,null,null,null,null,"Kualiti Kerja",null,null,null,null,"Ikut Bajet",null,null,null,null,"Lupakan",null,"Line\nSkor"]
["Tajuk","No","Deskripsi Tugasan",null,null,null,"⍟   1x","⍟⍟  2x","⍟⍟⍟ 3x","⍟⍟⍟⍟ 4x",null,"Wajar\n%",null,"Belum Mula","Permulaan","DalamProgres","Lanjut","Selesai",null,"Tidak Diguna","«  Poor","«« Fair","«««Meet",null,"Tidak Diguna","«  Poor","«« Fair","«««Meet",null,null,null,null,null,null,null,"H","W","C","Q","B","F","H","C","Q","B","Full Line Total","C","Q","B"]
[null,null,null,null,null,null,null,null,null,null,{"$f":"IF(OR(C10=\"\",AJ10,AO10),0,AK10)","v":0},{"$f":"K10/K$45*100","v":0},null,null,null,null,null,null,null,null,null,null,null,null,null,null,null,null,null,null,null,{"$f":"IFERROR(L10*AY10,\"N/A\")","v":0},null,null,null,false,{"$f":"IFERROR(VALUE(LEFT($G10,1)),0)","v":0},1,4,4,false,{"$f":"IF(AJ10,0,1)","v":1},{"$f":"O$6","v":80},{"$f":"IF(AM10=1,0,U$6)","v":10},{"$f":"IF(AN10=1,0,Z$6)","v":10},{"$f":"SUM(AQ10:AS10)","v":100},{"$f":"(AL10-1)/4*AQ10","v":0},{"$f":"(AL10-1)/4*(AM10-1)/3*AR10","v":0},{"$f":"(AL10-1)/4*(AN10-1)/3*AS10","v":0},{"$f":"SUM(AU10:AW10)","v":0},{"$f":"IFERROR(AX10/AT10,\"N/A\")","v":0}]
[null,null,null,null,null,null,null,null,null,null,0,0,null,null,null,null,null,null,null,null,null,null,null,null,null,null,null,null,null,null,null,0,null,null,null,false,{"$f":"IFERROR(VALUE(LEFT($G11,1)),0)","v":0},1,4,4,false,1,80,10,10,100,{"$f":"(AL11-1)/4*AQ11","v":0},{"$f":"(AL11-1)/4*(AM11-1)/3*AR11","v":0},{"$f":"(AL11-1)/4*(AN11-1)/3*AS11","v":0},0,0]
[null,null,null,null,null,null,null,null,null,null,0,0,null,null,null,null,null,null,null,null,null,null,null,null,null,null,null,null,null,null,null,0,null,null,null,false,0,1,4,4,false,1,80,10,10,100,0,0,0,0,0]
[null,null,null,null,null,null,null,null,null,null,0,0,null,null,null,null,null,null,null,null,null,null,null,null,null,null,null,null,null,null,null,0,null,null,null,false,0,1,4,4,false,1,80,10,10,100,0,0,0,0,0]
[null,null,null,null,null,null,null,null,null,null,0,0,null,null,null,null,null,null,null,null,null,null,null,null,null,null,null,null,null,null,null,0,null,null,null,false,0,1,4,4,false,1,80,10,10,100,0,0,0,0,0]
[null,null,null,null,null,null,null,null,null,null,0,0,null,null,null,null,null,null,null,null,null,null,null,null,null,null,null,null,null,null,null,0,null,null,null,false,0,1,4,4,false,1,80,10,10,100,0,0,0,0,0]
[null,null,null,null,null,null,null,null,null,null,0,0,null,null,null,null,null,null,null,null,null,null,null,null,null,null,null,null,null,null,null,0,null,null,null,false,0,1,4,4,false,1,80,10,10,100,0,0,0,0,0]
[null,null,null,null,null,null,null,null,null,null,0,0,null,null,null,null,null,null,null,null,null,null,null,null,null,null,null,null,null,null,null,0,null,null,null,false,0,1,4,4,false,1,80,10,10,100,0,0,0,0,0]
[null,null,null,null,null,null,null,null,null,null,0,0,null,null,null,null,null,null,null,null,null,null,null,null,null,null,null,null,null,null,null,0,null,null,null,false,0,1,4,4,false,1,80,10,10,100,0,0,0,0,0]
[null,null,null,null,null,null,null,null,null,null,0,0,null,null,null,null,null,null,null,null,null,null,null,null,null,null,null,null,null,null,null,0,null,null,null,false,0,1,4,4,false,1,80,10,10,100,0,0,0,0,0]
[null,null,null,null,null,null,null,null,null,null,0,0,null,null,null,null,null,null,null,null,null,null,null,null,null,null,null,null,null,null,null,0,null,null,null,false,0,1,4,4,false,1,80,10,10,100,0,0,0,0,0]
[null,null,null,null,null,null,null,null,null,null,0,0,null,null,null,null,null,null,null,null,null,null,null,null,null,null,null,null,null,null,null,0,null,null,null,false,0,1,4,4,false,1,80,10,10,100,0,0,0,0,0]
[null,null,null,null,null,null,null,null,null,null,0,0,null,null,null,null,null,null,null,null,null,null,null,null,null,null,null,null,null,null,null,0,null,null,null,false,0,1,4,4,false,1,80,10,10,100,0,0,0,0,0]
[null,null,null,null,null,null,null,null,null,null,0,0,null,null,null,null,null,null,null,null,null,null,null,null,null,null,null,null,null,null,null,0,null,null,null,false,0,1,4,4,false,1,80,10,10,100,0,0,0,0,0]
[null,null,null,null,null,null,null,null,null,null,0,0,null,null,null,null,null,null,null,null,null,null,null,null,null,null,null,null,null,null,null,0,null,null,null,false,0,1,4,4,false,1,80,10,10,100,0,0,0,0,0]
[null,null,null,null,null,null,null,null,null,null,0,0,null,null,null,null,null,null,null,null,null,null,null,null,null,null,null,null,null,null,null,0,null,null,null,false,0,1,4,4,false,1,80,10,10,100,0,0,0,0,0]
[null,null,null,null,null,null,null,null,null,null,0,0,null,null,null,null,null,null,null,null,null,null,null,null,null,null,null,null,null,null,null,0,null,null,null,false,0,1,4,4,false,1,80,10,10,100,0,0,0,0,0]
[null,null,null,null,null,null,null,null,null,null,0,0,null,null,null,null,null,null,null,null,null,null,null,null,null,null,null,null,null,null,null,0,null,null,null,false,0,1,4,4,false,1,80,10,10,100,0,0,0,0,0]
[null,null,null,null,null,null,null,null,null,null,0,0,null,null,null,null,null,null,null,null,null,null,null,null,null,null,null,null,null,null,null,0,null,null,null,false,0,1,4,4,false,1,80,10,10,100,0,0,0,0,0]
[null,null,null,null,null,null,null,null,null,null,0,0,null,null,null,null,null,null,null,null,null,null,null,null,null,null,null,null,null,null,null,0,null,null,null,false,0,1,4,4,false,1,80,10,10,100,0,0,0,0,0]
[null,null,null,null,null,null,null,null,null,null,0,0,null,null,null,null,null,null,null,null,null,null,null,null,null,null,null,null,null,null,null,0,null,null,null,false,0,1,4,4,false,1,80,10,10,100,0,0,0,0,0]
[null,null,null,null,null,null,null,null,null,null,0,0,null,null,null,null,null,null,null,null,null,null,null,null,null,null,null,null,null,null,null,0,null,null,null,false,0,1,4,4,false,1,80,10,10,100,0,0,0,0,0]
[null,null,null,null,null,null,null,null,null,null,0,0,null,null,null,null,null,null,null,null,null,null,null,null,null,null,null,null,null,null,null,0,null,null,null,false,0,1,4,4,false,1,80,10,10,100,0,0,0,0,0]
[null,null,null,null,null,null,null,null,null,null,0,0,null,null,null,null,null,null,null,null,null,null,null,null,null,null,null,null,null,null,null,0,null,null,null,false,0,1,4,4,false,1,80,10,10,100,0,0,0,0,0]
[null,null,null,null,null,null,null,null,null,null,0,0,null,null,null,null,null,null,null,null,null,null,null,null,null,null,null,null,null,null,null,0,null,null,null,false,0,1,4,4,false,1,80,10,10,100,0,0,0,0,0]
[null,null,null,null,null,null,null,null,null,null,0,0,null,null,null,null,null,null,null,null,null,null,null,null,null,null,null,null,null,null,null,0,null,null,null,false,0,1,4,4,false,1,80,10,10,100,0,0,0,0,0]
[null,null,null,null,null,null,null,null,null,null,0,0,null,null,null,null,null,null,null,null,null,null,null,null,null,null,null,null,null,null,null,0,null,null,null,false,0,1,4,4,false,1,80,10,10,100,0,0,0,0,0]
[null,null,null,null,null,null,null,null,null,null,0,0,null,null,null,null,null,null,null,null,null,null,null,null,null,null,null,null,null,null,null,0,null,null,null,false,0,1,4,4,false,1,80,10,10,100,0,0,0,0,0]
[null,null,null,null,null,null,null,null,null,null,0,0,null,null,null,null,null,null,null,null,null,null,null,null,null,null,null,null,null,null,null,0,null,null,null,false,0,1,4,4,false,1,80,10,10,100,0,0,0,0,0]
[null,null,null,null,null,null,null,null,null,null,0,0,null,null,null,null,null,null,null,null,null,null,null,null,null,null,null,null,null,null,null,0,null,null,null,false,0,1,4,4,false,1,80,10,10,100,0,0,0,0,0]
[null,null,null,null,null,null,null,null,null,null,0,0,null,null,null,null,null,null,null,null,null,null,null,null,null,null,null,null,null,null,null,0,null,null,null,false,0,1,4,4,false,1,80,10,10,100,0,0,0,0,0]
[null,null,null,null,null,null,null,null,null,null,0,0,null,null,null,null,null,null,null,null,null,null,null,null,null,null,null,null,null,null,null,0,null,null,null,false,0,1,4,4,false,1,80,10,10,100,0,0,0,0,0]
[null,null,null,null,null,null,null,null,null,null,0,0,null,null,null,null,null,null,null,null,null,null,null,null,null,null,null,null,null,null,null,0,null,null,null,false,0,1,4,4,false,1,80,10,10,100,0,0,0,0,0]
[null,null,null,null,null,null,null,null,null,null,0,0,null,null,null,null,null,null,null,null,null,null,null,null,null,null,null,null,null,null,null,0,null,null,null,false,0,1,4,4,false,1,80,10,10,100,0,0,0,0,0]
[null,null,null,null,null,null,null,null,null,null,0,0,null,null,null,null,null,null,null,null,null,null,null,null,null,null,null,null,null,null,null,0,null,null,null,false,0,1,4,4,false,1,80,10,10,100,0,0,0,0,0]
[null,null,null,null,null,null,null,null,null,null,{"$f":"IF(SUM(K10:K44)=0,1,SUM(K10:K44))","v":1},{"$f":"SUM(L10:L44)","v":0},null,null,null,null,null,null,null,null,null,null,null,null,null,null,null,null,null,null,null,{"$f":"IFERROR(SUM(AF10:AF44)/L45*100,\"N/A\")","v":"N/A"}]
[]
[null,null,null,null,null,null,null,null,null,null,null,null,null,null,null,null,null,null,null,null,null,null,null,null,null,null,null,null,null,"Use Base:",null,100]
[]
[null,null,null,null,null,null,null,null,null,null,null,null,null,null,null,null,null,"A form by Leadersense Consulting & Systems Sdn Bhd @2017"]
[null,null,null,null,null,null,0]
[null,null,null,null,null,null,"1x ⍟"]
[null,null,null,null,null,null,"2x ⍟⍟"]
[null,null,null,null,null,null,"3x ⍟⍟⍟"]
[null,null,null,null,null,null,"4x ⍟⍟⍟⍟"]

{"sheet":"RankBM","index":10,"n_rows":65,"n_cols":53,"rows_kept":65,"cut":false,"hidden":false,"merged":[[42,12,54,12],[43,2,43,5],[44,2,44,5],[45,2,45,5],[46,2,46,5],[47,2,47,5],[48,2,48,5],[49,2,49,5],[50,2,50,5],[51,2,51,5],[42,10,54,10],[41,2,41,4],[41,5,41,9],[42,0,54,0],[42,2,42,5],[42,7,54,9],[52,2,52,5],[53,2,53,5],[54,2,54,5],[26,10,38,10],[26,12,38,12],[27,2,27,5],[28,2,28,5],[29,2,29,5],[30,2,30,5],[31,2,31,5],[32,2,32,5],[33,2,33,5],[34,2,34,5],[25,2,25,4],[25,5,25,9],[26,0,38,0],[26,2,26,5],[26,7,38,9],[35,2,35,5],[36,2,36,5],[37,2,37,5],[38,2,38,5],[10,0,22,0],[10,2,10,5],[10,7,22,9],[10,10,22,10],[16,2,16,5],[17,2,17,5],[18,2,18,5],[19,2,19,5],[20,2,20,5],[22,2,22,5],[10,12,22,12],[11,2,11,5],[12,2,12,5],[13,2,13,5],[14,2,14,5],[15,2,15,5],[21,2,21,5],[0,3,1,9],[0,47,0,48],[3,4,5,10],[7,6,7,9],[9,2,9,4],[9,5,9,9]]}
[null,"SIMPLE RANKING Simpeo Benchmarks Series",null,{"$f":"Cascader!D2","v":"SAMPEL CORPORATION BERHAD"}]
[null,{"$f":"Cascader!A3","v":2021}]
[null,null,null,"ID KPI:"]
[null,"Nama:",null,"Deskripsi KPI:",null,null,null,null,null,null,null,null,null,null,null,null,null,null,null,null,null,null,null,null,null,null,null,null,null,null,null,null,null,null,null,null,null,null,null,null,null,null,null,null,null,null,null,{"$f":"IF(AV6=\"N/A\",\"N/A\",\"Ok\")","v":"N/A"}]
[null,"Jawatan:",null,null,null,null,null,null,null,null,null,null,null,null,null,null,null,null,null,null,null,null,null,null,null,null,null,null,null,null,null,null,null,null,null,null,null,null,null,null,null,null,null,null,null,null,null,{"$f":"IF(AV7=\"N/A\",\"N/A\",\"Ok\")","v":"N/A"}]
[null,"Bahagian:",null,null,null,null,null,null,null,null,null,null,null,null,null,null,null,null,null,null,null,null,null,null,null,null,null,null,null,null,null,null,null,null,null,null,null,null,null,null,null,null,null,null,null,null,null,{"$f":"IFERROR(CHOOSE(E7,\"L\",\"M\",\"N\",\"O\",\"P\",\"Q\",\"R\",\"S\",\"T\",\"U\",\"V\",\"W\",\"X\",\"Y\",\"Z\",\"AA\",\"AB\",\"AC\",\"AD\",\"AE\",\"AF\",\"AG\",\"AH\",\"AI\",\"AJ\",\"AK\",\"AL\",\"AM\",\"AN\",\"AO\",\"AP\",\"AQ\",\"AR\",\"AS\",\"AT\",\"AU\",\"AV\",\"AW\",\"AX\",\"AY\",\"AZ\",\"BA\",\"BB\",\"BC\",\"BD\",\"BE\",\"BF\",\"BG\",\"BH\",\"BI\",\"BJ\",\"BK\",\"BK\"),\"N/A\")","v":"N/A"}]
[null,"Skor:",null,"Minggu Pilihan:",null,null,null,null,null,null,null,null,null,null,null,null,null,null,null,null,null,null,null,null,null,null,null,null,null,null,null,null,null,null,null,null,null,null,null,null,null,null,null,null,null,null,null,{"$f":"IFERROR(CHOOSE(RIGHT(E3,2),5,6,7,8,9,10,11,12,13,14,15,16,17,18,19),\"N/A\")","v":"N/A"}]
[null,{"$f":"IFERROR(K56/100*K58,\"\")","v":""},"Deskripsi Rank",null,null,null,"Wajaran %",null,null,null,"Jumlah %",null,"Catatan"]
[null,null,null,null,null,"Off","1x","2x","3x","4x"]
[null,"A","Taipkan Deskripsi Tajuk A di sini",null,null,"Off",null,null,null,null,null,null,null,null,null,null,null,null,null,null,null,null,null,null,null,null,null,null,null,null,null,null,null,null,null,null,null,null,null,null,null,null,null,null,null,null,null,"Sel Wgt",{"$f":"IFERROR(VALUE(LEFT(F10,1))+1,1)","v":1},{"$f":"AW10-1","v":0},{"$f":"AX10/AX61*100","v":{"$error":"#DIV/0!"}},{"$f":"IFERROR(AY10,\"N/A\")","v":"N/A"}]
["(Zero)Worst <--- Rank ---> Best(Full)","Best = 1",null,null,null,null,null,{"$f":"IF(AZ10=0,\"N/A\",AZ10)","v":"N/A"},null,null,{"$f":"IF(H11=\"N/A\",\"N/A\",AZ11)","v":"N/A"},null,null,null,null,null,null,null,null,null,null,null,null,null,null,null,null,null,null,null,null,null,null,null,null,null,null,null,null,null,null,null,null,null,null,null,null,"Sel Rank",1,{"$f":"IF(C11=\"\",0,1)","v":0},{"$f":"AW11-(14-AX24)","v":-13},{"$f":"IFERROR(AY10*AY12/AY24,\"N/A\")","v":"N/A"},{"$f":"IF(AZ11=\"N/A\",0,AZ11)","v":0}]
[null,2,null,null,null,null,null,null,null,null,null,null,null,null,null,null,null,null,null,null,null,null,null,null,null,null,null,null,null,null,null,null,null,null,null,null,null,null,null,null,null,null,null,null,null,null,null,null,null,{"$f":"IF(C12=\"\",0,1)","v":0},{"$f":"IF(AY11<0,0,AY11)","v":0}]
[null,3,null,null,null,null,null,null,null,null,null,null,null,null,null,null,null,null,null,null,null,null,null,null,null,null,null,null,null,null,null,null,null,null,null,null,null,null,null,null,null,null,null,null,null,null,null,null,null,0]
[null,4,null,null,null,null,null,null,null,null,null,null,null,null,null,null,null,null,null,null,null,null,null,null,null,null,null,null,null,null,null,null,null,null,null,null,null,null,null,null,null,null,null,null,null,null,null,null,null,0]
[null,5,null,null,null,null,null,null,null,null,null,null,null,null,null,null,null,null,null,null,null,null,null,null,null,null,null,null,null,null,null,null,null,null,null,null,null,null,null,null,null,null,null,null,null,null,null,null,null,0]
[null,6,null,null,null,null,null,null,null,null,null,null,null,null,null,null,null,null,null,null,null,null,null,null,null,null,null,null,null,null,null,null,null,null,null,null,null,null,null,null,null,null,null,null,null,null,null,null,null,0]
[null,7,null,null,null,null,null,null,null,null,null,null,null,null,null,null,null,null,null,null,null,null,null,null,null,null,null,null,null,null,null,null,null,null,null,null,null,null,null,null,null,null,null,null,null,null,null,null,null,0]
[null,8,null,null,null,null,null,null,null,null,null,null,null,null,null,null,null,null,null,null,null,null,null,null,null,null,null,null,null,null,null,null,null,null,null,null,null,null,null,null,null,null,null,null,null,null,null,null,null,0]
[null,9,null,null,null,null,null,null,null,null,null,null,null,null,null,null,null,null,null,null,null,null,null,null,null,null,null,null,null,null,null,null,null,null,null,null,null,null,null,null,null,null,null,null,null,null,null,null,null,0]
[null,10,null,null,null,null,null,null,null,null,null,null,null,null,null,null,null,null,null,null,null,null,null,null,null,null,null,null,null,null,null,null,null,null,null,null,null,null,null,null,null,null,null,null,null,null,null,null,null,0]
[null,11,null,null,null,null,null,null,null,null,null,null,null,null,null,null,null,null,null,null,null,null,null,null,null,null,null,null,null,null,null,null,null,null,null,null,null,null,null,null,null,null,null,null,null,null,null,null,null,0]
[null,12,null,null,null,null,null,null,null,null,null,null,null,null,null,null,null,null,null,null,null,null,null,null,null,null,null,null,null,null,null,null,null,null,null,null,null,null,null,null,null,null,null,null,null,null,null,null,null,0]
[null,13,null,null,null,null,null,null,null,null,null,null,null,null,null,null,null,null,null,null,null,null,null,null,null,null,null,null,null,null,null,null,null,null,null,null,null,null,null,null,null,null,null,null,null,null,null,null,null,0]
[null,null,null,null,null,null,null,null,null,null,null,null,null,null,null,null,null,null,null,null,null,null,null,null,null,null,null,null,null,null,null,null,null,null,null,null,null,null,null,null,null,null,null,null,null,null,null,null,null,{"$f":"SUM(AX11:AX23)","v":0},{"$f":"AX24-1","v":-1}]
[null,null,null,null,null,"Off","1x","2x","3x","4x"]
[null,"B","Taipkan Deskripsi Tajuk B di sini",null,null,"Off",null,null,null,null,null,null,null,null,null,null,null,null,null,null,null,null,null,null,null,null,null,null,null,null,null,null,null,null,null,null,null,null,null,null,null,null,null,null,null,null,null,"Sel Wgt",{"$f":"IFERROR(VALUE(LEFT(F26,1))+1,1)","v":1},{"$f":"AW26-1","v":0},{"$f":"AX26/AX61*100","v":{"$error":"#DIV/0!"}},{"$f":"IFERROR(AY26,\"N/A\")","v":"N/A"}]
["(Zero)Worst <--- Rank ---> Best(Full)","Best = 1",null,null,null,null,null,{"$f":"IF(AZ26=0,\"N/A\",AZ26)","v":"N/A"},null,null,{"$f":"IF(H27=\"N/A\",\"N/A\",AZ27)","v":"N/A"},null,null,null,null,null,null,null,null,null,null,null,null,null,null,null,null,null,null,null,null,null,null,null,null,null,null,null,null,null,null,null,null,null,null,null,null,"Sel Rank",1,{"$f":"IF(C27=\"\",0,1)","v":0},{"$f":"AW27-(14-AX40)","v":-13},{"$f":"IFERROR(AY26*AY28/AY40,\"N/A\")","v":"N/A"},{"$f":"IF(AZ27=\"N/A\",0,1)","v":0}]
[null,2,null,null,null,null,null,null,null,null,null,null,null,null,null,null,null,null,null,null,null,null,null,null,null,null,null,null,null,null,null,null,null,null,null,null,null,null,null,null,null,null,null,null,null,null,null,null,null,0,{"$f":"IF(AY27<0,0,AY27)","v":0}]
[null,3,null,null,null,null,null,null,null,null,null,null,null,null,null,null,null,null,null,null,null,null,null,null,null,null,null,null,null,null,null,null,null,null,null,null,null,null,null,null,null,null,null,null,null,null,null,null,null,0]
[null,4,null,null,null,null,null,null,null,null,null,null,null,null,null,null,null,null,null,null,null,null,null,null,null,null,null,null,null,null,null,null,null,null,null,null,null,null,null,null,null,null,null,null,null,null,null,null,null,0]
[null,5,null,null,null,null,null,null,null,null,null,null,null,null,null,null,null,null,null,null,null,null,null,null,null,null,null,null,null,null,null,null,null,null,null,null,null,null,null,null,null,null,null,null,null,null,null,null,null,0]
[null,6,null,null,null,null,null,null,null,null,null,null,null,null,null,null,null,null,null,null,null,null,null,null,null,null,null,null,null,null,null,null,null,null,null,null,null,null,null,null,null,null,null,null,null,null,null,null,null,0]
[null,7,null,null,null,null,null,null,null,null,null,null,null,null,null,null,null,null,null,null,null,null,null,null,null,null,null,null,null,null,null,null,null,null,null,null,null,null,null,null,null,null,null,null,null,null,null,null,null,0]
[null,8,null,null,null,null,null,null,null,null,null,null,null,null,null,null,null,null,null,null,null,null,null,null,null,null,null,null,null,null,null,null,null,null,null,null,null,null,null,null,null,null,null,null,null,null,null,null,null,0]
[null,9,null,null,null,null,null,null,null,null,null,null,null,null,null,null,null,null,null,null,null,null,null,null,null,null,null,null,null,null,null,null,null,null,null,null,null,null,null,null,null,null,null,null,null,null,null,null,null,0]
[null,10,null,null,null,null,null,null,null,null,null,null,null,null,null,null,null,null,null,null,null,null,null,null,null,null,null,null,null,null,null,null,null,null,null,null,null,null,null,null,null,null,null,null,null,null,null,null,null,0]
[null,11,null,null,null,null,null,null,null,null,null,null,null,null,null,null,null,null,null,null,null,null,null,null,null,null,null,null,null,null,null,null,null,null,null,null,null,null,null,null,null,null,null,null,null,null,null,null,null,0]
[null,12,null,null,null,null,null,null,null,null,null,null,null,null,null,null,null,null,null,null,null,null,null,null,null,null,null,null,null,null,null,null,null,null,null,null,null,null,null,null,null,null,null,null,null,null,null,null,null,0]
[null,13,null,null,null,null,null,null,null,null,null,null,null,null,null,null,null,null,null,null,null,null,null,null,null,null,null,null,null,null,null,null,null,null,null,null,null,null,null,null,null,null,null,null,null,null,null,null,null,0]
[null,null,null,null,null,null,null,null,null,null,null,null,null,null,null,null,null,null,null,null,null,null,null,null,null,null,null,null,null,null,null,null,null,null,null,null,null,null,null,null,null,null,null,null,null,null,null,null,null,{"$f":"SUM(AX27:AX39)","v":0},{"$f":"AX40-1","v":-1}]
[null,null,null,null,null,"Off","1x","2x","3x","4x"]
[null,"C","Taipkan Deskripsi Tajuk C di sini",null,null,"Off",null,null,null,null,null,null,null,null,null,null,null,null,null,null,null,null,null,null,null,null,null,null,null,null,null,null,null,null,null,null,null,null,null,null,null,null,null,null,null,null,null,"Sel Wgt",{"$f":"IFERROR(VALUE(LEFT(F42,1))+1,1)","v":1},{"$f":"AW42-1","v":0},{"$f":"AX42/AX61*100","v":{"$error":"#DIV/0!"}},{"$f":"IFERROR(AY42,\"N/A\")","v":"N/A"}]
["(Zero)Worst <--- Rank ---> Best(Full)","Best = 1",null,null,null,null,null,{"$f":"IF(AZ42=0,\"N/A\",AZ42)","v":"N/A"},null,null,{"$f":"IF(H43=\"N/A\",\"N/A\",AZ43)","v":"N/A"},null,null,null,null,null,null,null,null,null,null,null,null,null,null,null,null,null,null,null,null,null,null,null,null,null,null,null,null,null,null,null,null,null,null,null,null,"Sel Rank",1,{"$f":"IF(C43=\"\",0,1)","v":0},{"$f":"AW43-(14-AX60)","v":-13},{"$f":"IFERROR(AY42*AY44/AY60,\"N/A\")","v":"N/A"},{"$f":"IF(AZ43=\"N/A\",0,1)","v":0}]
[null,2,null,null,null,null,null,null,null,null,null,null,null,null,null,null,null,null,null,null,null,null,null,null,null,null,null,null,null,null,null,null,null,null,null,null,null,null,null,null,null,null,null,null,null,null,null,null,null,0,{"$f":"IF(AY43<0,0,AY43)","v":0}]
[null,3,null,null,null,null,null,null,null,null,null,null,null,null,null,null,null,null,null,null,null,null,null,null,null,null,null,null,null,null,null,null,null,null,null,null,null,null,null,null,null,null,null,null,null,null,null,null,null,0]
[null,4,null,null,null,null,null,null,null,null,null,null,null,null,null,null,null,null,null,null,null,null,null,null,null,null,null,null,null,null,null,null,null,null,null,null,null,null,null,null,null,null,null,null,null,null,null,null,null,0]
[null,5,null,null,null,null,null,null,null,null,null,null,null,null,null,null,null,null,null,null,null,null,null,null,null,null,null,null,null,null,null,null,null,null,null,null,null,null,null,null,null,null,null,null,null,null,null,null,null,0]
[null,6,null,null,null,null,null,null,null,null,null,null,null,null,null,null,null,null,null,null,null,null,null,null,null,null,null,null,null,null,null,null,null,null,null,null,null,null,null,null,null,null,null,null,null,null,null,null,null,0]
[null,7,null,null,null,null,null,null,null,null,null,null,null,null,null,null,null,null,null,null,null,null,null,null,null,null,null,null,null,null,null,null,null,null,null,null,null,null,null,null,null,null,null,null,null,null,null,null,null,0]
[null,8,null,null,null,null,null,null,null,null,null,null,null,null,null,null,null,null,null,null,null,null,null,null,null,null,null,null,null,null,null,null,null,null,null,null,null,null,null,null,null,null,null,null,null,null,null,null,null,0]
[null,9,null,null,null,null,null,null,null,null,null,null,null,null,null,null,null,null,null,null,null,null,null,null,null,null,null,null,null,null,null,null,null,null,null,null,null,null,null,null,null,null,null,null,null,null,null,null,null,0]
[null,10,null,null,null,null,null,null,null,null,null,null,null,null,null,null,null,null,null,null,null,null,null,null,null,null,null,null,null,null,null,null,null,null,null,null,null,null,null,null,null,null,null,null,null,null,null,null,null,0]
[null,11,null,null,null,null,null,null,null,null,null,null,null,null,null,null,null,null,null,null,null,null,null,null,null,null,null,null,null,null,null,null,null,null,null,null,null,null,null,null,null,null,null,null,null,null,null,null,null,0]
[null,12,null,null,null,null,null,null,null,null,null,null,null,null,null,null,null,null,null,null,null,null,null,null,null,null,null,null,null,null,null,null,null,null,null,null,null,null,null,null,null,null,null,null,null,null,null,null,null,0]
[null,13,null,null,null,null,null,null,null,null,null,null,null,null,null,null,null,null,null,null,null,null,null,null,null,null,null,null,null,null,null,null,null,null,null,null,null,null,null,null,null,null,null,null,null,null,null,null,null,0]
[null,null,null,null,null,null,null,null,null,null,{"$f":"BA62","v":"N/A"}]
[]
[null,null,null,null,null,null,null,null,null,"Use Base:",100]
[]
[null,null,null,null,null,null,"A Form by Leadersense Consulting & Systems Sdn Bhd",null,null,null,null,null,null,null,null,null,null,null,null,null,null,null,null,null,null,null,null,null,null,null,null,null,null,null,null,null,null,null,null,null,null,null,null,null,null,null,null,null,null,{"$f":"SUM(AX43:AX55)","v":0},{"$f":"AX60-1","v":-1}]
[null,null,null,null,null,"Off",null,null,null,null,null,null,null,null,null,null,null,null,null,null,null,null,null,null,null,null,null,null,null,null,null,null,null,null,null,null,null,null,null,null,null,null,null,null,null,null,null,null,"Weight x",{"$f":"AX10+AX26+AX42","v":0},null,null,{"$f":"BA11+BA27+BA43","v":0}]
[null,null,null,null,null,"1x ⍟",null,null,null,null,null,null,null,null,null,null,null,null,null,null,null,null,null,null,null,null,null,null,null,null,null,null,null,null,null,null,null,null,null,null,null,null,null,null,null,null,null,null,null,null,null,{"$f":"(AZ11+AZ27+AZ43)*BA61/BA61","v":{"$error":"#VALUE!"}},{"$f":"IFERROR(AZ62,\"N/A\")","v":"N/A"}]
[null,null,null,null,null,"2x ⍟⍟"]
[null,null,null,null,null,"3x ⍟⍟⍟"]
[null,null,null,null,null,"4x ⍟⍟⍟⍟"]

{"sheet":"CListBM","index":11,"n_rows":48,"n_cols":53,"rows_kept":48,"cut":false,"hidden":false,"merged":[[38,1,38,2],[38,4,38,7],[38,14,38,16],[38,18,38,21],[38,23,38,26],[36,1,36,2],[36,4,36,7],[36,14,36,16],[36,18,36,21],[36,23,36,26],[37,1,37,2],[37,4,37,7],[37,14,37,16],[37,18,37,21],[37,23,37,26],[34,1,34,2],[34,4,34,7],[34,14,34,16],[34,18,34,21],[34,23,34,26],[35,1,35,2],[35,4,35,7],[35,14,35,16],[35,18,35,21],[35,23,35,26],[32,1,32,2],[32,4,32,7],[32,14,32,16],[32,18,32,21],[32,23,32,26],[33,1,33,2],[33,4,33,7],[33,14,33,16],[33,18,33,21],[33,23,33,26],[30,1,30,2],[30,4,30,7],[30,14,30,16],[30,18,30,21],[30,23,30,26],[31,1,31,2],[31,4,31,7],[31,14,31,16],[31,18,31,21],[31,23,31,26],[28,1,28,2],[28,4,28,7],[28,14,28,16],[28,18,28,21],[28,23,28,26],[29,1,29,2],[29,4,29,7],[29,14,29,16],[29,18,29,21],[29,23,29,26],[26,1,26,2],[26,4,26,7],[26,14,26,16],[26,18,26,21],[26,23,26,26],[27,1,27,2],[27,4,27,7],[27,14,27,16],[27,18,27,21],[27,23,27,26],[24,1,24,2],[24,4,24,7],[24,14,24,16],[24,18,24,21],[24,23,24,26],[25,1,25,2],[25,4,25,7],[25,14,25,16],[25,18,25,21],[25,23,25,26],[22,1,22,2],[22,4,22,7],[22,14,22,16],[22,18,22,21],[22,23,22,26],[23,1,23,2],[23,4,23,7],[23,14,23,16],[23,18,23,21],[23,23,23,26],[20,1,20,2],[20,4,20,7],[20,14,20,16],[20,18,20,21],[20,23,20,26],[21,1,21,2],[21,4,21,7],[21,14,21,16],[21,18,21,21],[21,23,21,26],[18,1,18,2],[18,4,18,7],[18,14,18,16],[18,18,18,21],[18,23,18,26],[19,1,19,2],[19,4,19,7],[19,14,19,16],[19,18,19,21],[19,23,19,26],[16,1,16,2],[16,4,16,7],[16,14,16,16],[16,18,16,21],[16,23,16,26],[17,1,17,2],[17,4,17,7],[17,14,17,16],[17,18,17,21],[17,23,17,26],[14,1,14,2],[14,4,14,7],[14,14,14,16],[14,18,14,21],[14,23,14,26],[15,1,15,2],[15,4,15,7],[15,14,15,16],[15,18,15,21],[15,23,15,26],[11,14,11,16],[11,18,11,21],[11,23,11,26],[12,1,12,2],[12,4,12,7],[12,14,12,16],[12,18,12,21],[12,23,12,26],[13,1,13,2],[13,4,13,7],[13,14,13,16],[13,18,13,21],[13,23,13,26],[7,32,8,32],[8,1,8,2],[9,1,9,2],[9,4,9,7],[9,14,9,16],[9,18,9,21],[9,23,9,26],[9,32,38,32],[5,1,7,1],[5,15,5,16],[5,19,5,20],[5,24,5,25],[7,4,7,7],[7,11,7,12],[7,14,7,16],[7,18,7,21],[7,23,7,26],[10,1,10,2],[10,4,10,7],[10,14,10,16],[10,18,10,21],[10,23,10,26],[11,1,11,2],[11,4,11,7],[0,4,0,8],[0,11,0,25],[1,11,1,12],[2,11,3,26],[4,15,4,16],[4,19,4,20],[4,24,4,25],[7,28,8,28],[7,30,8,30]]}
[null,"Simple CHECKLIST Simpeo Benchmarks Series",null,null,{"$f":"Cascader!A3","v":2021},null,null,null,null,null,null,{"$f":"Cascader!D2","v":"SAMPEL CORPORATION BERHAD"}]
[null,"NAMA:",null,null,null,null,null,null,null,"ID KPI:",null,null,null,null,null,null,null,null,null,null,null,null,null,null,null,null,null,null,null,null,null,null,null,null,{"$f":"IF(AI4=\"N/A\",\"N/A\",\"Ok\")","v":"N/A"}]
[null,"JAWATAN:",null,null,null,null,null,null,null,"Deskripsi KPI:",null,null,null,null,null,null,null,null,null,null,null,null,null,null,null,null,null,null,null,null,null,null,null,null,{"$f":"IF(AI5=\"N/A\",\"N/A\",\"Ok\")","v":"N/A"}]
[null,"BAHAGIAN:",null,null,null,null,null,null,null,null,null,null,null,null,null,null,null,null,null,null,null,null,null,null,null,null,null,null,null,null,null,null,null,null,{"$f":"IFERROR(CHOOSE(L5,\"L\",\"M\",\"N\",\"O\",\"P\",\"Q\",\"R\",\"S\",\"T\",\"U\",\"V\",\"W\",\"X\",\"Y\",\"Z\",\"AA\",\"AB\",\"AC\",\"AD\",\"AE\",\"AF\",\"AG\",\"AH\",\"AI\",\"AJ\",\"AK\",\"AL\",\"AM\",\"AN\",\"AO\",\"AP\",\"AQ\",\"AR\",\"AS\",\"AT\",\"AU\",\"AV\",\"AW\",\"AX\",\"AY\",\"AZ\",\"BA\",\"BB\",\"BC\",\"BD\",\"BE\",\"BF\",\"BG\",\"BH\",\"BI\",\"BJ\",\"BK\",\"BK\"),\"N/A\")","v":"N/A"}]
[null,"Skor:",null,null,null,null,null,null,null,"Minggu Pilihan:",null,null,"%",null,null,"%",null,null,null,"%",null,null,null,null,"%",null,null,null,null,null,"%",null,null,null,{"$f":"IFERROR(CHOOSE(RIGHT(L2,2),5,6,7,8,9,10,11,12,13,14,15,16,17,18,19),\"N/A\")","v":"N/A"}]
[null,{"$f":"IFERROR(AE40/100*AE42,\"\")","v":""},null,null,null,null,null,null,null,null,null,null,70,null,null,10,null,null,null,10,null,null,null,null,10,null,null,null,null,null,{"$f":"M6+P6+T6+Y6","v":100},null,null,null,null,null,null,null,null,null,null,null,null,null,null,null,null,null,null,null,null,null,"L5"]
[]
[null,null,null,null,"Saiz Wajaran",null,null,null,null,null,null,"Penyelesaian",null,null,"Tepati Masa",null,null,null,"Kualiti",null,null,null,null,"Ikut Bajet",null,null,null,null,"  Lupakan þ",null,"Line\nSkor",null,"Catatan"]
["No","Deskripsi Tugasan",null,null,"⍟ 1x","⍟⍟ 2x","⍟⍟⍟ 3x","⍟⍟⍟⍟ 4x",null,"Wajar\n%",null,"Deadline","Selesai þ",null,"✪  Poor","✪✪ Fair","✪✪✪Meet",null,"Not Used","✪  Poor","✪✪ Fair","✪✪✪Meet",null,"Not Used","✪  Poor","✪✪ Fair","✪✪✪Meet"]
[1,null,null,null,null,null,null,null,{"$f":"IF(OR(B10=\"\",AM10),0,AI10)","v":0},{"$f":"I10/I$40*100","v":0},null,null,null,null,null,null,null,null,null,null,null,null,null,null,null,null,null,null,null,null,{"$f":"IFERROR(J10*AW10,\"N/A\")","v":0},null,null,null,{"$f":"IFERROR(VALUE(LEFT($E10,1)),0)","v":0},{"$f":"IFERROR(VALUE(LEFT($O10,1)),0)","v":0},{"$f":"IFERROR(VALUE(LEFT($S10,1)),0)","v":0},{"$f":"IFERROR(VALUE(LEFT($X10,1)),0)","v":0},false,{"$f":"IF($AX10,M$6,0)","v":0},{"$f":"P$6","v":10},{"$f":"IF(AK10=0,0,T$6)","v":0},{"$f":"IF(AL10=0,0,Y$6)","v":0},{"$f":"SUM(AN10:AQ10)","v":10},{"$f":"AJ10/3*AO10","v":0},{"$f":"AK10/3*AP10","v":0},{"$f":"AL10/3*AQ10","v":0},{"$f":"IF(AN10<>0,AN10+AS10+AT10+AU10,0)","v":0},{"$f":"IFERROR(AV10/AR10,\"N/A\")","v":0},false]
[2,null,null,null,null,null,null,null,0,{"$f":"I11/I$40*100","v":0},null,null,null,null,null,null,null,null,null,null,null,null,null,null,null,null,null,null,null,null,{"$f":"IFERROR(J11*AW11,\"N/A\")","v":0},null,null,null,{"$f":"IFERROR(VALUE(LEFT($E11,1)),0)","v":0},{"$f":"IFERROR(VALUE(LEFT($O11,1)),0)","v":0},{"$f":"IFERROR(VALUE(LEFT($S11,1)),0)","v":0},{"$f":"IFERROR(VALUE(LEFT($X11,1)),0)","v":0},false,{"$f":"IF($AX11,M$6,0)","v":0},{"$f":"P$6","v":10},{"$f":"IF(AK11=0,0,T$6)","v":0},{"$f":"IF(AL11=0,0,Y$6)","v":0},{"$f":"SUM(AN11:AQ11)","v":10},{"$f":"AJ11/3*AO11","v":0},0,0,{"$f":"IF(AN11<>0,AN11+AS11+AT11+AU11,0)","v":0},{"$f":"IFERROR(AV11/AR11,\"N/A\")","v":0},false]
[3,null,null,null,null,null,null,null,0,0,null,null,null,null,null,null,null,null,null,null,null,null,null,null,null,null,null,null,null,null,0,null,null,null,0,0,0,0,false,0,10,0,0,10,0,0,0,0,0,false]
[4,null,null,null,null,null,null,null,0,0,null,null,null,null,null,null,null,null,null,null,null,null,null,null,null,null,null,null,null,null,0,null,null,null,0,0,0,0,false,0,10,0,0,10,0,0,0,0,0,false]
[5,null,null,null,null,null,null,null,0,0,null,null,null,null,null,null,null,null,null,null,null,null,null,null,null,null,null,null,null,null,0,null,null,null,0,0,0,0,false,0,10,0,0,10,0,0,0,0,0,false]
[6,null,null,null,null,null,null,null,0,0,null,null,null,null,null,null,null,null,null,null,null,null,null,null,null,null,null,null,null,null,0,null,null,null,0,0,0,0,false,0,10,0,0,10,0,0,0,0,0,false]
[7,null,null,null,null,null,null,null,0,0,null,null,null,null,null,null,null,null,null,null,null,null,null,null,null,null,null,null,null,null,0,null,null,null,0,0,0,0,false,0,10,0,0,10,0,0,0,0,0,false]
[8,null,null,null,null,null,null,null,0,0,null,null,null,null,null,null,null,null,null,null,null,null,null,null,null,null,null,null,null,null,0,null,null,null,0,0,0,0,false,0,10,0,0,10,0,0,0,0,0,false]
[9,null,null,null,null,null,null,null,0,0,null,null,null,null,null,null,null,null,null,null,null,null,null,null,null,null,null,null,null,null,0,null,null,null,0,0,0,0,false,0,10,0,0,10,0,0,0,0,0,false]
[10,null,null,null,null,null,null,null,0,0,null,null,null,null,null,null,null,null,null,null,null,null,null,null,null,null,null,null,null,null,0,null,null,null,0,0,0,0,false,0,10,0,0,10,0,0,0,0,0,false]
[11,null,null,null,null,null,null,null,0,0,null,null,null,null,null,null,null,null,null,null,null,null,null,null,null,null,null,null,null,null,0,null,null,null,0,0,0,0,false,0,10,0,0,10,0,0,0,0,0,false]
[12,null,null,null,null,null,null,null,0,0,null,null,null,null,null,null,null,null,null,null,null,null,null,null,null,null,null,null,null,null,0,null,null,null,0,0,0,0,false,0,10,0,0,10,0,0,0,0,0,false]
[13,null,null,null,null,null,null,null,0,0,null,null,null,null,null,null,null,null,null,null,null,null,null,null,null,null,null,null,null,null,0,null,null,null,0,0,0,0,false,0,10,0,0,10,0,0,0,0,0,false]
[14,null,null,null,null,null,null,null,0,0,null,null,null,null,null,null,null,null,null,null,null,null,null,null,null,null,null,null,null,null,0,null,null,null,0,0,0,0,false,0,10,0,0,10,0,0,0,0,0,false]
[15,null,null,null,null,null,null,null,0,0,null,null,null,null,null,null,null,null,null,null,null,null,null,null,null,null,null,null,null,null,0,null,null,null,0,0,0,0,false,0,10,0,0,10,0,0,0,0,0,false]
[16,null,null,null,null,null,null,null,0,0,null,null,null,null,null,null,null,null,null,null,null,null,null,null,null,null,null,null,null,null,0,null,null,null,0,0,0,0,false,0,10,0,0,10,0,0,0,0,0,false]
[17,null,null,null,null,null,null,null,0,0,null,null,null,null,null,null,null,null,null,null,null,null,null,null,null,null,null,null,null,null,0,null,null,null,0,0,0,0,false,0,10,0,0,10,0,0,0,0,0,false]
[18,null,null,null,null,null,null,null,0,0,null,null,null,null,null,null,null,null,null,null,null,null,null,null,null,null,null,null,null,null,0,null,null,null,0,0,0,0,false,0,10,0,0,10,0,0,0,0,0,false]
[19,null,null,null,null,null,null,null,0,0,null,null,null,null,null,null,null,null,null,null,null,null,null,null,null,null,null,null,null,null,0,null,null,null,0,0,0,0,false,0,10,0,0,10,0,0,0,0,0,false]
[20,null,null,null,null,null,null,null,0,0,null,null,null,null,null,null,null,null,null,null,null,null,null,null,null,null,null,null,null,null,0,null,null,null,0,0,0,0,false,0,10,0,0,10,0,0,0,0,0,false]
[21,null,null,null,null,null,null,null,0,0,null,null,null,null,null,null,null,null,null,null,null,null,null,null,null,null,null,null,null,null,0,null,null,null,0,0,0,0,false,0,10,0,0,10,0,0,0,0,0,false]
[22,null,null,null,null,null,null,null,0,0,null,null,null,null,null,null,null,null,null,null,null,null,null,null,null,null,null,null,null,null,0,null,null,null,0,0,0,0,false,0,10,0,0,10,0,0,0,0,0,false]
[23,null,null,null,null,null,null,null,0,0,null,null,null,null,null,null,null,null,null,null,null,null,null,null,null,null,null,null,null,null,0,null,null,null,0,0,0,0,false,0,10,0,0,10,0,0,0,0,0,false]
[24,null,null,null,null,null,null,null,0,0,null,null,null,null,null,null,null,null,null,null,null,null,null,null,null,null,null,null,null,null,0,null,null,null,0,0,0,0,false,0,10,0,0,10,0,0,0,0,0,false]
[25,null,null,null,null,null,null,null,0,0,null,null,null,null,null,null,null,null,null,null,null,null,null,null,null,null,null,null,null,null,0,null,null,null,0,0,0,0,false,0,10,0,0,10,0,0,0,0,0,false]
[26,null,null,null,null,null,null,null,0,0,null,null,null,null,null,null,null,null,null,null,null,null,null,null,null,null,null,null,null,null,0,null,null,null,0,0,0,0,false,0,10,0,0,10,0,0,0,0,0,false]
[27,null,null,null,null,null,null,null,0,0,null,null,null,null,null,null,null,null,null,null,null,null,null,null,null,null,null,null,null,null,0,null,null,null,0,0,0,0,false,0,10,0,0,10,0,0,0,0,0,false]
[28,null,null,null,null,null,null,null,0,0,null,null,null,null,null,null,null,null,null,null,null,null,null,null,null,null,null,null,null,null,0,null,null,null,0,0,0,0,false,0,10,0,0,10,0,0,0,0,0,false]
[29,null,null,null,null,null,null,null,0,0,null,null,null,null,null,null,null,null,null,null,null,null,null,null,null,null,null,null,null,null,0,null,null,null,0,0,0,0,false,0,10,0,0,10,0,0,0,0,0,false]
[30,null,null,null,null,null,null,null,0,0,null,null,null,null,null,null,null,null,null,null,null,null,null,null,null,null,null,null,null,null,0,null,null,null,0,0,0,0,false,0,10,0,0,10,0,0,0,0,0,false]
[null,null,null,null,null,null,null,null,{"$f":"IF(SUM(I10:I39)=0,1,SUM(I10:I39))","v":1},{"$f":"SUM(J10:J39)","v":0},null,null,null,null,null,null,null,null,null,null,null,null,null,null,null,null,null,null,null,null,{"$f":"IFERROR(SUM(AE10:AE39)/J40*100,\"N/A\")","v":"N/A"}]
[]
[null,null,null,null,null,null,null,null,null,null,null,null,null,null,null,null,null,null,null,null,null,null,null,null,null,null,null,null,"Use Base:",null,100]
[]
[null,null,null,null,null,null,null,null,null,null,null,null,null,null,null,null,"A form by Leadersense Consulting & Systems Sdn Bhd @2017"]
[null,null,null,null,"1x ⍟",null,null,null,null,null,null,null,null,null,"1✪",null,null,null,"Not Used",null,null,null,null,"Not Used"]
[null,null,null,null,"2x ⍟⍟",null,null,null,null,null,null,null,null,null,"2✪✪",null,null,null,"1✪",null,null,null,null,"1✪"]
[null,null,null,null,"3x ⍟⍟⍟",null,null,null,null,null,null,null,null,null,"3✪✪✪",null,null,null,"2✪✪",null,null,null,null,"2✪✪"]
[null,null,null,null,"4x ⍟⍟⍟⍟",null,null,null,null,null,null,null,null,null,null,null,null,null,"3✪✪✪",null,null,null,null,"3✪✪✪"]